_id,CPF/CNPJ,Credor,Número Processo,Número Contrato,Situação,Órgão,Objeto,Natureza Despesa,Fonte Recurso,Modalidade,Local de Entrega,Início Vigência,Término Vigência,Dias Vigência,Valor Inicial,Valor Total,Data Assinatura,Data Publicacao,Número Diário,Página Diário,Data Publicação Diário,Total Empenhado,Total Liquidado,Total Retido,Total Pago
1,05.993.698/0001-07,1000MEDIC DISTRIBUIDORA IMPORTADORA E EXPORTADORA DE MEDICAMENTOS LTDA,27/001.737/2020,13900,ENCERRADO,(FESA) Fundo Especial de Saúde de Mato Grosso do Sul,Aquisição de equipamentos para montar leitos de UTI,44905208 - APAR.EQUIP.UTENS.MEDICO ODONTOL.LAB.HOSPITAL,0103000000 - RECURSOS PROVENIENTE DA LEI N. 2.105/2000,DISPENSA DE LICITAÇÃO LEI 13979/2020,Conforme Termo de Referencia,10/08/2020,07/11/2020,89,"609000,00000000","609000,00000000",10/08/2020,25/08/2020,10262,30 e 31,25/08/2020,0,0,0,0
2,38.140.640/0001-70,A2 DISTRIBUIDORA BRASIL LTDA,27/003.998/2021,15657,ENCERRADO,(FUNSAU) Fundação Serviços de Saúde de MS,Aquisição Emergencial de Medicamento (Lidocaína),33903009 - MATERIAL FARMACOLOGICO,0240000000 - RECURSOS DIRETAMENTE ARRECADADOS,DISPENSA DE LICITAÇÃO MP 1047/2021,Almoxarifado do HRMS,01/09/2021,30/12/2021,120,"29962,50000000","37353,25000000",01/09/2021,24/09/2021,10642,193,24/09/2021,0,0,0,0
3,64.171.697/0001-46,ACCORD FARMACÊUTICA LTDA,27/000.858/2021,14866,ENCERRADO,(FESA) Fundo Especial de Saúde de Mato Grosso do Sul,Aquisição de medicamentos para atender a CAFB.,33903219 - Medicamentos e Materiais Médico- Hospitalares,0100000000 - RECURSOS ORDINARIOS DO TESOURO,"","DMB - Rua Delegado Osmar de Camargo, S/N",18/03/2021,17/09/2021,183,"35165,60000000","43957,00000000",18/03/2021,05/04/2021,10463,8,05/04/2021,0,0,0,0
4,64.171.697/0001-46,ACCORD FARMACÊUTICA LTDA,27/000.858/2021,14866,ENCERRADO,(FESA) Fundo Especial de Saúde de Mato Grosso do Sul,Aquisição de medicamentos para atender a CAFB.,33903219 - Medicamentos e Materiais Médico- Hospitalares,0248000103 - LC. 172/20 - COVID-19,"","DMB - Rua Delegado Osmar de Camargo, S/N",18/03/2021,17/09/2021,183,"35165,60000000","43957,00000000",18/03/2021,05/04/2021,10463,8,05/04/2021,0,0,0,0
5,11.405.384/0001-49,ALFA MED SISTEMAS MÉDICOS LTDA,27/001.085/2020,13527,ENCERRADO,(FESA) Fundo Especial de Saúde de Mato Grosso do Sul,Aquisição de Monitores Multiparamétricos,44905208 - APAR.EQUIP.UTENS.MEDICO ODONTOL.LAB.HOSPITAL,0100000000 - RECURSOS ORDINARIOS DO TESOURO,DISPENSA DE LICITAÇÃO LEI 13979/2020,almoxarifado central,08/05/2020,03/11/2020,179,"297000,00000000","297000,00000000",08/05/2020,25/05/2020,10180,15,25/05/2020,0,0,0,0
6,33.761.636/0001-05,ALFEMA DOIS MERCANTIL CIRÚRGICA LTDA,27/001.297/2020,13696,ENCERRADO,(FESA) Fundo Especial de Saúde de Mato Grosso do Sul,Aquisição de Soluções e Saneantes Hospitalares para atender e Demanda do Hospital Regional de Mato Grosso do Sul,33903022 - MATERIAL DE LIMPEZA E PROD. DE HIGIENIZACAO,0100000000 - RECURSOS ORDINARIOS DO TESOURO,DISPENSA DE LICITAÇÃO LEI 13979/2020,Conforme Termo de Referencia,05/06/2020,02/10/2020,119,"125624,00000000","125624,00000000",05/06/2020,02/07/2020,10210,23 e 24,02/07/2020,0,0,0,0
7,58.430.828/0001-60,BLAU FARMACÊUTICA S.A.,27/000.850/2021,14850,ENCERRADO,(FESA) Fundo Especial de Saúde de Mato Grosso do Sul,Aquisição de medicamentos para atender a CAFB.,33903219 - Medicamentos e Materiais Médico- Hospitalares,0248000103 - LC. 172/20 - COVID-19,"","DMB - Rua Delegado Osmar de Camargo, S/N",22/03/2021,21/09/2021,183,"75828,00000000","94776,00000000",22/03/2021,25/03/2021,10453,5,25/03/2021,0,0,0,0
8,58.430.828/0001-60,BLAU FARMACÊUTICA S.A.,27/002.308/2020,14373,ENCERRADO,(FESA) Fundo Especial de Saúde de Mato Grosso do Sul,AQ. DE MEDICAMENTOS - SUXAMETÔNIO,33903219 - Medicamentos e Materiais Médico- Hospitalares,0248000104 - Fonte de Recursos - FESA,"","DMB - AV. DELEGADO OSMAR DE CAMARGO, S/N",03/12/2020,02/03/2021,89,"37500,48000000","37500,48000000",03/12/2020,17/12/2020,10354,31,17/12/2020,0,0,0,0
9,25.076.424/0001-60,BLUETRIX TECNOLOGIA LTDA,65/300.104/2020,14394,CELEBRADO,(FUNTRAB - Inativo - 2022) Fundação do Trabalho de Mato Grosso do Sul (Inativo,"Contratação de empresa especializada para fornecimento de Sistema de Registro e Comunicação Multipropósito para Identificação de Vagas de Trabalho, Seleção de Trabalhadores e Promoção de Capacitação.",33903911 - LOCACAO DE SOFTWARES,0100000000 - RECURSOS ORDINARIOS DO TESOURO,DISPENSA DE LICITAÇÃO LEI 13979/2020,"Fundação do Trabalho de Mato Grosso do Sul - FUNTRAB,  Rua 13 de Maio, 2773, Centro - Campo Grande  MS.",30/11/2020,29/05/2021,180,"2091000,00000000","2091000,00000000",30/11/2020,08/12/2020,10343,86,08/12/2020,0,0,0,0
10,25.076.424/0001-60,BLUETRIX TECNOLOGIA LTDA,65/300.104/2020,14394,CELEBRADO,(FUNTRAB - Inativo - 2022) Fundação do Trabalho de Mato Grosso do Sul (Inativo,"Contratação de empresa especializada para fornecimento de Sistema de Registro e Comunicação Multipropósito para Identificação de Vagas de Trabalho, Seleção de Trabalhadores e Promoção de Capacitação.",33903911 - LOCACAO DE SOFTWARES,0100000000 - RECURSOS ORDINARIOS DO TESOURO,DISPENSA DE LICITAÇÃO LEI 13979/2020,"Fundação do Trabalho de Mato Grosso do Sul - FUNTRAB,  Rua 13 de Maio, 2773, Centro - Campo Grande  MS.",30/05/2021,30/08/2021,92,"2091000,00000000","3136500,00000000",31/05/2021,12/07/2021,10343,86,08/12/2020,0,0,0,0
11,24.260.867/0001-44,BMQUALITY PRODUTOS HOSPITALARES LTDA - EPP,27/001.114/2020,13623,ENCERRADO,(FESA) Fundo Especial de Saúde de Mato Grosso do Sul,Aquisição Emergencial de kits para realização dos marcadores sorológicos;,33903011 - MATERIAL QUIMICO,0248000001 - Apoio as ações de média e alta complexidade,DISPENSA DE LICITAÇÃO,"HEMOSUL COORDENADOR, sito Av. Fernando Correa da Costa, 1304, Bairro Centro, em Campo Grande MS.",21/05/2020,20/11/2020,183,"19341,00000000","19341,00000000",21/05/2020,09/06/2020,10192,24 e 25,09/06/2020,0,0,0,0
12,10.602.927/0001-55,C.C.B.P. GARCIA,27/001.058/2020,13566,ENCERRADO,(FESA) Fundo Especial de Saúde de Mato Grosso do Sul,"Aquisição de Correlatos hospitalares: Mascara, avental e lençol descartável",33903036 - MATERIAL HOSPITALAR,0100000000 - RECURSOS ORDINARIOS DO TESOURO,DISPENSA DE LICITAÇÃO LEI 13979/2020,"Almoxarifado da Secretaria de Estado de Saúde, Endereço: Rua Araçá, 1495  Morada Verde  CEP: 79013-600 - Campo Grande/MS",12/05/2020,07/11/2020,179,"196000,00000000","196000,00000000",12/05/2020,26/05/2020,10181,8,26/05/2020,0,0,0,0
13,18.493.600/0001-02,"C.L.R. COMERCIO DE PRODUTOS DE HIGIENE E LIMPEZA, SANEANTE, GENERO ALIMENTICIO E MEDICO HOSPITALAR",27/005.192/2021,15528,ENCERRADO,(FESA) Fundo Especial de Saúde de Mato Grosso do Sul,Aquisição de correlatos hospitalares e soluções e saneantes para atender demanda da SES/MS.,33903022 - MATERIAL DE LIMPEZA E PROD. DE HIGIENIZACAO,0248000125 - PT. 3896/20 - COVID-19,DISPENSA DE LICITAÇÃO MP 1047/2021,Conforme Termo de Referência,24/09/2021,21/01/2022,119,"129250,50000000","129250,50000000",24/09/2021,30/09/2021,10646,59 e 60,30/09/2021,0,0,0,0
14,18.493.600/0001-02,"C.L.R. COMERCIO DE PRODUTOS DE HIGIENE E LIMPEZA, SANEANTE, GENERO ALIMENTICIO E MEDICO HOSPITALAR",29/033.132/2020,14113,ENCERRADO,(SED) Secretaria de Estado de Educação,Aquisição de material de limpeza e higienização visando atender os alunos da Rede Estadual de Ensino do Estado de Mato Grosso do Sul,33903022 - MATERIAL DE LIMPEZA E PROD. DE HIGIENIZACAO,0100000000 - RECURSOS ORDINARIOS DO TESOURO,DISPENSA DE LICITAÇÃO LEI 13979/2020,conforme termo de referência,28/09/2020,25/01/2021,119,"18768,00000000","18768,00000000",28/09/2020,05/10/2020,10295,5,05/10/2020,0,0,0,0
15,18.493.600/0001-02,"C.L.R. COMERCIO DE PRODUTOS DE HIGIENE E LIMPEZA, SANEANTE, GENERO ALIMENTICIO E MEDICO HOSPITALAR",29/017.508/2020,13433,ENCERRADO,(SED) Secretaria de Estado de Educação,Aquisição de Material de limpeza e higienização,33903022 - MATERIAL DE LIMPEZA E PROD. DE HIGIENIZACAO,0100000000 - RECURSOS ORDINARIOS DO TESOURO,DISPENSA DE LICITAÇÃO LEI 13979/2020,Almoxarifado/SED,17/04/2020,15/07/2020,89,"2888,50000000","2888,50000000",17/04/2020,29/04/2020,10157,5,29/04/2020,0,0,0,0
16,18.493.600/0001-02,"C.L.R. COMERCIO DE PRODUTOS DE HIGIENE E LIMPEZA, SANEANTE, GENERO ALIMENTICIO E MEDICO HOSPITALAR",29/024.148/2020,13784,ENCERRADO,(SED) Secretaria de Estado de Educação,"Aquisição de materiais de limpeza, higienização e equipamentos de proteção individual conforme Anexo I e II, visando atender a os alunos da Rede Estadual de Ensino do Estado de Mato Grosso do Sul, em razão do retono das aulas presenciais na Rede Estadual de Ensino, tais materiais se tornarão indispensáveis para assegurar a proteção aos estudantes e servidores da unidades escolares.",33903022 - MATERIAL DE LIMPEZA E PROD. DE HIGIENIZACAO,0103000000 - RECURSOS PROVENIENTE DA LEI N. 2.105/2000,DISPENSA DE LICITAÇÃO LEI 13979/2020,"Rua Delegado José Alfredo Hadman, n. 200 - Parque dos Poderes - Campo Grande/MS",13/07/2020,10/09/2020,59,"1183027,01000000","1183027,01000000",13/07/2020,30/07/2020,10239,37,30/07/2020,0,0,0,0
17,15.714.275/0001-64,C.O.M. COMÉRCIO E ASSISTÊNCIA TÉCNICA HOSPITALAR LTDA-EPP,27/000.923/2020,13414,ENCERRADO,(FESA) Fundo Especial de Saúde de Mato Grosso do Sul,Locação de conjuntos de leitos de UTI,33903912 - LOCACAO DE MAQUINAS E EQUIPAMENTOS,0100000000 - RECURSOS ORDINARIOS DO TESOURO,DISPENSA DE LICITAÇÃO LEI 13979/2020,De acordo com a necessidade dos locais de atendimento.,15/04/2020,14/10/2020,182,"658800,00000000","658800,00000000",15/04/2020,25/05/2020,10180,14  e 15,25/05/2020,0,0,0,0
18,15.714.275/0001-64,C.O.M. COMÉRCIO E ASSISTÊNCIA TÉCNICA HOSPITALAR LTDA-EPP,27/001.121/2020,13514,ENCERRADO,(FESA) Fundo Especial de Saúde de Mato Grosso do Sul,Locação de 06 Conjuntos de Equipamento para Leito UTI,33903912 - LOCACAO DE MAQUINAS E EQUIPAMENTOS,0100000000 - RECURSOS ORDINARIOS DO TESOURO,DISPENSA DE LICITAÇÃO LEI 13979/2020,Conforme Termo de Referencia,07/05/2020,02/11/2020,179,"714000,00000000","714000,00000000",07/05/2020,15/05/2020,10171,33 e 34,15/05/2020,0,0,0,0
19,13.646.927/0001-45,CAPILE COMERCIO E TECNOLOGIA LTDA,27/001.851/2020,14036,ENCERRADO,(FESA) Fundo Especial de Saúde de Mato Grosso do Sul,Aquisição de Nobreak,44905230 - MAQUINAS E EQUIPAMENTOS ENERGETICOS,0100000000 - RECURSOS ORDINARIOS DO TESOURO,DISPENSA DE LICITAÇÃO LEI 13979/2020,Conforme Termo de Referencia,16/09/2020,14/03/2021,179,"12650,00000000","12650,00000000",16/09/2020,05/10/2020,10295,6 e 7,05/10/2020,0,0,0,0
20,13.646.927/0001-45,CAPILE COMERCIO E TECNOLOGIA LTDA,31/095.684/2022,21138,CELEBRADO,(SEJUSP) Secretaria de Estado de Justiça e Segurança Pública,Aquisição de MATERIAL DE INFORMÁTICA por meio da ARP 047/SAD/2022-1.1AD para atender as necessidades da Secretaria de Estado de Justiça e Segurança Pública/SEJUSP,33903017 - MATERIAL DE PROCESSAMENTO DE DADOS,0171380011 - FESP-Transferências Fundo a Fundo de Recursos do Fundo de Segurança Pública - FSP,PREGÃO ELETRÔNICO,"Parque dos Poderes, Bloco VI, CEP 79031-350, Campo Grande - MS",23/02/2023,22/02/2024,364,"103350,00000000","103350,00000000",23/02/2023,19/04/2023,11.134,15,19/04/2023,0,0,0,0
21,03.953.111/0001-00,CARDOSO & CARDOSO S/S LTDA,31/701.934/2020,14039,ENCERRADO,(DETRAN) Departamento Estadual de Trânsito,"Prestação de serviços para elaboração de Protocolo de Biossegurança em função da Pandemia da COVID 19, para atender a demanda do Departamento de Trânsito do Estado de Mato Grosso do Sul  DETRAN-MS, conforme condições, quantidades, especificações e exigências estabelecidas neste instrumento, destinados ao enfrentamento da emergência de saúde pública de importância internacional decorrente do coronavírus (Lei n. 13.979/20):",33903905 - SERVICOS TECNICOS PROFISSIONAIS,0240000000 - RECURSOS DIRETAMENTE ARRECADADOS,DISPENSA DE LICITAÇÃO LEI 13979/2020,Conforme exigências constantes nos seus anexos,14/09/2020,12/03/2021,179,"9500,00000000","9500,00000000",14/09/2020,21/09/2020,10283,11 e 12,21/09/2020,0,0,0,0
22,52.500.287/0001-12,CASA NASSER COMÉRCIO E REPRESENTAÇÕES LTDA,71/022.616/2021,15350,ENCERRADO,(AGRAER - Inativo - 2022) Agência de Desenvolvimento Agrário e Extensão Rural - Inativo - 2022,Aquisição de Máquinas e Equipamentos Agrícolas (Pulverizador - Plantadeira - Ensiladeira) - Convênio  891.139/2019,44905240 - MAQUINAS E EQUIPAMENTOS AGRIC. E RODOVIARIOS,0281020020 - Convênio-891139/2019-MAPA/AGRAER-Programa:Fomento ao Setor Agropecuário-Investimento-Coven 29535.,PREGÃO ELETRÔNICO,AGRAER,19/10/2021,20/07/2022,274,"162500,00000000","162500,00000000",19/10/2021,25/10/2021,10662,45,25/10/2021,0,0,0,0
23,02.248.312/0001-44,CEPALAB LABORATORIOS S.A,27/005.229/2021,15386,ENCERRADO,(FESA) Fundo Especial de Saúde de Mato Grosso do Sul,Aquisição de testes rápido de antígeno para Covid-19,33903011 - MATERIAL QUIMICO,0248000125 - PT. 3896/20 - COVID-19,DISPENSA DE LICITAÇÃO MP 1047/2021,Conforme Termo de Referencia,20/07/2021,16/11/2021,119,"1463700,00000000","1463700,00000000",20/07/2021,26/07/2021,10583,26,26/07/2021,0,0,0,0
24,02.248.312/0001-44,CEPALAB LABORATORIOS S.A,27/000.850/2023,21370,ENCERRADO,(FESA) Fundo Especial de Saúde de Mato Grosso do Sul,Aquisição de Teste Rápido por Antígeno COVID-19 - CGAF.,33903011 - MATERIAL QUIMICO,0260280041 - FESA - PT. 2624/20 - COVID-19,PREGÃO ELETRÔNICO,"Av. Min. João Arinos, 2690 - Tiradentes, Campo Grande - MS, 79041-005 (LIN)",31/03/2023,29/03/2024,364,"223813,80000000","223813,80000000",31/03/2023,11/04/2023,11127,22,11/04/2023,0,0,0,0
25,02.248.312/0001-44,CEPALAB LABORATORIOS S.A,27/000.850/2023,21370,ENCERRADO,(FESA) Fundo Especial de Saúde de Mato Grosso do Sul,Aquisição de Teste Rápido por Antígeno COVID-19 - CGAF.,33903011 - MATERIAL QUIMICO,0260280051 - FESA - PT. 2782/20 - COVID-19,PREGÃO ELETRÔNICO,"Av. Min. João Arinos, 2690 - Tiradentes, Campo Grande - MS, 79041-005 (LIN)",31/03/2023,29/03/2024,364,"223813,80000000","223813,80000000",31/03/2023,11/04/2023,11127,22,11/04/2023,0,0,0,0
26,02.248.312/0001-44,CEPALAB LABORATORIOS S.A,27/000.850/2023,21370,ENCERRADO,(FESA) Fundo Especial de Saúde de Mato Grosso do Sul,Aquisição de Teste Rápido por Antígeno COVID-19 - CGAF.,33903011 - MATERIAL QUIMICO,0260280061 - FESA - PT. 3896/20 - COVID-19,PREGÃO ELETRÔNICO,"Av. Min. João Arinos, 2690 - Tiradentes, Campo Grande - MS, 79041-005 (LIN)",31/03/2023,29/03/2024,364,"223813,80000000","223813,80000000",31/03/2023,11/04/2023,11127,22,11/04/2023,0,0,0,0
27,02.248.312/0001-44,CEPALAB LABORATORIOS S.A,27/000.850/2023,21370,ENCERRADO,(FESA) Fundo Especial de Saúde de Mato Grosso do Sul,Aquisição de Teste Rápido por Antígeno COVID-19 - CGAF.,33903011 - MATERIAL QUIMICO,0260280071 - FESA - PT. 827/20 - COVID-19,PREGÃO ELETRÔNICO,"Av. Min. João Arinos, 2690 - Tiradentes, Campo Grande - MS, 79041-005 (LIN)",31/03/2023,29/03/2024,364,"223813,80000000","223813,80000000",31/03/2023,11/04/2023,11127,22,11/04/2023,0,0,0,0
28,02.248.312/0001-44,CEPALAB LABORATORIOS S.A,27/000.850/2023,21370,ENCERRADO,(FESA) Fundo Especial de Saúde de Mato Grosso do Sul,Aquisição de Teste Rápido por Antígeno COVID-19 - CGAF.,33903011 - MATERIAL QUIMICO,0260280111 - PT.395/20 -COVID-19 BRASIL,PREGÃO ELETRÔNICO,"Av. Min. João Arinos, 2690 - Tiradentes, Campo Grande - MS, 79041-005 (LIN)",31/03/2023,29/03/2024,364,"223813,80000000","223813,80000000",31/03/2023,11/04/2023,11127,22,11/04/2023,0,0,0,0
29,02.248.312/0001-44,CEPALAB LABORATORIOS S.A,27/000.850/2023,21370,ENCERRADO,(FESA) Fundo Especial de Saúde de Mato Grosso do Sul,Aquisição de Teste Rápido por Antígeno COVID-19 - CGAF.,33903011 - MATERIAL QUIMICO,0260280121 - PT.1666/20 - COVID-19,PREGÃO ELETRÔNICO,"Av. Min. João Arinos, 2690 - Tiradentes, Campo Grande - MS, 79041-005 (LIN)",31/03/2023,29/03/2024,364,"223813,80000000","223813,80000000",31/03/2023,11/04/2023,11127,22,11/04/2023,0,0,0,0
30,07.847.837/0001-10,CIENTÍFICA MÉDICA HOSPITALAR LTDA.,27/002.309/2020,14374,ENCERRADO,(FESA) Fundo Especial de Saúde de Mato Grosso do Sul,AQ. DE MEDICAMENTOS - DEXMEDETOMIDINA,33903219 - Medicamentos e Materiais Médico- Hospitalares,0248000104 - Fonte de Recursos - FESA,"","DMB - AV. DELEGADO OSMAR DE CAMARGO, S/N",01/12/2020,28/02/2021,89,"40089,60000000","40089,60000000",01/12/2020,04/12/2020,10340,105,04/12/2020,0,0,0,0
31,05.075.964/0001-12,CINCO CONFIANÇA INDÚSTRIA E COMÉRCIO LTDA,27/001.926/2020,13956,ENCERRADO,(FESA) Fundo Especial de Saúde de Mato Grosso do Sul,Aquisição de Kit para coleta por aférese,33903011 - MATERIAL QUIMICO,0248000103 - LC. 172/20 - COVID-19,DISPENSA DE LICITAÇÃO LEI 13979/2020,"HEMOSUL - Av. Fernando Corrêa da Costa, 1304 - Centro - CEP: 790004-310 - Campo Grande/MS",27/08/2020,24/12/2020,119,"238800,00000000","238800,00000000",27/08/2020,08/09/2020,10273,6,08/09/2020,0,0,0,0
32,26.853.028/0001-65,CIRUMED COMERCIO LTDA.,27/001.188/2020,13651,ENCERRADO,(FESA) Fundo Especial de Saúde de Mato Grosso do Sul,"Aquisição de correlatos hospitalares: luva, seringa, sonda, touca, sistema de drenagem",33903036 - MATERIAL HOSPITALAR,0100000000 - RECURSOS ORDINARIOS DO TESOURO,DISPENSA DE LICITAÇÃO LEI 13979/2020,Conforme Termo de Referencia,15/06/2020,12/10/2020,119,"19550,00000000","19550,00000000",15/06/2020,01/07/2020,10209,16,01/07/2020,0,0,0,0
33,26.853.028/0001-65,CIRUMED COMERCIO LTDA.,27/001.533/2020,13774,ENCERRADO,(FESA) Fundo Especial de Saúde de Mato Grosso do Sul,"Aquisição de material laboratorial  Swab, Tubo Falcon e Tubo criogênico",33903035 - MATERIAL LABORATORIAL,0103000000 - RECURSOS PROVENIENTE DA LEI N. 2.105/2000,DISPENSA DE LICITAÇÃO LEI 13979/2020,Conforme Termo de Referencia,10/07/2020,07/10/2020,89,"79800,00000000","79800,00000000",10/07/2020,16/07/2020,10227,27 e 28,16/07/2020,0,0,0,0
34,10.656.587/0001-45,CIRÚRGICA MS LTDA.,27/005.192/2021,15539,ENCERRADO,(FESA) Fundo Especial de Saúde de Mato Grosso do Sul,Aquisição de correlatos hospitalares e soluções e saneantes para atender demanda da SES/MS.,33903022 - MATERIAL DE LIMPEZA E PROD. DE HIGIENIZACAO,0248000125 - PT. 3896/20 - COVID-19,DISPENSA DE LICITAÇÃO MP 1047/2021,Conforme Termo de Referência,24/09/2021,21/01/2022,119,"1926,00000000","1926,00000000",24/09/2021,29/09/2021,10645,40 e 41,29/09/2021,0,0,0,0
35,10.656.587/0001-45,CIRÚRGICA MS LTDA.,27/005.192/2021,15539,ENCERRADO,(FESA) Fundo Especial de Saúde de Mato Grosso do Sul,Aquisição de correlatos hospitalares e soluções e saneantes para atender demanda da SES/MS.,33903036 - MATERIAL HOSPITALAR,0248000125 - PT. 3896/20 - COVID-19,DISPENSA DE LICITAÇÃO MP 1047/2021,Conforme Termo de Referência,24/09/2021,21/01/2022,119,"1926,00000000","1926,00000000",24/09/2021,29/09/2021,10645,40 e 41,29/09/2021,0,0,0,0
36,10.656.587/0001-45,CIRÚRGICA MS LTDA.,27/001.992/2020,13994,ENCERRADO,(FESA) Fundo Especial de Saúde de Mato Grosso do Sul,Aquisição de medicamento Dexmedetomidina para atender a CGAF/DGAS/SES/MS.,33903219 - Medicamentos e Materiais Médico- Hospitalares,0248000104 - Fonte de Recursos - FESA,PREGÃO ELETRÔNICO,"DMB - Rua Delegado Osmar de Camargo, S/N",10/09/2020,09/12/2020,90,"103825,00000000","103825,00000000",10/09/2020,22/09/2020,10284,11,22/09/2020,0,0,0,0
37,10.656.587/0001-45,CIRÚRGICA MS LTDA.,27/001.297/2020,13697,ENCERRADO,(FESA) Fundo Especial de Saúde de Mato Grosso do Sul,Aquisição de Soluções e Saneantes Hospitalares para atender e Demanda do Hospital Regional de Mato Grosso do Sul,33903022 - MATERIAL DE LIMPEZA E PROD. DE HIGIENIZACAO,0100000000 - RECURSOS ORDINARIOS DO TESOURO,DISPENSA DE LICITAÇÃO LEI 13979/2020,Conforme Termo de Referencia,05/06/2020,02/10/2020,119,"1133986,40000000","1133986,40000000",05/06/2020,02/07/2020,10210,24,02/07/2020,0,0,0,0
38,10.656.587/0001-45,CIRÚRGICA MS LTDA.,27/001.189/2020,13671,ENCERRADO,(FESA) Fundo Especial de Saúde de Mato Grosso do Sul,Aquisição de Correlatos Hospitalares,33903036 - MATERIAL HOSPITALAR,0100000000 - RECURSOS ORDINARIOS DO TESOURO,DISPENSA DE LICITAÇÃO LEI 13979/2020,Conforme Termo de Referencia,09/06/2020,06/10/2020,119,"80940,00000000","80940,00000000",09/06/2020,30/06/2020,10208,24,30/06/2020,0,0,0,0
39,10.656.587/0001-45,CIRÚRGICA MS LTDA.,27/001.187/2020,13668,ENCERRADO,(FESA) Fundo Especial de Saúde de Mato Grosso do Sul,Aquisição de Correlatos Hospitalares,33903036 - MATERIAL HOSPITALAR,0100000000 - RECURSOS ORDINARIOS DO TESOURO,DISPENSA DE LICITAÇÃO LEI 13979/2020,Conforme Termo de Referencia,28/05/2020,23/11/2020,179,"77959,00000000","77959,00000000",28/05/2020,09/06/2020,10192,25,09/06/2020,0,0,0,0
40,07.626.776/0001-60,CIRURGICA SAO FELIPE PRODUTOS PARA SAUDE LTDA.,27/001.085/2020,13528,ENCERRADO,(FESA) Fundo Especial de Saúde de Mato Grosso do Sul,Aquisição de Monitores Multiparamétricos,44905208 - APAR.EQUIP.UTENS.MEDICO ODONTOL.LAB.HOSPITAL,0100000000 - RECURSOS ORDINARIOS DO TESOURO,DISPENSA DE LICITAÇÃO LEI 13979/2020,almoxarifado central,12/05/2020,07/11/2020,179,"559120,00000000","559120,00000000",12/05/2020,25/05/2020,10180,15,25/05/2020,0,0,0,0
41,02.600.770/0001-09,COMERCIAL VALFARMA EIRELI,27/002.311/2020,14389,ENCERRADO,(FESA) Fundo Especial de Saúde de Mato Grosso do Sul,AQ. DE MEDICAMENTOS - EPINEFRINA,33903219 - Medicamentos e Materiais Médico- Hospitalares,0248000104 - Fonte de Recursos - FESA,"","DMB - AV. DELEGADO OSMAR DE CAMARGO, S/N",30/12/2020,29/03/2021,89,"443491,20000000","443491,20000000",30/12/2020,20/01/2021,10383,22,20/01/2021,0,0,0,0
42,36.325.157/0001-34,COSTA CAMARGO COMERCIO DE PRODUTOS HOSPITALARES LTDA,27/001.649/2020,13833,ENCERRADO,(FESA) Fundo Especial de Saúde de Mato Grosso do Sul,Aquisição de medicamentos,33903009 - MATERIAL FARMACOLOGICO,0103000000 - RECURSOS PROVENIENTE DA LEI N. 2.105/2000,DISPENSA DE LICITAÇÃO LEI 13979/2020,Conforme Termo de Referencia,03/08/2020,30/11/2020,119,"575760,00000000","575760,00000000",03/08/2020,20/08/2020,10259,17 e 18,20/08/2020,0,0,0,0
43,44.734.671/0001-51,CRISTALIA PRODUTOS QUIMICOS FARMACEUTICOS LTDA.,27/004.721/2021,15525,ENCERRADO,(FESA) Fundo Especial de Saúde de Mato Grosso do Sul,Aquisição de medicamentos que compõem o ''Kit intubação'',33903219 - Medicamentos e Materiais Médico- Hospitalares,0248000125 - PT. 3896/20 - COVID-19,DISPENSA DE LICITAÇÃO MP 1047/2021,Conforme Termo de Referencia,10/08/2021,07/12/2021,119,"1028620,00000000","1028620,00000000",10/08/2021,24/08/2021,10614,35 e 36,24/08/2021,0,0,0,0
44,44.734.671/0001-51,CRISTALIA PRODUTOS QUIMICOS FARMACEUTICOS LTDA.,27/006.010/2021,15772,ENCERRADO,(FESA) Fundo Especial de Saúde de Mato Grosso do Sul,Aquisição de medicamento chamado ''Kit intubação'',33903219 - Medicamentos e Materiais Médico- Hospitalares,0100000000 - RECURSOS ORDINARIOS DO TESOURO,DISPENSA DE LICITAÇÃO MP 1047/2021,Conforme Termo de Referencia,22/09/2021,20/03/2022,179,"3145000,00000000","1572500,00000000",22/09/2021,07/10/2021,10651,34,07/10/2021,0,0,0,0
45,44.734.671/0001-51,CRISTALIA PRODUTOS QUIMICOS FARMACEUTICOS LTDA.,27/000.845/2021,14851,ENCERRADO,(FESA) Fundo Especial de Saúde de Mato Grosso do Sul,Aquisição de medicamentos para atender a CAFB.,33903219 - Medicamentos e Materiais Médico- Hospitalares,0248000103 - LC. 172/20 - COVID-19,"","DMB - Rua Delegado Osmar de Camargo, S/N",23/03/2021,22/09/2021,183,"411788,78000000","514710,50000000",23/03/2021,31/03/2021,10460,25,31/03/2021,0,0,0,0
46,44.734.671/0001-51,CRISTALIA PRODUTOS QUIMICOS FARMACEUTICOS LTDA.,27/001.990/2020,13993,ENCERRADO,(FESA) Fundo Especial de Saúde de Mato Grosso do Sul,Aquisição de medicamentos para atender a CGAF/DGAS/SES/MS.,33903219 - Medicamentos e Materiais Médico- Hospitalares,0248000104 - Fonte de Recursos - FESA,PREGÃO ELETRÔNICO,"DMB - Rua Delegado Osmar de Camargo, S/N",02/09/2020,01/12/2020,90,"111657,42000000","111657,42000000",02/09/2020,18/09/2020,10282,16 e 17,18/09/2020,0,0,0,0
47,44.734.671/0001-51,CRISTALIA PRODUTOS QUIMICOS FARMACEUTICOS LTDA.,27/001.993/2020,13996,ENCERRADO,(FESA) Fundo Especial de Saúde de Mato Grosso do Sul,Aquisição de medicamento Etomidato para atender a CGAF/DGAS/SES/MS.,33903219 - Medicamentos e Materiais Médico- Hospitalares,0248000104 - Fonte de Recursos - FESA,PREGÃO ELETRÔNICO,"DMB - AV. DELEGADO OSMAR DE CAMARGO, S/N",02/09/2020,01/12/2020,90,"89703,75000000","89703,75000000",02/09/2020,30/09/2020,10291,43,30/09/2020,0,0,0,0
48,44.734.671/0001-51,CRISTALIA PRODUTOS QUIMICOS FARMACEUTICOS LTDA.,27/002.312/2020,14372,ENCERRADO,(FESA) Fundo Especial de Saúde de Mato Grosso do Sul,"AQ. DE MEDICAMENTOS - ATRACURIO, ETOMIDATO...",33903219 - Medicamentos e Materiais Médico- Hospitalares,0248000104 - Fonte de Recursos - FESA,"","DMB - AV. DELEGADO OSMAR DE CAMARGO, S/N",09/12/2020,08/03/2021,89,"562505,53000000","562505,53000000",09/12/2020,16/12/2020,10352,31,16/12/2020,0,0,0,0
49,44.734.671/0001-51,CRISTALIA PRODUTOS QUIMICOS FARMACEUTICOS LTDA.,27/005.552/2021,15371,ENCERRADO,(FESA) Fundo Especial de Saúde de Mato Grosso do Sul,Aquisição de medicamento para atender a CAFB.,33903219 - Medicamentos e Materiais Médico- Hospitalares,0248000104 - Fonte de Recursos - FESA,PREGÃO ELETRÔNICO,"DMB - Rua Delegado Osmar de Camargo, S/N",14/07/2021,13/07/2022,364,"382415,00000000","382415,00000000",14/07/2021,22/07/2021,10579,13,22/07/2021,0,0,0,0
50,44.734.671/0001-51,CRISTALIA PRODUTOS QUIMICOS FARMACEUTICOS LTDA.,27/001.649/2020,13831,ENCERRADO,(FESA) Fundo Especial de Saúde de Mato Grosso do Sul,Aquisição de medicamentos,33903009 - MATERIAL FARMACOLOGICO,0103000000 - RECURSOS PROVENIENTE DA LEI N. 2.105/2000,DISPENSA DE LICITAÇÃO LEI 13979/2020,Conforme Termo de Referencia,20/07/2020,16/11/2020,119,"60375,00000000","60375,00000000",20/07/2020,20/08/2020,10259,16 e 17,20/08/2020,0,0,0,0
51,09.642.212/0001-47,D D LIMPE DEDETIZADORA LTDA ME,31/701.767/2020,13897,ENCERRADO,(DETRAN) Departamento Estadual de Trânsito,"Serviços de sanitização de ambientes interno e externo, para atender a demanda do Departamento de Trânsito do Estado de Mato Grosso do Sul  DETRAN-MS",33903978 - LIMPEZA E CONSERVACAO,0240000000 - RECURSOS DIRETAMENTE ARRECADADOS,DISPENSA DE LICITAÇÃO LEI 13979/2020,Conforme exigências constantes nos seus anexos,06/08/2020,01/02/2021,179,"35400,00000000","35400,00000000",06/08/2020,10/08/2020,10248,48,10/08/2020,0,0,0,0
52,09.642.212/0001-47,D D LIMPE DEDETIZADORA LTDA ME,31/701.767/2020,13897,ENCERRADO,(DETRAN) Departamento Estadual de Trânsito,"Serviços de sanitização de ambientes interno e externo, para atender a demanda do Departamento de Trânsito do Estado de Mato Grosso do Sul  DETRAN-MS",33909239 - OUTROS SERV DE TERC PESSOA JURÍDICA - AJUSTES DE EXERCICIOS ANTERIORES,0240000000 - RECURSOS DIRETAMENTE ARRECADADOS,DISPENSA DE LICITAÇÃO LEI 13979/2020,Conforme exigências constantes nos seus anexos,06/08/2020,01/02/2021,179,"35400,00000000","35400,00000000",06/08/2020,10/08/2020,10248,48,10/08/2020,0,0,0,0
53,10.396.394/0001-00,DIAGNOLAB LABORATORIOS LTDA.,27/001.216/2020,13591,ENCERRADO,(FESA) Fundo Especial de Saúde de Mato Grosso do Sul,Aquisição de Teste Rápido Coronavírus IgG e IgM para detecção do (COVID-19),33903011 - MATERIAL QUIMICO,0248000095 - Portaria 774/2020 - COVID-19,DISPENSA DE LICITAÇÃO LEI 13979/2020,Conforme Termo de Referencia,22/05/2020,17/11/2020,179,"2190000,00000000","2190000,00000000",22/05/2020,08/06/2020,10191,6 e 7,08/06/2020,0,0,0,0
54,10.396.394/0001-00,DIAGNOLAB LABORATORIOS LTDA.,27/001.588/2020,13843,ENCERRADO,(FESA) Fundo Especial de Saúde de Mato Grosso do Sul,"Aquisição de placas para PCR em tempo real, Filme para Laboratório, Caixas com tampa articulada para microtubos e Rack para tubos de centrifugação de 15 e 50 ml.",33903035 - MATERIAL LABORATORIAL,0103000000 - RECURSOS PROVENIENTE DA LEI N. 2.105/2000,DISPENSA DE LICITAÇÃO LEI 13979/2020,Conforme Termo de Referencia,21/07/2020,17/11/2020,119,"73228,20000000","73228,20000000",21/07/2020,03/08/2020,10242,9,03/08/2020,0,0,0,0
55,02.520.829/0001-40,DIMASTER - COMÉRCIO DE PRODUTOS HOSPITALARES LTDA,27/001.649/2020,13832,ENCERRADO,(FESA) Fundo Especial de Saúde de Mato Grosso do Sul,Aquisição de medicamentos,33903009 - MATERIAL FARMACOLOGICO,0103000000 - RECURSOS PROVENIENTE DA LEI N. 2.105/2000,DISPENSA DE LICITAÇÃO LEI 13979/2020,Conforme Termo de Referencia,20/07/2020,16/11/2020,119,"35235,20000000","35235,20000000",20/07/2020,20/08/2020,10259,17,20/08/2020,0,0,0,0
56,18.483.775/0001-20,DU BOM DISTRIBUICAO DE PRODUTOS MEDICO-HOSPITALAR LTDA.,27/001.187/2020,13669,ENCERRADO,(FESA) Fundo Especial de Saúde de Mato Grosso do Sul,Aquisição de Correlatos Hospitalares,33903036 - MATERIAL HOSPITALAR,0100000000 - RECURSOS ORDINARIOS DO TESOURO,DISPENSA DE LICITAÇÃO LEI 13979/2020,Conforme Termo de Referencia,28/05/2020,23/11/2020,179,"16000,00000000","16000,00000000",28/05/2020,09/06/2020,10192,26,09/06/2020,0,0,0,0
57,18.483.775/0001-20,DU BOM DISTRIBUICAO DE PRODUTOS MEDICO-HOSPITALAR LTDA.,29/024.148/2020,13785,ENCERRADO,(SED) Secretaria de Estado de Educação,"Aquisição de materiais de limpeza, higienização e equipamentos de proteção individual conforme Anexo I e II, visando atender a os alunos da Rede Estadual de Ensino do Estado de Mato Grosso do Sul, em razão do retono das aulas presenciais na Rede Estadual de Ensino, tais materiais se tornarão indispensáveis para assegurar a proteção aos estudantes e servidores da unidades escolares.",33903022 - MATERIAL DE LIMPEZA E PROD. DE HIGIENIZACAO,0103000000 - RECURSOS PROVENIENTE DA LEI N. 2.105/2000,DISPENSA DE LICITAÇÃO LEI 13979/2020,"Rua Delegado José Alfredo Hadman, n. 200 - Parque dos Poderes - Campo Grande/MS",08/07/2020,05/09/2020,59,"70254,88000000","70254,88000000",08/07/2020,27/07/2020,10236,7,27/07/2020,0,0,0,0
58,19.993.061/0001-25,EASY SOLUÇÕES DIAGNOSTICAS LTDA,27/101.841/2020,14378,ENCERRADO,(FUNSAU) Fundação Serviços de Saúde de MS,Aquisição de pack's gasometria,33903011 - MATERIAL QUIMICO,0240000000 - RECURSOS DIRETAMENTE ARRECADADOS,PREGÃO ELETRÔNICO,"Rua Engº Luthero Lopes, n° 36",18/11/2020,18/11/2021,365,"469800,00000000","587250,00000000",18/11/2020,30/12/2020,10364,58,30/12/2020,0,0,0,0
59,15.353.437/0001-86,EKOBOX LOCACOES LTDA,27/001.328/2020,13600,ENCERRADO,(FESA) Fundo Especial de Saúde de Mato Grosso do Sul,"Contratação de empresa para locação de containers módulos habitacionais,",33903914 - LOCACAO DE BENS MOV.OUT.NATUREZAS E INTANGIVE,0100000000 - RECURSOS ORDINARIOS DO TESOURO,DISPENSA DE LICITAÇÃO LEI 13979/2020,Conforme Termo de Referencia,17/08/2020,15/09/2020,29,"1243260,00000000","414420,00000000",14/08/2020,28/08/2020,10180,16,25/05/2020,0,0,0,0
60,15.353.437/0001-86,EKOBOX LOCACOES LTDA,27/001.328/2020,13600,ENCERRADO,(FESA) Fundo Especial de Saúde de Mato Grosso do Sul,"Contratação de empresa para locação de containers módulos habitacionais,",33903914 - LOCACAO DE BENS MOV.OUT.NATUREZAS E INTANGIVE,0100000000 - RECURSOS ORDINARIOS DO TESOURO,DISPENSA DE LICITAÇÃO LEI 13979/2020,Conforme Termo de Referencia,19/05/2020,16/08/2020,89,"1243260,00000000","1243260,00000000",19/05/2020,25/05/2020,10180,16,25/05/2020,0,0,0,0
61,09.137.236/0001-49,ENZO CAMINHÕES LTDA,27/006.369/2021,15464,ENCERRADO,(FESA) Fundo Especial de Saúde de Mato Grosso do Sul,Aquisição de 13 ambulâncias para atender municípios de MS.,44905252 - VEICULOS DE TRACAO MECANICA,0100000000 - RECURSOS ORDINARIOS DO TESOURO,PREGÃO ELETRÔNICO,"R. Araçá, 1495. C. Grande/MS",27/07/2021,27/07/2022,365,"5070000,00000000","5070000,00000000",27/07/2021,04/08/2021,10595,19,04/08/2021,0,0,0,0
62,09.137.236/0001-49,ENZO CAMINHÕES LTDA,27/006.369/2021,15464,ENCERRADO,(FESA) Fundo Especial de Saúde de Mato Grosso do Sul,Aquisição de 13 ambulâncias para atender municípios de MS.,44905252 - VEICULOS DE TRACAO MECANICA,0100000000 - RECURSOS ORDINARIOS DO TESOURO,PREGÃO ELETRÔNICO,"R. Araçá, 1495. C. Grande/MS",28/07/2022,26/01/2023,182,"5070000,00000000","6240000,00000000",21/07/2022,30/06/2022,10595,19,04/08/2021,0,0,0,0
63,04.619.893/0001-09,ESPECIALISTA - PRODUTOS PARA LABORATÓRIO S/A,27/001.114/2020,13624,ENCERRADO,(FESA) Fundo Especial de Saúde de Mato Grosso do Sul,Aquisição Emergencial de kits para realização dos marcadores sorológicos;,33903011 - MATERIAL QUIMICO,0248000001 - Apoio as ações de média e alta complexidade,DISPENSA DE LICITAÇÃO,"HEMOSUL COORDENADOR, sito Av. Fernando Correa da Costa, 1304, Bairro Centro, em Campo Grande MS.",21/05/2020,20/11/2020,183,"2283933,00000000","2283933,00000000",21/05/2020,09/06/2020,10192,24,09/06/2020,0,0,0,0
64,61.190.096/0008-69,EUROFARMA LABORATÓRIOS SA,27/002.310/2020,14384,ENCERRADO,(FESA) Fundo Especial de Saúde de Mato Grosso do Sul,AQ. DE MEDICAMENTO - DEXMEDETOMIDINA,33903219 - Medicamentos e Materiais Médico- Hospitalares,0248000104 - Fonte de Recursos - FESA,"","DMB - AV. DELEGADO OSMAR DE CAMARGO, S/N",02/02/2021,01/05/2021,88,"80179,20000000","80179,20000000",02/02/2021,25/03/2021,10453,4 e 5,25/03/2021,0,0,0,0
65,20.299.623/0001-14,FABIO EQUIPAMENTOS E SUPRIMENTOS DE INFORMATICA EIRELI,27/001.120/2020,13540,ENCERRADO,(FESA) Fundo Especial de Saúde de Mato Grosso do Sul,Aquisição de correlatos hospitalares para atender a demanda da Secretaria de Estado de Saúde: mascara hospitalar,33903036 - MATERIAL HOSPITALAR,0100000000 - RECURSOS ORDINARIOS DO TESOURO,DISPENSA DE LICITAÇÃO LEI 13979/2020,"Rua Araçá, 1495  Morada Verde  CEP: 79013-600 - Campo Grande/MS",13/05/2020,08/11/2020,179,"163000,00000000","163000,00000000",13/05/2020,21/05/2020,10177,11,21/05/2020,0,0,0,0
66,20.299.623/0001-14,FABIO EQUIPAMENTOS E SUPRIMENTOS DE INFORMATICA EIRELI,27/001.189/2020,13675,ENCERRADO,(FESA) Fundo Especial de Saúde de Mato Grosso do Sul,Aquisição de Correlatos Hospitalares,33903016 - MATERIAL DE EXPEDIENTE,0100000000 - RECURSOS ORDINARIOS DO TESOURO,DISPENSA DE LICITAÇÃO LEI 13979/2020,Conforme Termo de Referencia,19/06/2020,16/10/2020,119,"40080,00000000","40080,00000000",19/06/2020,30/06/2020,10208,25 e 26,30/06/2020,0,0,0,0
67,70.939.574/0001-05,FÁBRICA DE ARTEFATOS DE LATEX SÃO ROQUE LTDA.,27/001.188/2020,13648,ENCERRADO,(FESA) Fundo Especial de Saúde de Mato Grosso do Sul,"Aquisição de correlatos hospitalares: luva, seringa, sonda, touca, sistema de drenagem",33903036 - MATERIAL HOSPITALAR,0100000000 - RECURSOS ORDINARIOS DO TESOURO,DISPENSA DE LICITAÇÃO LEI 13979/2020,Conforme Termo de Referencia,17/06/2020,14/10/2020,119,"44634,00000000","44634,00000000",17/06/2020,01/07/2020,10209,17,01/07/2020,0,0,0,0
68,14.166.058/0001-14,FLEX OFFICE COMERCIO DE PRODUTOS PARA ESCRITORIO LTDA.,31/035.964/2022,18173,ENCERRADO,(SEJUSP) Secretaria de Estado de Justiça e Segurança Pública,Aquisição de mobiliários em geral para atender as necessidades da Coordenadoria Geral de Perícias/CGP/MS - ARP 069/SAD/2021.1 - Vig 29/09/2022,44905242 - MOBILIARIO EM GERAL,0100000000 - RECURSOS ORDINARIOS DO TESOURO,PREGÃO ELETRÔNICO,"Av. Senador Filinto Muller 1530 V. Ipiranga, 79074-460, C. Grande/MS e R. Cel. Ponciano de Mattos Pereira, nº835, Terra Roxa, 79.840-505 Dourados/MS",29/06/2022,28/06/2023,364,"772352,00000000","965002,00000000",29/06/2022,27/07/2022,10901,38,27/07/2022,0,0,0,0
69,14.166.058/0001-14,FLEX OFFICE COMERCIO DE PRODUTOS PARA ESCRITORIO LTDA.,31/035.964/2022,18173,ENCERRADO,(SEJUSP) Secretaria de Estado de Justiça e Segurança Pública,Aquisição de mobiliários em geral para atender as necessidades da Coordenadoria Geral de Perícias/CGP/MS - ARP 069/SAD/2021.1 - Vig 29/09/2022,44905242 - MOBILIARIO EM GERAL,0250000001 - Recursos não Vinculados de Impostos,PREGÃO ELETRÔNICO,"Av. Senador Filinto Muller 1530 V. Ipiranga, 79074-460, C. Grande/MS e R. Cel. Ponciano de Mattos Pereira, nº835, Terra Roxa, 79.840-505 Dourados/MS",29/06/2022,28/06/2023,364,"772352,00000000","965002,00000000",29/06/2022,27/07/2022,10901,38,27/07/2022,0,0,0,0
70,01.236.234/0001-03,G & L INDUSTRIA E COMERCIO LTDA,29/024.148/2020,13781,ENCERRADO,(SED) Secretaria de Estado de Educação,"Aquisição de materiais de limpeza, higienização e equipamentos de proteção individual conforme Anexo I e II, visando atender a os alunos da Rede Estadual de Ensino do Estado de Mato Grosso do Sul, em razão do retono das aulas presenciais na Rede Estadual de Ensino, tais materiais se tornarão indispensáveis para assegurar a proteção aos estudantes e servidores da unidades escolares.",33903028 - MATERIAL DE PROTECAO E SEGURANCA,0103000000 - RECURSOS PROVENIENTE DA LEI N. 2.105/2000,DISPENSA DE LICITAÇÃO LEI 13979/2020,"Rua Delegado José Alfredo Hadman, n. 200 - Parque dos Poderes - Campo Grande/MS",08/07/2020,05/09/2020,59,"1395465,76000000","1395465,76000000",08/07/2020,22/07/2020,10232,17,22/07/2020,0,0,0,0
71,00.029.372/0002-21,GE HEALTHCARE DO BRASIL COMERCIO E SERVICOS PARA EQUIPAMENTOS MEDICO-HOSPITALARES LTDA.,31/001.458/2020,14165,CELEBRADO,(SEJUSP) Secretaria de Estado de Justiça e Segurança Pública,Aquisição de arco cirúrgico para atender a demanda do Instituto de Medicina e Odontologia Legal (IMOL) da Coordenadoria-Geral de Perícias (CGP),44905208 - APAR.EQUIP.UTENS.MEDICO ODONTOL.LAB.HOSPITAL,0259000000 - Transferências do FNSP,DISPENSA DE LICITAÇÃO LEI 13979/2020,"Coordenadoria-Geral de Peícias, Av. Sen. Filinto Müler, 1530 - Vila Ipiranga, Campo Grande - MS, 79074-460. Este estabelecimento funciona de segunda à sexta, das 07:30h às 11:30h e das 13:30h às 17:30h.",02/12/2020,31/03/2021,119,"275000,00000000","275000,00000000",02/12/2020,07/12/2020,10342,16,07/12/2020,0,0,0,0
72,00.029.372/0002-21,GE HEALTHCARE DO BRASIL COMERCIO E SERVICOS PARA EQUIPAMENTOS MEDICO-HOSPITALARES LTDA.,31/001.458/2020,14165,CELEBRADO,(SEJUSP) Secretaria de Estado de Justiça e Segurança Pública,Aquisição de arco cirúrgico para atender a demanda do Instituto de Medicina e Odontologia Legal (IMOL) da Coordenadoria-Geral de Perícias (CGP),44909252 - EQUIPAMENTOS E MATERIAIS PERMANENTES,0259000000 - Transferências do FNSP,DISPENSA DE LICITAÇÃO LEI 13979/2020,"Coordenadoria-Geral de Peícias, Av. Sen. Filinto Müler, 1530 - Vila Ipiranga, Campo Grande - MS, 79074-460. Este estabelecimento funciona de segunda à sexta, das 07:30h às 11:30h e das 13:30h às 17:30h.",02/12/2020,31/03/2021,119,"275000,00000000","275000,00000000",02/12/2020,07/12/2020,10342,16,07/12/2020,0,0,0,0
73,00.596.529/0001-10,GENETICA COMERCIO IMPORTACAO E EXPORTACAO LTDA.,27/002.111/2020,14218,ENCERRADO,(FESA) Fundo Especial de Saúde de Mato Grosso do Sul,Aquisição de Testes sorológicos com equipamento em comodato para o diagnóstico do novo Coronavírus (Sars-cov-2),33903011 - MATERIAL QUIMICO,0248000103 - LC. 172/20 - COVID-19,DISPENSA DE LICITAÇÃO LEI 13979/2020,Conforme Termo de Referencia,28/10/2020,24/02/2021,119,"630000,00000000","630000,00000000",28/10/2020,11/11/2020,10321,16 e 17,11/11/2020,0,0,0,0
74,10.596.721/0001-60,GEORGINI PRODUTOS HOSPITALARES LTDA,27/000.627/2021,14671,ENCERRADO,(FESA) Fundo Especial de Saúde de Mato Grosso do Sul,Aquisição de Seringa e agulhas,33903036 - MATERIAL HOSPITALAR,0248000103 - LC. 172/20 - COVID-19,DISPENSA DE LICITAÇÃO MP 1026/2021,Conforme Termo de Referencia,17/02/2021,16/08/2021,180,"552193,30000000","552193,30000000",17/02/2021,04/03/2021,10427,17,04/03/2021,0,0,0,0
75,10.596.721/0001-60,GEORGINI PRODUTOS HOSPITALARES LTDA,27/000.627/2021,14671,ENCERRADO,(FESA) Fundo Especial de Saúde de Mato Grosso do Sul,Aquisição de Seringa e agulhas,33903036 - MATERIAL HOSPITALAR,0248000114 - PT. 2624/20 - COVID-19,DISPENSA DE LICITAÇÃO MP 1026/2021,Conforme Termo de Referencia,17/02/2021,16/08/2021,180,"552193,30000000","552193,30000000",17/02/2021,04/03/2021,10427,17,04/03/2021,0,0,0,0
76,10.596.721/0001-60,GEORGINI PRODUTOS HOSPITALARES LTDA,27/002.257/2020,14235,ENCERRADO,(FESA) Fundo Especial de Saúde de Mato Grosso do Sul,Aquisição de Álcool Etílico,33903022 - MATERIAL DE LIMPEZA E PROD. DE HIGIENIZACAO,0248000104 - Fonte de Recursos - FESA,DISPENSA DE LICITAÇÃO LEI 13979/2020,"Almoxarifado da SES, Rua Araçá 1495, Morada Verde, Campo Grande, MS.",30/10/2020,27/01/2021,89,"119350,00000000","119350,00000000",30/10/2020,09/11/2020,10319,21,09/11/2020,0,0,0,0
77,10.596.721/0001-60,GEORGINI PRODUTOS HOSPITALARES LTDA,27/005.521/2021,15286,ENCERRADO,(FESA) Fundo Especial de Saúde de Mato Grosso do Sul,Aquisição de seringas para atender a Gerência Técnica de Imunização.,33903036 - MATERIAL HOSPITALAR,0248000002 - Desenvolvimento de ações de vigilância em saúde,PREGÃO ELETRÔNICO,"R. Araçá, 1495. C. Grande/MS",14/07/2021,14/07/2022,365,"575000,00000000","575000,00000000",14/07/2021,04/08/2021,10595,18,04/08/2021,0,0,0,0
78,10.596.721/0001-60,GEORGINI PRODUTOS HOSPITALARES LTDA,27/001.189/2020,13677,ENCERRADO,(FESA) Fundo Especial de Saúde de Mato Grosso do Sul,Aquisição de Correlatos Hospitalares,33903036 - MATERIAL HOSPITALAR,0100000000 - RECURSOS ORDINARIOS DO TESOURO,DISPENSA DE LICITAÇÃO LEI 13979/2020,Conforme Termo de Referencia,09/06/2020,06/10/2020,119,"34905,60000000","34905,60000000",09/06/2020,30/06/2020,10208,26 e 27,30/06/2020,0,0,0,0
79,00.671.994/0001-78,GIROGAZ COMERCIAL DE OXIGÊNIO LTDA.,27/001.308/2020,13691,ENCERRADO,(FESA) Fundo Especial de Saúde de Mato Grosso do Sul,AQUISIÇÃO DE OXIGÊNIO LÍQUIDO COM TANQUE DE CRIOGÊNIO EM COMODATO,33903004 - GAS ENGARRAFADO,0100000000 - RECURSOS ORDINARIOS DO TESOURO,DISPENSA DE LICITAÇÃO LEI 13979/2020,HOSPITAL REGIONAL DE MS,04/06/2020,01/09/2020,89,"29900,00000000","29900,00000000",04/06/2020,19/06/2020,10199,17 e 18,19/06/2020,0,0,0,0
80,EX0000073,GLOCK AMÉRICA S.A. RUT 21/396232/0018,31/038.638/2022,18637,CELEBRADO,(SEJUSP) Secretaria de Estado de Justiça e Segurança Pública,"Processo de aquisição de pistolas semiautomáticas, calibre 9 mm para atender a Polícia Civil /MS.",44905214 - ARMAMENTOS,0100000000 - RECURSOS ORDINARIOS DO TESOURO,"","Av. Desembargador Leão do Carmo Neto, 1203, Jd. Veraneio, Campo Grande / MS - CEP 79031-902",23/09/2022,22/09/2023,364,"4138479,60000000","5133558,30000000",23/09/2022,18/10/2022,10966,62,18/10/2022,0,0,0,0
81,EX0000073,GLOCK AMÉRICA S.A. RUT 21/396232/0018,31/038.638/2022,18637,CELEBRADO,(SEJUSP) Secretaria de Estado de Justiça e Segurança Pública,"Processo de aquisição de pistolas semiautomáticas, calibre 9 mm para atender a Polícia Civil /MS.",44905214 - ARMAMENTOS,0271380011 - FESP-Transferências Fundo a Fundo de Recursos do Fundo de Segurança Pública - FSP,"","Av. Desembargador Leão do Carmo Neto, 1203, Jd. Veraneio, Campo Grande / MS - CEP 79031-902",23/09/2022,22/09/2023,364,"4138479,60000000","5133558,30000000",23/09/2022,18/10/2022,10966,62,18/10/2022,0,0,0,0
82,28.832.656/0001-90,GUARA COMERCIO DE VEICULOS LTDA.,51/000.468/2022,17243,ENCERRADO,(FUNDESPORTE - Inativo - 2022) Fundação de Desporto e Lazer de Mato Grosso do Sul(Inativo),"O objeto do presente Contrato é a aquisição de veículo 0km, modelo passeio tipo hatch, bicombustível, para atender o projeto ''Lazer nas Cidades, Jogos Escolares da Juventude e Melhor Idade'', Convênio n. 22/2021, conforme especificações e quantitativo estabelecido no Termo de Referência e na Proposta de Preços.",44905252 - VEICULOS DE TRACAO MECANICA,0100000000 - RECURSOS ORDINARIOS DO TESOURO,PREGÃO ELETRÔNICO,av. Mato Grosso nº 5778,21/02/2022,21/09/2022,212,"88759,50000000","88759,50000000",21/02/2022,09/03/2022,10773,42,09/03/2022,0,0,0,0
83,28.832.656/0001-90,GUARA COMERCIO DE VEICULOS LTDA.,51/000.468/2022,17243,ENCERRADO,(FUNDESPORTE - Inativo - 2022) Fundação de Desporto e Lazer de Mato Grosso do Sul(Inativo),"O objeto do presente Contrato é a aquisição de veículo 0km, modelo passeio tipo hatch, bicombustível, para atender o projeto ''Lazer nas Cidades, Jogos Escolares da Juventude e Melhor Idade'', Convênio n. 22/2021, conforme especificações e quantitativo estabelecido no Termo de Referência e na Proposta de Preços.",44905252 - VEICULOS DE TRACAO MECANICA,0103000000 - RECURSOS PROVENIENTE DA LEI N. 2.105/2000,PREGÃO ELETRÔNICO,av. Mato Grosso nº 5778,21/02/2022,21/09/2022,212,"88759,50000000","88759,50000000",21/02/2022,09/03/2022,10773,42,09/03/2022,0,0,0,0
84,32.181.809/0001-53,GUARIÃ COMERCIO E REPRESENTACAO DE PRODUTOS HOSPITALARES LTDA.,27/001.188/2020,13644,ENCERRADO,(FESA) Fundo Especial de Saúde de Mato Grosso do Sul,"Aquisição de correlatos hospitalares: luva, seringa, sonda, touca, sistema de drenagem",33903036 - MATERIAL HOSPITALAR,0100000000 - RECURSOS ORDINARIOS DO TESOURO,DISPENSA DE LICITAÇÃO LEI 13979/2020,Conforme Termo de Referencia,10/06/2020,07/10/2020,119,"241486,00000000","241486,00000000",10/06/2020,01/07/2020,10209,19,01/07/2020,0,0,0,0
85,12.063.265/0001-18,HACKLAB SERVIÇOS DE TECNOLOGIA EM INFORMATICA LTDA EPP,51/700.185/2020,14073,CELEBRADO,(FCMS (INATIVO)) Fundação de Cultura de Mato Grosso do Sul(Inativo),Contratação de empresa especializada em serviços Técnicos Profissionais na área de Tecnologia da Informação  e Comunicação TIC.,33904005 - Serviços Técnicos Profissionais em TI,0100000000 - RECURSOS ORDINARIOS DO TESOURO,DISPENSA DE LICITAÇÃO LEI 13979/2020,"SUPERINTENDÊNCIA DE GESTÃO DA INFORMAÇÃO  Rua Delegado Osmar de Camargo, s/n   Parque dos Poderes  CEP 79037-104  Campo Grande/MS",17/09/2020,17/03/2021,181,"127500,00000000","127500,00000000",17/09/2020,25/09/2020,10287,29,25/09/2020,0,0,0,0
86,12.063.265/0001-18,HACKLAB SERVIÇOS DE TECNOLOGIA EM INFORMATICA LTDA EPP,51/700.185/2020,14073,CELEBRADO,(FCMS (INATIVO)) Fundação de Cultura de Mato Grosso do Sul(Inativo),Contratação de empresa especializada em serviços Técnicos Profissionais na área de Tecnologia da Informação  e Comunicação TIC.,33909240 - Serviços de Tecnologia da Informação e Comunicação-Pessoa Jurídica,0100000000 - RECURSOS ORDINARIOS DO TESOURO,DISPENSA DE LICITAÇÃO LEI 13979/2020,"SUPERINTENDÊNCIA DE GESTÃO DA INFORMAÇÃO  Rua Delegado Osmar de Camargo, s/n   Parque dos Poderes  CEP 79037-104  Campo Grande/MS",17/09/2020,17/03/2021,181,"127500,00000000","127500,00000000",17/09/2020,25/09/2020,10287,29,25/09/2020,0,0,0,0
87,20.220.317/0001-40,HD - MIYAHARA COMERCIO E SERVICOS LTDA,27/001.189/2020,13674,ENCERRADO,(FESA) Fundo Especial de Saúde de Mato Grosso do Sul,Aquisição de Correlatos Hospitalares,33903036 - MATERIAL HOSPITALAR,0100000000 - RECURSOS ORDINARIOS DO TESOURO,DISPENSA DE LICITAÇÃO LEI 13979/2020,Conforme Termo de Referencia,09/06/2020,06/10/2020,119,"20160,00000000","20160,00000000",09/06/2020,30/06/2020,10208,25,30/06/2020,0,0,0,0
88,19.570.720/0007-06,HIPOLABOR FARMACEUTICA LTDA,27/000.855/2021,14862,ENCERRADO,(FESA) Fundo Especial de Saúde de Mato Grosso do Sul,Aquisição de medicamentos para atender a CAFB.,33903219 - Medicamentos e Materiais Médico- Hospitalares,0100000000 - RECURSOS ORDINARIOS DO TESOURO,"","DMB - Rua Delegado Osmar de Camargo, S/N",24/03/2021,23/09/2021,183,"481637,09000000","601860,79000000",24/03/2021,15/04/2021,10474,42 e 43,15/04/2021,0,0,0,0
89,19.570.720/0007-06,HIPOLABOR FARMACEUTICA LTDA,27/000.855/2021,14862,ENCERRADO,(FESA) Fundo Especial de Saúde de Mato Grosso do Sul,Aquisição de medicamentos para atender a CAFB.,33903219 - Medicamentos e Materiais Médico- Hospitalares,0248000103 - LC. 172/20 - COVID-19,"","DMB - Rua Delegado Osmar de Camargo, S/N",24/03/2021,23/09/2021,183,"481637,09000000","601860,79000000",24/03/2021,15/04/2021,10474,42 e 43,15/04/2021,0,0,0,0
90,11.192.559/0001-87,HOSP BIO INDUSTRIA E COMERCIO DE MÓVEIS HOSPITALARES EIRELI EPP,27/001.361/2020,13663,ENCERRADO,(FESA) Fundo Especial de Saúde de Mato Grosso do Sul,Aquisição de Cama Hospitalar com colchão,44905208 - APAR.EQUIP.UTENS.MEDICO ODONTOL.LAB.HOSPITAL,0100000000 - RECURSOS ORDINARIOS DO TESOURO,DISPENSA DE LICITAÇÃO LEI 13979/2020,Conforme Termo de Referencia,28/05/2020,23/11/2020,179,"1280000,00000000","1280000,00000000",28/05/2020,08/06/2020,10191,8,08/06/2020,0,0,0,0
91,05.743.288/0001-08,HOSPCOM EQUIPAMENTOS HOSPITALARES LTDA,27/000.904/2020,13372,ENCERRADO,(FESA) Fundo Especial de Saúde de Mato Grosso do Sul,Aquisição de ventilador pulmonar,44905208 - APAR.EQUIP.UTENS.MEDICO ODONTOL.LAB.HOSPITAL,0100000000 - RECURSOS ORDINARIOS DO TESOURO,DISPENSA DE LICITAÇÃO LEI 13979/2020,Almoxarifado central,31/03/2020,30/09/2020,183,"1485000,00000000","1485000,00000000",31/03/2020,17/04/2020,10151,11 e 12,17/04/2020,0,0,0,0
92,26.921.908/0002-02,HOSPFAR INDUSTRIA E COMÉRCIO DE PRODUTOS HOSPITALARES S.A,27/004.721/2021,15536,ENCERRADO,(FESA) Fundo Especial de Saúde de Mato Grosso do Sul,Aquisição de medicamentos que compõem o ''Kit intubação'',33903219 - Medicamentos e Materiais Médico- Hospitalares,0248000125 - PT. 3896/20 - COVID-19,DISPENSA DE LICITAÇÃO MP 1047/2021,Conforme Termo de Referencia,11/08/2021,08/12/2021,119,"36000,00000000","36000,00000000",11/08/2021,27/08/2021,10618,25,27/08/2021,0,0,0,0
93,17.174.657/0001-78,HYPOFARMA INSTITUTO DE HYPODERMIA E FARMÁCIA LTDA.,27/000.863/2021,14863,ENCERRADO,(FESA) Fundo Especial de Saúde de Mato Grosso do Sul,Aquisição de medicamentos para atender a CAFB.,33903219 - Medicamentos e Materiais Médico- Hospitalares,0100000000 - RECURSOS ORDINARIOS DO TESOURO,"","DMB - Rua Delegado Osmar de Camargo, S/N",10/05/2021,09/11/2021,183,"299388,70000000","374233,10000000",10/05/2021,24/05/2021,10516,19,24/05/2021,0,0,0,0
94,17.174.657/0001-78,HYPOFARMA INSTITUTO DE HYPODERMIA E FARMÁCIA LTDA.,27/000.863/2021,14863,ENCERRADO,(FESA) Fundo Especial de Saúde de Mato Grosso do Sul,Aquisição de medicamentos para atender a CAFB.,33903219 - Medicamentos e Materiais Médico- Hospitalares,0248000103 - LC. 172/20 - COVID-19,"","DMB - Rua Delegado Osmar de Camargo, S/N",10/05/2021,09/11/2021,183,"299388,70000000","374233,10000000",10/05/2021,24/05/2021,10516,19,24/05/2021,0,0,0,0
95,78.589.504/0001-86,INDREL INDÚSTRIA DE REFRIGERAÇÃO LONDRINENSE LTDA,27/001.207/2020,13601,ENCERRADO,(FESA) Fundo Especial de Saúde de Mato Grosso do Sul,"Aquisição de ultrafreezers para armazenamento de amostras e insumos para realização de exames pela metodologia de Biologia Molecular, entre eles o diagnóstico de Coronavírus por dispensa de licitação, a fim de atender o Boletim Epidemiológico n. 01 do Centro de Operações de Emergências em Saúde Pública do Ministério da Saúde - Infecção Humana pelo Novo Coronavírus (2019-nCoV).",44905208 - APAR.EQUIP.UTENS.MEDICO ODONTOL.LAB.HOSPITAL,0248000082 - PT. 1622/19  - Investimento LACEN,DISPENSA DE LICITAÇÃO LEI 13979/2020,"Laboratório Central de Saúde Pública de Mato Grosso do Sul (Lacen/MS) na Av. Senador Filinto Muller 1666, Vila Ipiranga, Campo Grande - MS, fone: (67) 3345-1309.",25/05/2020,20/11/2020,179,"164000,00000000","164000,00000000",25/05/2020,26/06/2020,10205,19,26/06/2020,0,0,0,0
96,78.589.504/0001-86,INDREL INDÚSTRIA DE REFRIGERAÇÃO LONDRINENSE LTDA,27/001.388/2020,13747,ENCERRADO,(FESA) Fundo Especial de Saúde de Mato Grosso do Sul,AQUISIÇÃO DE FREEZERS,44905208 - APAR.EQUIP.UTENS.MEDICO ODONTOL.LAB.HOSPITAL,0100000000 - RECURSOS ORDINARIOS DO TESOURO,DISPENSA DE LICITAÇÃO LEI 13979/2020,"ALMOXARIFADO DA SES: RUA ARAÇÁ, 1495 - MORADA VERDE - CAMPO GRANDE/MS",30/06/2020,27/09/2020,89,"51000,00000000","51000,00000000",30/06/2020,23/07/2020,10233,15 e 16,23/07/2020,0,0,0,0
97,59.309.302/0001-99,INJEX INDÚSTRIAS CIRÚRGICAS LTDA.,27/001.188/2020,13649,ENCERRADO,(FESA) Fundo Especial de Saúde de Mato Grosso do Sul,"Aquisição de correlatos hospitalares: luva, seringa, sonda, touca, sistema de drenagem",33903036 - MATERIAL HOSPITALAR,0100000000 - RECURSOS ORDINARIOS DO TESOURO,DISPENSA DE LICITAÇÃO LEI 13979/2020,Conforme Termo de Referencia,17/06/2020,14/10/2020,119,"142397,00000000","142397,00000000",17/06/2020,01/07/2020,10209,16 e 17,01/07/2020,0,0,0,0
98,23.239.321/0001-49,JKLAB PRODUTOS E SOLUCOES PARA LABORATORIOS LTDA.,27/001.129/2020,13726,ENCERRADO,(FESA) Fundo Especial de Saúde de Mato Grosso do Sul,"Aquisição insumos e materiais laboratoriais: swab, plastico para laboratório, ponteira",33903035 - MATERIAL LABORATORIAL,0100000000 - RECURSOS ORDINARIOS DO TESOURO,DISPENSA DE LICITAÇÃO LEI 13979/2020,"Almoxarifado Central das 08:00 às 15:00h, sito a Rua Araçá 1495, Bairro Coronel Antonino, Campo Grande, MS",24/06/2020,21/09/2020,89,"256430,00000000","256430,00000000",24/06/2020,22/07/2020,10232,20 e 21,22/07/2020,0,0,0,0
99,23.239.321/0001-49,JKLAB PRODUTOS E SOLUCOES PARA LABORATORIOS LTDA.,27/001.129/2020,13557,ENCERRADO,(FESA) Fundo Especial de Saúde de Mato Grosso do Sul,"Aquisição insumos e materiais laboratoriais: swab, plastico para laboratório, ponteira",33903035 - MATERIAL LABORATORIAL,0100000000 - RECURSOS ORDINARIOS DO TESOURO,DISPENSA DE LICITAÇÃO LEI 13979/2020,"Almoxarifado Central das 08:00 às 15:00h, sito a Rua Araçá 1495, Bairro Coronel Antonino, Campo Grande, MS",27/05/2020,22/11/2020,179,"205927,20000000","205927,20000000",27/05/2020,19/06/2020,10199,17,19/06/2020,0,0,0,0
100,59.231.530/0001-93,KOLPLAST C I LTDA,27/001.393/2020,13717,ENCERRADO,(FESA) Fundo Especial de Saúde de Mato Grosso do Sul,AQUISICAÇÃO DE SWAB TIPO FLOCK,33903035 - MATERIAL LABORATORIAL,0100000000 - RECURSOS ORDINARIOS DO TESOURO,DISPENSA DE LICITAÇÃO LEI 13979/2020,"LACEN - AV. SENADOR FILINTO MULLER, 1666 - VILA IPIRANGA - CAMPO GRANDE/MS",16/06/2020,13/09/2020,89,"127600,00000000","127600,00000000",16/06/2020,19/06/2020,10199,18,19/06/2020,0,0,0,0
101,17.159.229/0001-76,LABORATÓRIO TEUTO BRASILEIRO S/A,27/000.853/2021,14844,ENCERRADO,(FESA) Fundo Especial de Saúde de Mato Grosso do Sul,Aquisição de medicamentos para atender a CAFB.,33903219 - Medicamentos e Materiais Médico- Hospitalares,0100000000 - RECURSOS ORDINARIOS DO TESOURO,"","DMB - Rua Delegado Osmar de Camargo, S/N",31/03/2021,28/11/2021,242,"481559,68000000","556731,02000000",31/03/2021,12/04/2021,10471,9,12/04/2021,0,0,0,0
102,17.159.229/0001-76,LABORATÓRIO TEUTO BRASILEIRO S/A,27/000.853/2021,14844,ENCERRADO,(FESA) Fundo Especial de Saúde de Mato Grosso do Sul,Aquisição de medicamentos para atender a CAFB.,33903219 - Medicamentos e Materiais Médico- Hospitalares,0248000103 - LC. 172/20 - COVID-19,"","DMB - Rua Delegado Osmar de Camargo, S/N",31/03/2021,28/11/2021,242,"481559,68000000","556731,02000000",31/03/2021,12/04/2021,10471,9,12/04/2021,0,0,0,0
103,63.067.904/0002-35,LIFE TECHNOLOGIES BRASIL COM. E IND. DE PROD. PARA BIOTECNOLOGIA LTDA.,27/001.950/2020,14024,ENCERRADO,(FESA) Fundo Especial de Saúde de Mato Grosso do Sul,"Manutenção Corretiva com troca de peças de Termociclador marca ABI 7500-Applied Biosystems, a fim de atender demanda do LACEN/MS",33903025 - MATERIAL P/ MANUTENCAO DE BENS MOVEIS,0248000103 - LC. 172/20 - COVID-19,INEXIGIBILIDADE LEI 13979/2020,Conforme Termo de Referencia,09/09/2020,07/03/2021,179,"22995,44000000","22995,44000000",09/09/2020,05/10/2020,10295,6,05/10/2020,0,0,0,0
104,63.067.904/0002-35,LIFE TECHNOLOGIES BRASIL COM. E IND. DE PROD. PARA BIOTECNOLOGIA LTDA.,27/001.950/2020,14024,ENCERRADO,(FESA) Fundo Especial de Saúde de Mato Grosso do Sul,"Manutenção Corretiva com troca de peças de Termociclador marca ABI 7500-Applied Biosystems, a fim de atender demanda do LACEN/MS",33903917 - MANUT. E CONSERV. DE MAQUINAS E EQUIPAMENTOS,0248000103 - LC. 172/20 - COVID-19,INEXIGIBILIDADE LEI 13979/2020,Conforme Termo de Referencia,09/09/2020,07/03/2021,179,"22995,44000000","22995,44000000",09/09/2020,05/10/2020,10295,6,05/10/2020,0,0,0,0
105,63.067.904/0002-35,LIFE TECHNOLOGIES BRASIL COM. E IND. DE PROD. PARA BIOTECNOLOGIA LTDA.,27/001.208/2020,13590,ENCERRADO,(FESA) Fundo Especial de Saúde de Mato Grosso do Sul,"Aquisição de termociclador para amplificação de DNA e RNA, a fim de realizar o diagnóstico de Coronavírus, Influenza e outros agravos em amostras recebidas no Lacen/MS  Laboratório de Saúde Pública de Mato Grosso do Sul oriundas dos 79 municípios de Mato Grosso do Sul, a fim de atender o Boletim Epidemiológico n. 01 do Centro de Operações de Emergências em Saúde Pública do Ministério da Saúde - Infecção Humana pelo Novo Coronavírus (2019-nCoV).",44905208 - APAR.EQUIP.UTENS.MEDICO ODONTOL.LAB.HOSPITAL,0248000082 - PT. 1622/19  - Investimento LACEN,DISPENSA DE LICITAÇÃO LEI 13979/2020,"Lacen/MS - sito a Rua Av. Senador Filinto Muller, 1666, Vila Ipiranga, Campo Grande, MS, fone: (67) 3345-1309",29/05/2020,24/11/2020,179,"220000,00000000","220000,00000000",29/05/2020,26/06/2020,10205,18 e 19,26/06/2020,0,0,0,0
106,63.067.904/0006-69,LIFE TECHNOLOGIES BRASIL COMERCIO E INDUSTRIA DE PRODUTOS PARA BIOTECNOLOGIA LTDA,27/001.437/2020,13737,ENCERRADO,(FESA) Fundo Especial de Saúde de Mato Grosso do Sul,"Aquisição de equipamentos para detectar material genético para análise de vírus, visando atender a demanda do LACEN/MS nos exames de coronavírus e outros vírus respiratórios tendo em vista a pandemia de SARS-CoV-2.",44905208 - APAR.EQUIP.UTENS.MEDICO ODONTOL.LAB.HOSPITAL,0100000000 - RECURSOS ORDINARIOS DO TESOURO,DISPENSA DE LICITAÇÃO LEI 13979/2020,Conforme Termo de Referencia,24/06/2020,21/09/2020,89,"457704,80000000","457704,80000000",24/06/2020,16/07/2020,10227,27,16/07/2020,0,0,0,0
107,13.967.200/0001-60,"M.X.A REPRESENTACAO COMERCIAL, COMERCIO E SERVIÇOS LTDA EPP",27/001.441/2020,13724,ENCERRADO,(FESA) Fundo Especial de Saúde de Mato Grosso do Sul,AQUISIÇÃO DE MÁSCARAS DE TECIDO,33903209 - Vestuários e Afins,0103000000 - RECURSOS PROVENIENTE DA LEI N. 2.105/2000,DISPENSA DE LICITAÇÃO LEI 13979/2020,"ALMOXARIFADO DA SES - RUA ARAÇÁ, 1495 - MORADA VERDE - CAMPO GRANDE/MS",17/06/2020,14/10/2020,119,"3150000,00000000","3150000,00000000",17/06/2020,02/07/2020,10210,25,02/07/2020,0,0,0,0
108,24.259.043/0001-54,"MAIORCA SOLUCOES EM SAUDE, SEGURANCA E PADRONIZACAO LTDA.",27/001.809/2020,13946,ENCERRADO,(FESA) Fundo Especial de Saúde de Mato Grosso do Sul,Aquisição de equipamentos para montar leitos de UTI,44905208 - APAR.EQUIP.UTENS.MEDICO ODONTOL.LAB.HOSPITAL,0240000000 - RECURSOS DIRETAMENTE ARRECADADOS,DISPENSA DE LICITAÇÃO LEI 13979/2020,Conforme Termo de Referencia,21/08/2020,18/12/2020,119,"97951,32000000","97951,32000000",21/08/2020,03/09/2020,10270,4 e 5,03/09/2020,0,0,0,0
109,24.259.043/0001-54,"MAIORCA SOLUCOES EM SAUDE, SEGURANCA E PADRONIZACAO LTDA.",27/005.912/2021,15559,ENCERRADO,(FESA) Fundo Especial de Saúde de Mato Grosso do Sul,Aquisição de Câmaras Refrigeradores para atender a DGVS.,33903209 - Vestuários e Afins,0248000110 - PT 3157/19 - Investimentos Rede Frio,PREGÃO ELETRÔNICO,"R. Araçá, 1495. C. Grande/MS",01/09/2021,31/08/2022,364,"333576,00000000","333576,00000000",01/09/2021,27/09/2021,10643,88,27/09/2021,0,0,0,0
110,24.259.043/0001-54,"MAIORCA SOLUCOES EM SAUDE, SEGURANCA E PADRONIZACAO LTDA.",27/001.211/2020,13602,ENCERRADO,(FESA) Fundo Especial de Saúde de Mato Grosso do Sul,Aquisição de Gorro Cirúrgico e Óculos de Proteção,33903028 - MATERIAL DE PROTECAO E SEGURANCA,0100000000 - RECURSOS ORDINARIOS DO TESOURO,DISPENSA DE LICITAÇÃO LEI 13979/2020,"Almoxarifado da Secretaria de Estado de Saúde, Endereço: Rua Araçá, 1495  Morada Verde  CEP: 79013-600 - Campo Grande/MS",25/05/2020,22/08/2020,89,"77500,00000000","77500,00000000",25/05/2020,08/06/2020,10191,7,08/06/2020,0,0,0,0
111,24.259.043/0001-54,"MAIORCA SOLUCOES EM SAUDE, SEGURANCA E PADRONIZACAO LTDA.",27/001.188/2020,13646,ENCERRADO,(FESA) Fundo Especial de Saúde de Mato Grosso do Sul,"Aquisição de correlatos hospitalares: luva, seringa, sonda, touca, sistema de drenagem",33903036 - MATERIAL HOSPITALAR,0100000000 - RECURSOS ORDINARIOS DO TESOURO,DISPENSA DE LICITAÇÃO LEI 13979/2020,Conforme Termo de Referencia,09/06/2020,06/10/2020,119,"81238,40000000","81238,40000000",09/06/2020,01/07/2020,10209,18,01/07/2020,0,0,0,0
112,24.259.043/0001-54,"MAIORCA SOLUCOES EM SAUDE, SEGURANCA E PADRONIZACAO LTDA.",27/001.300/2020,13660,ENCERRADO,(FESA) Fundo Especial de Saúde de Mato Grosso do Sul,"Aquisição de Caixa térmica, escada hospitalar e suporte de soro",44905208 - APAR.EQUIP.UTENS.MEDICO ODONTOL.LAB.HOSPITAL,0100000000 - RECURSOS ORDINARIOS DO TESOURO,DISPENSA DE LICITAÇÃO LEI 13979/2020,conforme termo de referência,28/05/2020,23/11/2020,179,"17850,00000000","17850,00000000",28/05/2020,05/06/2020,10190,22 e 23,05/06/2020,0,0,0,0
113,24.259.043/0001-54,"MAIORCA SOLUCOES EM SAUDE, SEGURANCA E PADRONIZACAO LTDA.",27/001.189/2020,13676,ENCERRADO,(FESA) Fundo Especial de Saúde de Mato Grosso do Sul,Aquisição de Correlatos Hospitalares,33903036 - MATERIAL HOSPITALAR,0100000000 - RECURSOS ORDINARIOS DO TESOURO,DISPENSA DE LICITAÇÃO LEI 13979/2020,Conforme Termo de Referencia,09/06/2020,06/10/2020,119,"4860,00000000","4860,00000000",09/06/2020,30/06/2020,10208,26,30/06/2020,0,0,0,0
114,24.259.043/0001-54,"MAIORCA SOLUCOES EM SAUDE, SEGURANCA E PADRONIZACAO LTDA.",27/001.187/2020,13670,ENCERRADO,(FESA) Fundo Especial de Saúde de Mato Grosso do Sul,Aquisição de Correlatos Hospitalares,33903036 - MATERIAL HOSPITALAR,0100000000 - RECURSOS ORDINARIOS DO TESOURO,DISPENSA DE LICITAÇÃO LEI 13979/2020,Conforme Termo de Referencia,28/05/2020,23/11/2020,179,"2600,00000000","2600,00000000",28/05/2020,09/06/2020,10192,26,09/06/2020,0,0,0,0
115,24.259.043/0001-54,"MAIORCA SOLUCOES EM SAUDE, SEGURANCA E PADRONIZACAO LTDA.",27/001.533/2020,13775,ENCERRADO,(FESA) Fundo Especial de Saúde de Mato Grosso do Sul,"Aquisição de material laboratorial  Swab, Tubo Falcon e Tubo criogênico",33903035 - MATERIAL LABORATORIAL,0103000000 - RECURSOS PROVENIENTE DA LEI N. 2.105/2000,DISPENSA DE LICITAÇÃO LEI 13979/2020,Conforme Termo de Referencia,10/07/2020,07/10/2020,89,"6966,00000000","6966,00000000",10/07/2020,16/07/2020,10227,28,16/07/2020,0,0,0,0
116,03.201.601/0001-50,MEDLAB PRODUTOS PARA LABORATORIO LTDA - EPP,27/001.892/2020,14056,ENCERRADO,(FESA) Fundo Especial de Saúde de Mato Grosso do Sul,"Aquisição de Materiais Hospitalares para atender as Demandas da SES, HRMS e Hemosul.",33903036 - MATERIAL HOSPITALAR,0248000103 - LC. 172/20 - COVID-19,DISPENSA DE LICITAÇÃO LEI 13979/2020,Conforme Termo de Referencia,16/09/2020,13/01/2021,119,"165375,00000000","165375,00000000",16/09/2020,30/09/2020,10291,45,30/09/2020,0,0,0,0
117,03.201.601/0001-50,MEDLAB PRODUTOS PARA LABORATORIO LTDA - EPP,27/001.211/2020,13603,ENCERRADO,(FESA) Fundo Especial de Saúde de Mato Grosso do Sul,Aquisição de Gorro Cirúrgico e Óculos de Proteção,33903028 - MATERIAL DE PROTECAO E SEGURANCA,0100000000 - RECURSOS ORDINARIOS DO TESOURO,DISPENSA DE LICITAÇÃO LEI 13979/2020,"Almoxarifado da Secretaria de Estado de Saúde, Endereço: Rua Araçá, 1495  Morada Verde  CEP: 79013-600 - Campo Grande/MS",25/05/2020,22/08/2020,89,"19500,00000000","19500,00000000",25/05/2020,08/06/2020,10191,7,08/06/2020,0,0,0,0
118,03.201.601/0001-50,MEDLAB PRODUTOS PARA LABORATORIO LTDA - EPP,27/001.533/2020,13776,ENCERRADO,(FESA) Fundo Especial de Saúde de Mato Grosso do Sul,"Aquisição de material laboratorial  Swab, Tubo Falcon e Tubo criogênico",33903035 - MATERIAL LABORATORIAL,0103000000 - RECURSOS PROVENIENTE DA LEI N. 2.105/2000,DISPENSA DE LICITAÇÃO LEI 13979/2020,Conforme Termo de Referencia,10/07/2020,06/11/2020,119,"23400,00000000","23400,00000000",10/07/2020,16/07/2020,10227,28 e 29,16/07/2020,0,0,0,0
119,07.729.499/0001-11,MEGA COMÉRCIO DE PRODUTOS HOSPITALARES LTDA,27/000.989/2020,13429,ENCERRADO,(FESA) Fundo Especial de Saúde de Mato Grosso do Sul,"Aquisição de correlatos hospitalares para atender a demanda da Secretaria de Estado de Saúde, em razão de se cuidarem de equipamentos de proteção individual (EPIs)",33903036 - MATERIAL HOSPITALAR,0248000002 - Desenvolvimento de ações de vigilância em saúde,DISPENSA DE LICITAÇÃO LEI 13979/2020,"Endereço: Rua Araçá, 1495  Morada Verde  CEP: 79013-600 - Campo Grande/MS",13/04/2020,09/10/2020,179,"599800,00000000","599800,00000000",13/04/2020,17/04/2020,10151,12,17/04/2020,0,0,0,0
120,07.729.499/0001-11,MEGA COMÉRCIO DE PRODUTOS HOSPITALARES LTDA,27/001.120/2020,13539,ENCERRADO,(FESA) Fundo Especial de Saúde de Mato Grosso do Sul,Aquisição de correlatos hospitalares para atender a demanda da Secretaria de Estado de Saúde: mascara hospitalar,33903036 - MATERIAL HOSPITALAR,0100000000 - RECURSOS ORDINARIOS DO TESOURO,DISPENSA DE LICITAÇÃO LEI 13979/2020,"Rua Araçá, 1495  Morada Verde  CEP: 79013-600 - Campo Grande/MS",15/05/2020,10/11/2020,179,"560000,00000000","560000,00000000",15/05/2020,21/05/2020,10177,10 e 11,21/05/2020,0,0,0,0
121,07.729.499/0001-11,MEGA COMÉRCIO DE PRODUTOS HOSPITALARES LTDA,29/019.961/2020,13495,ENCERRADO,(SED) Secretaria de Estado de Educação,Aquisição de máscara hospitalar descartável,33903036 - MATERIAL HOSPITALAR,0100000000 - RECURSOS ORDINARIOS DO TESOURO,DISPENSA DE LICITAÇÃO LEI 13979/2020,"Rua Delegado José Alfredo Hadman, nº 200 - Parque dos Poderes",28/04/2020,26/07/2020,89,"218880,00000000","218880,00000000",28/04/2020,05/05/2020,10160,13,05/05/2020,0,0,0,0
122,33.069.212/0008-50,MERCK S/A.,27/001.942/2020,14175,ENCERRADO,(FESA) Fundo Especial de Saúde de Mato Grosso do Sul,Manutenção Corretiva com troca de peças e consumíveis do sistema de Ultrapurificação de água,33903025 - MATERIAL P/ MANUTENCAO DE BENS MOVEIS,0248000103 - LC. 172/20 - COVID-19,DISPENSA DE LICITAÇÃO LEI 13979/2020,Conforme Termo de Referencia,29/10/2020,26/04/2021,179,"36294,55000000","36294,55000000",29/10/2020,13/11/2020,10323,13,13/11/2020,0,0,0,0
123,33.069.212/0008-50,MERCK S/A.,27/001.942/2020,14175,ENCERRADO,(FESA) Fundo Especial de Saúde de Mato Grosso do Sul,Manutenção Corretiva com troca de peças e consumíveis do sistema de Ultrapurificação de água,33903917 - MANUT. E CONSERV. DE MAQUINAS E EQUIPAMENTOS,0248000103 - LC. 172/20 - COVID-19,DISPENSA DE LICITAÇÃO LEI 13979/2020,Conforme Termo de Referencia,29/10/2020,26/04/2021,179,"36294,55000000","36294,55000000",29/10/2020,13/11/2020,10323,13,13/11/2020,0,0,0,0
124,24.595.488/0001-05,MS SAUDE DISTRIBUIDORA DE MATERIAL HOSPITALAR LTDA,27/001.809/2020,13947,ENCERRADO,(FESA) Fundo Especial de Saúde de Mato Grosso do Sul,Aquisição de equipamentos para montar leitos de UTI,44905208 - APAR.EQUIP.UTENS.MEDICO ODONTOL.LAB.HOSPITAL,0100000000 - RECURSOS ORDINARIOS DO TESOURO,DISPENSA DE LICITAÇÃO LEI 13979/2020,Conforme Termo de Referencia,31/08/2020,28/12/2020,119,"165704,00000000","165704,00000000",31/08/2020,03/09/2020,10270,5,03/09/2020,0,0,0,0
125,24.595.488/0001-05,MS SAUDE DISTRIBUIDORA DE MATERIAL HOSPITALAR LTDA,27/001.129/2020,13556,ENCERRADO,(FESA) Fundo Especial de Saúde de Mato Grosso do Sul,"Aquisição insumos e materiais laboratoriais: swab, plastico para laboratório, ponteira",33903035 - MATERIAL LABORATORIAL,0100000000 - RECURSOS ORDINARIOS DO TESOURO,DISPENSA DE LICITAÇÃO LEI 13979/2020,"Almoxarifado Central das 08:00 às 15:00h, sito a Rua Araçá 1495, Bairro Coronel Antonino, Campo Grande, MS",12/05/2020,07/11/2020,179,"359630,00000000","359630,00000000",12/05/2020,19/06/2020,10199,16 e 17,19/06/2020,0,0,0,0
126,24.595.488/0001-05,MS SAUDE DISTRIBUIDORA DE MATERIAL HOSPITALAR LTDA,27/001.188/2020,13645,ENCERRADO,(FESA) Fundo Especial de Saúde de Mato Grosso do Sul,"Aquisição de correlatos hospitalares: luva, seringa, sonda, touca, sistema de drenagem",33903036 - MATERIAL HOSPITALAR,0100000000 - RECURSOS ORDINARIOS DO TESOURO,DISPENSA DE LICITAÇÃO LEI 13979/2020,Conforme Termo de Referencia,19/06/2020,16/10/2020,119,"70906,00000000","70906,00000000",19/06/2020,01/07/2020,10209,18,01/07/2020,0,0,0,0
127,24.595.488/0001-05,MS SAUDE DISTRIBUIDORA DE MATERIAL HOSPITALAR LTDA,27/001.189/2020,13680,ENCERRADO,(FESA) Fundo Especial de Saúde de Mato Grosso do Sul,Aquisição de Correlatos Hospitalares,33903036 - MATERIAL HOSPITALAR,0100000000 - RECURSOS ORDINARIOS DO TESOURO,DISPENSA DE LICITAÇÃO LEI 13979/2020,Conforme Termo de Referencia,19/06/2020,16/10/2020,119,"23808,00000000","23808,00000000",19/06/2020,30/06/2020,10208,27,30/06/2020,0,0,0,0
128,23.119.516/0001-55,MULTICONTAINER,27/001.145/2020,13494,ENCERRADO,(FESA) Fundo Especial de Saúde de Mato Grosso do Sul,Contratação de empresa para locação de container refrigerado,33903912 - LOCACAO DE MAQUINAS E EQUIPAMENTOS,0100000000 - RECURSOS ORDINARIOS DO TESOURO,DISPENSA DE LICITAÇÃO LEI 13979/2020,HOSPITAL REGIONAL DE CAMPO GRANDE/MS,03/08/2020,31/10/2020,89,"26610,00000000","26610,00000000",31/07/2020,28/08/2020,10171,33,15/05/2020,0,0,0,0
129,23.119.516/0001-55,MULTICONTAINER,27/001.145/2020,13494,ENCERRADO,(FESA) Fundo Especial de Saúde de Mato Grosso do Sul,Contratação de empresa para locação de container refrigerado,33903912 - LOCACAO DE MAQUINAS E EQUIPAMENTOS,0100000000 - RECURSOS ORDINARIOS DO TESOURO,DISPENSA DE LICITAÇÃO LEI 13979/2020,HOSPITAL REGIONAL DE CAMPO GRANDE/MS,01/11/2020,31/01/2021,91,"26610,00000000","26610,00000000",26/10/2020,13/11/2020,10171,33,15/05/2020,0,0,0,0
130,23.119.516/0001-55,MULTICONTAINER,27/001.145/2020,13494,ENCERRADO,(FESA) Fundo Especial de Saúde de Mato Grosso do Sul,Contratação de empresa para locação de container refrigerado,33903912 - LOCACAO DE MAQUINAS E EQUIPAMENTOS,0100000000 - RECURSOS ORDINARIOS DO TESOURO,DISPENSA DE LICITAÇÃO LEI 13979/2020,HOSPITAL REGIONAL DE CAMPO GRANDE/MS,05/05/2020,02/08/2020,89,"26610,00000000","26610,00000000",05/05/2020,15/05/2020,10171,33,15/05/2020,0,0,0,0
131,21.681.325/0001-57,MULTIFARMA COMERCIO E REPRESENTAÇÕES LTDA,27/000.862/2021,14861,ENCERRADO,(FESA) Fundo Especial de Saúde de Mato Grosso do Sul,Aquisição de medicamentos para atender a CAFB.,33903219 - Medicamentos e Materiais Médico- Hospitalares,0248000103 - LC. 172/20 - COVID-19,"","DMB - Rua Delegado Osmar de Camargo, S/N",08/04/2021,07/10/2021,182,"7737,85000000","9671,55000000",08/04/2021,15/04/2021,10474,43,15/04/2021,0,0,0,0
132,33.839.828/0001-97,NEVE INDUSTRIA E COMERCIO DE PRODUTOS CIRURGICOS LTDA.,27/005.192/2021,15541,ENCERRADO,(FESA) Fundo Especial de Saúde de Mato Grosso do Sul,Aquisição de correlatos hospitalares e soluções e saneantes para atender demanda da SES/MS.,33903036 - MATERIAL HOSPITALAR,0248000125 - PT. 3896/20 - COVID-19,DISPENSA DE LICITAÇÃO MP 1047/2021,Conforme Termo de Referência,27/08/2021,21/02/2022,178,"595030,32000000","595030,32000000",27/08/2021,29/09/2021,10645,41 e 42,29/09/2021,0,0,0,0
133,24.198.128/0001-70,NOVA OPCAO PRODUTOS PARA SAUDE LTDA,27/001.994/2020,14042,ENCERRADO,(FESA) Fundo Especial de Saúde de Mato Grosso do Sul,Aquisição de material laboratorial - Placas de PCR,33903035 - MATERIAL LABORATORIAL,0248000103 - LC. 172/20 - COVID-19,DISPENSA DE LICITAÇÃO LEI 13979/2020,"Almox. SES - Rua Araçá, 1495 - Morada Verde - Campo Grande/MS",17/09/2020,14/01/2021,119,"280000,00000000","280000,00000000",17/09/2020,21/09/2020,10283,5,21/09/2020,0,0,0,0
134,24.198.128/0001-70,NOVA OPCAO PRODUTOS PARA SAUDE LTDA,27/001.189/2020,13678,ENCERRADO,(FESA) Fundo Especial de Saúde de Mato Grosso do Sul,Aquisição de Correlatos Hospitalares,33903036 - MATERIAL HOSPITALAR,0100000000 - RECURSOS ORDINARIOS DO TESOURO,DISPENSA DE LICITAÇÃO LEI 13979/2020,Conforme Termo de Referencia,09/06/2020,06/10/2020,119,"11172,00000000","11172,00000000",09/06/2020,30/06/2020,10208,27,30/06/2020,0,0,0,0
135,24.198.128/0001-70,NOVA OPCAO PRODUTOS PARA SAUDE LTDA,27/101.346/2020,14075,ENCERRADO,(FUNSAU) Fundação Serviços de Saúde de MS,Aquisição de correlatos hospitalares para o Hospital Regional de Mato Grosso do Sul em atendimento a doença COVID 19,33903036 - MATERIAL HOSPITALAR,0240000000 - RECURSOS DIRETAMENTE ARRECADADOS,DISPENSA DE LICITAÇÃO LEI 13979/2020,"Coordenação de Logítica e Suprimentos/FUNSAU - Almoxarifado Avenida Gunter Hans, 2300, Jardim Tijuca, Campo Grande/MS Este estabelecimento funciona de segunda à sexta, das 07:30h às 10:30h e das 13:30h às 16h.",25/09/2020,22/01/2021,119,"63600,00000000","63600,00000000",25/09/2020,28/10/2020,10311,50,28/10/2020,0,0,0,0
136,15.570.386/0001-44,NOVA SAÚDE PRODUTOS MÉDICOS EIRELI,27/001.892/2020,14057,ENCERRADO,(FESA) Fundo Especial de Saúde de Mato Grosso do Sul,"Aquisição de Materiais Hospitalares para atender as Demandas da SES, HRMS e Hemosul.",33903036 - MATERIAL HOSPITALAR,0248000103 - LC. 172/20 - COVID-19,DISPENSA DE LICITAÇÃO LEI 13979/2020,Conforme Termo de Referencia,16/09/2020,13/01/2021,119,"968760,00000000","968760,00000000",16/09/2020,30/09/2020,10291,45 e 46,30/09/2020,0,0,0,0
137,15.570.386/0001-44,NOVA SAÚDE PRODUTOS MÉDICOS EIRELI,27/001.300/2020,13659,ENCERRADO,(FESA) Fundo Especial de Saúde de Mato Grosso do Sul,"Aquisição de Caixa térmica, escada hospitalar e suporte de soro",44905208 - APAR.EQUIP.UTENS.MEDICO ODONTOL.LAB.HOSPITAL,0100000000 - RECURSOS ORDINARIOS DO TESOURO,DISPENSA DE LICITAÇÃO LEI 13979/2020,conforme termo de referência,28/05/2020,23/11/2020,179,"18000,00000000","18000,00000000",28/05/2020,05/06/2020,10190,22,05/06/2020,0,0,0,0
138,09.366.073/0001-76,NOVOS CICLOS PRODUTOS E EQUIPAMENTOS PARA SAÚDE LTDA.,27/000.888/2020,13345,ENCERRADO,(FESA) Fundo Especial de Saúde de Mato Grosso do Sul,Aquisição de ventilador pulmonar portátil.,44905208 - APAR.EQUIP.UTENS.MEDICO ODONTOL.LAB.HOSPITAL,0100000000 - RECURSOS ORDINARIOS DO TESOURO,DISPENSA DE LICITAÇÃO LEI 13979/2020,"Almoxarifado da Secretaria de Estado de Saúde, Endereço: Rua Araçá, 1495  Morada Verde  CEP: 79013-600 - Cidade: Campo Grande  Estado: MS",26/03/2020,25/09/2020,183,"1368375,00000000","1368375,00000000",26/03/2020,31/03/2020,10133,10 e 11,31/03/2020,0,0,0,0
139,09.366.073/0001-76,NOVOS CICLOS PRODUTOS E EQUIPAMENTOS PARA SAÚDE LTDA.,27/001.111/2020,13473,ENCERRADO,(FESA) Fundo Especial de Saúde de Mato Grosso do Sul,Locação de 05 Conjuntos de Equipamento para Leito UTI,33903912 - LOCACAO DE MAQUINAS E EQUIPAMENTOS,0100000000 - RECURSOS ORDINARIOS DO TESOURO,DISPENSA DE LICITAÇÃO LEI 13979/2020,"Almoxarifado da Secretaria de Estado de Saúde, Endereço: Rua Araçá, 1495  Morada Verde  CEP: 79013-600 - Campo Grande/MS",27/04/2020,23/10/2020,179,"720000,00000000","720000,00000000",27/04/2020,07/05/2020,10163,11,07/05/2020,0,0,0,0
140,04.307.650/0015-30,ONCO PROD DIST.DE PROD. HOSP. E ONCO. LTDA (SP),27/000.857/2021,14864,ENCERRADO,(FESA) Fundo Especial de Saúde de Mato Grosso do Sul,Aquisição de medicamentos para atender a CAFB.,33903219 - Medicamentos e Materiais Médico- Hospitalares,0248000103 - LC. 172/20 - COVID-19,"","DMB - Rua Delegado Osmar de Camargo, S/N",29/03/2021,28/09/2021,183,"2962,16000000","2962,16000000",29/03/2021,05/04/2021,10463,8,05/04/2021,0,0,0,0
141,26.145.871/0001-97,OPEN MEDICAL COMERCIO IMPORTAÇÃO EXPORTAÇÃO LTDA,27/005.192/2021,15540,ENCERRADO,(FESA) Fundo Especial de Saúde de Mato Grosso do Sul,Aquisição de correlatos hospitalares e soluções e saneantes para atender demanda da SES/MS.,33903036 - MATERIAL HOSPITALAR,0248000125 - PT. 3896/20 - COVID-19,DISPENSA DE LICITAÇÃO MP 1047/2021,Conforme Termo de Referência,02/09/2021,27/04/2022,237,"88021,80000000","88021,80000000",02/09/2021,29/09/2021,10645,41,29/09/2021,0,0,0,0
142,00.740.696/0001-92,P.M.H. PRODUTOS MÉDICOS HOSPITALARES LTDA.,27/001.506/2020,13728,ENCERRADO,(FESA) Fundo Especial de Saúde de Mato Grosso do Sul,Aquisição de Kits de extração automatizada para diagnóstico do vírus SARS-COV-2.,33903011 - MATERIAL QUIMICO,0103000000 - RECURSOS PROVENIENTE DA LEI N. 2.105/2000,DISPENSA DE LICITAÇÃO LEI 13979/2020,Conforme Termo de Referencia,19/06/2020,16/10/2020,119,"299520,00000000","299520,00000000",19/06/2020,01/07/2020,10209,19 e 20,01/07/2020,0,0,0,0
143,00.384.799/0001-67,PEIXOTO COMÉRCIO IMPORTAÇÃO EXPORTAÇÃO LTDA,71/750.092/2020,14537,ENCERRADO,(FUNDTUR - inativo) Fundação de Turismo de Mato Grosso do Sul ( Inativo),"1.1. O presente Contrato tem por objeto a contratação de empresa para confecção de 507 (quinhentos e sete) barreiras físicas de proteção em acrílico transparente (100% virgem) na espessura de 4 mm no tamanho 120x60 cm para serem fixadas nas laterais de apoio das poltronas já existentes no Auditório Manoel de Barros do Centro de Convenções Arquiteto Rubens Gil de Camillo, conforme descrição contida no Termo de Referência de f. 10-28 que integra para todos os efeitos o presente instrumento.",33903035 - MATERIAL LABORATORIAL,0100000000 - RECURSOS ORDINARIOS DO TESOURO,DISPENSA DE LICITAÇÃO LEI 13979/2020,"Centro de Convenções Arquiteto Rubens Gil de Camillo, Av. Waldir dos Santos Pereira, s/n, Parque dos Poderes, Campo Grande-MS.",05/04/2021,03/07/2021,89,"100000,68000000","100000,68000000",05/04/2021,23/04/2021,10481,53,23/04/2021,0,0,0,0
144,02.213.325/0001-88,PLUGNET COMERCIO E REPRESENTACOES LTDA.,31/056.261/2022,19382,ENCERRADO,(SEJUSP) Secretaria de Estado de Justiça e Segurança Pública,Aquisição de 12 Computadores Forenses para atender ao Instituto de Criminalística Hercílio Macellaro/ICHM/CGP/MS - ADESÃO ARP 032/2021 PE 0108/2021 SEAD/SE - ARP 022/2022-SEJUSP,44905235 - EQUIPAMENTOS DE PROCESSAMENTO DE DADOS,0100000000 - RECURSOS ORDINARIOS DO TESOURO,"","av. Senador Filinto Muller, 1530, Vila Ipiranga, Campo Grande/MS - CEP 79074-460",25/08/2022,24/08/2023,364,"480000,00000000","600000,00000000",25/08/2022,08/09/2022,10934,24,08/09/2022,0,0,0,0
145,02.213.325/0001-88,PLUGNET COMERCIO E REPRESENTACOES LTDA.,31/056.261/2022,19382,ENCERRADO,(SEJUSP) Secretaria de Estado de Justiça e Segurança Pública,Aquisição de 12 Computadores Forenses para atender ao Instituto de Criminalística Hercílio Macellaro/ICHM/CGP/MS - ADESÃO ARP 032/2021 PE 0108/2021 SEAD/SE - ARP 022/2022-SEJUSP,44905235 - EQUIPAMENTOS DE PROCESSAMENTO DE DADOS,0250000001 - Recursos não Vinculados de Impostos,"","av. Senador Filinto Muller, 1530, Vila Ipiranga, Campo Grande/MS - CEP 79074-460",25/08/2022,24/08/2023,364,"480000,00000000","600000,00000000",25/08/2022,08/09/2022,10934,24,08/09/2022,0,0,0,0
146,27.325.768/0001-91,PREMIUM HOSPITALAR EIRELI-ME,27/005.289/2021,15552,ENCERRADO,(FUNSAU) Fundação Serviços de Saúde de MS,Aquisição de Avental descartável.,33903036 - MATERIAL HOSPITALAR,0240000000 - RECURSOS DIRETAMENTE ARRECADADOS,DISPENSA DE LICITAÇÃO MP 1047/2021,"Almoxarifado, Avenida Gunter Hans, 3702, Jardim Tijuca 2, Campo Grande/MS.",06/08/2021,02/02/2022,180,"267188,04000000","267188,04000000",06/08/2021,31/08/2021,10621,60 e 61,31/08/2021,0,0,0,0
147,12.109.814/0001-48,"PRIME CLEAN COMERCIO, LOCACAO E SERVICOS TERCEIRIZADOS LTDA",27/001.215/2020,13714,ENCERRADO,(FESA) Fundo Especial de Saúde de Mato Grosso do Sul,"Contratação de empresa especializada na prestação de serviços de limpeza, desinfecção e conservação",33903702 - LIMPEZA E CONSERVACAO,0100000000 - RECURSOS ORDINARIOS DO TESOURO,DISPENSA DE LICITAÇÃO LEI 13979/2020,conforme termo de referência,17/06/2020,14/09/2020,89,"773960,82000000","773960,82000000",17/06/2020,27/07/2020,10236,10 e 11,27/07/2020,0,0,0,0
148,32.739.719/0001-35,PRIME COMERCIO DE MOVEIS E SERVIÇOS LTDA,29/024.148/2020,13782,ENCERRADO,(SED) Secretaria de Estado de Educação,"Aquisição de materiais de limpeza, higienização e equipamentos de proteção individual conforme Anexo I e II, visando atender a os alunos da Rede Estadual de Ensino do Estado de Mato Grosso do Sul, em razão do retono das aulas presenciais na Rede Estadual de Ensino, tais materiais se tornarão indispensáveis para assegurar a proteção aos estudantes e servidores da unidades escolares.",33903035 - MATERIAL LABORATORIAL,0103000000 - RECURSOS PROVENIENTE DA LEI N. 2.105/2000,DISPENSA DE LICITAÇÃO LEI 13979/2020,"Rua Delegado José Alfredo Hadman, n. 200 - Parque dos Poderes - Campo Grande/MS",08/07/2020,05/09/2020,59,"313960,00000000","313960,00000000",08/07/2020,22/07/2020,10232,17,22/07/2020,0,0,0,0
149,66.783.630/0002-79,PRO LIFE EQUIPAMENTOS MÉDICOS EIRELI,27/001.809/2020,13945,ENCERRADO,(FESA) Fundo Especial de Saúde de Mato Grosso do Sul,Aquisição de equipamentos para montar leitos de UTI,44905208 - APAR.EQUIP.UTENS.MEDICO ODONTOL.LAB.HOSPITAL,0240000000 - RECURSOS DIRETAMENTE ARRECADADOS,DISPENSA DE LICITAÇÃO LEI 13979/2020,Conforme Termo de Referencia,25/08/2020,22/12/2020,119,"195000,00000000","195000,00000000",25/08/2020,03/09/2020,10270,4,03/09/2020,0,0,0,0
150,81.706.251/0001-98,PROMEFARMA MEDICAMENTOS E PRODUTOS HOSPITALARES LTDA,27/101.659/2020,14347,ENCERRADO,(FUNSAU) Fundação Serviços de Saúde de MS,Aquisição de medicamentos para o Hospital Regional de Mato Grosso do Sul em atendimento a doença COVID 19,33903009 - MATERIAL FARMACOLOGICO,0240000000 - RECURSOS DIRETAMENTE ARRECADADOS,DISPENSA DE LICITAÇÃO LEI 13979/2020,"Coordenação de Logística e Suprimentos/FUNSAU - Almoxarifado Avenida Gunter Hans, 2300, Jardim Tijuca, Campo Grande/MS Este estabelecimento funciona de segunda à sexta, das 07:30h às 10:30h e das 13:30h às 16h.",12/11/2020,11/05/2021,180,"10600,00000000","10600,00000000",12/11/2020,12/01/2021,10375,22,12/01/2021,0,0,0,0
151,11.909.227/0001-70,PROMEGA BIOTECNOLOGIA DO BRASIL LTDA,27/001.222/2020,13637,ENCERRADO,(FESA) Fundo Especial de Saúde de Mato Grosso do Sul,Aquisição de material laboratorial  Kits de amplificação de material genético para diagnóstico molecular do novo Coronavírus,33903011 - MATERIAL QUIMICO,0100000000 - RECURSOS ORDINARIOS DO TESOURO,DISPENSA DE LICITAÇÃO LEI 13979/2020,conforme termo de referência,28/05/2020,23/11/2020,179,"132400,00000000","132400,00000000",28/05/2020,16/06/2020,10195,18,16/06/2020,0,0,0,0
152,01.334.250/0003-92,QIAGEN BIOTECNOLOGIA BRASIL LTDA,27/001.833/2020,13901,ENCERRADO,(FESA) Fundo Especial de Saúde de Mato Grosso do Sul,Aquisição de equipamento laboratorial: extrator de material genético,44905208 - APAR.EQUIP.UTENS.MEDICO ODONTOL.LAB.HOSPITAL,0100000000 - RECURSOS ORDINARIOS DO TESOURO,DISPENSA DE LICITAÇÃO LEI 13979/2020,"LACEN/MS: Av. Senador Filinto Muller, 1666 - Vila Ipiranga - CEP: 79074-460 - Campo Grande/MS",07/08/2020,04/12/2020,119,"293000,00000000","293000,00000000",07/08/2020,20/08/2020,10259,18 e 19,20/08/2020,0,0,0,0
153,01.334.250/0003-92,QIAGEN BIOTECNOLOGIA BRASIL LTDA,27/001.876/2020,13968,ENCERRADO,(FESA) Fundo Especial de Saúde de Mato Grosso do Sul,Aquisição de Kits de Extração Manual e Fita para autoclave,33903011 - MATERIAL QUIMICO,0248000103 - LC. 172/20 - COVID-19,DISPENSA DE LICITAÇÃO LEI 13979/2020,"Almoxarifado SES - Rua Araçá, 1495 - Morada Verde - CEP: 79013-600 - Campo Grande/MS",24/08/2020,21/12/2020,119,"270000,00000000","270000,00000000",24/08/2020,03/09/2020,10269,20,03/09/2020,0,0,0,0
154,01.334.250/0003-92,QIAGEN BIOTECNOLOGIA BRASIL LTDA,27/002.115/2020,14019,ENCERRADO,(FESA) Fundo Especial de Saúde de Mato Grosso do Sul,"Aquisição de Kits de extração automatizada, por exclusividade.",33903011 - MATERIAL QUIMICO,0248000104 - Fonte de Recursos - FESA,INEXIGIBILIDADE LEI 13979/2020,Conforme Termo de Referência.,08/09/2020,07/03/2021,180,"833490,45000000","833490,45000000",08/09/2020,17/09/2020,10281,46,17/09/2020,0,0,0,0
155,01.334.250/0003-92,QIAGEN BIOTECNOLOGIA BRASIL LTDA,27/002.115/2020,14019,ENCERRADO,(FESA) Fundo Especial de Saúde de Mato Grosso do Sul,"Aquisição de Kits de extração automatizada, por exclusividade.",33903035 - MATERIAL LABORATORIAL,0248000104 - Fonte de Recursos - FESA,INEXIGIBILIDADE LEI 13979/2020,Conforme Termo de Referência.,08/09/2020,07/03/2021,180,"833490,45000000","833490,45000000",08/09/2020,17/09/2020,10281,46,17/09/2020,0,0,0,0
156,01.334.250/0003-92,QIAGEN BIOTECNOLOGIA BRASIL LTDA,27/001.316/2020,13725,ENCERRADO,(FESA) Fundo Especial de Saúde de Mato Grosso do Sul,Aquisição de material laboratorial,33903011 - MATERIAL QUIMICO,0100000000 - RECURSOS ORDINARIOS DO TESOURO,DISPENSA DE LICITAÇÃO LEI 13979/2020,"Laboratório Central de Saúde Pública do MS-LACEN                                                                                                                                                                                                             Av. Senador Filinto Muller, 1666, Vila Ipiranga, Campo Grande, MS",17/06/2020,13/12/2020,179,"377920,00000000","377920,00000000",17/06/2020,03/07/2020,10212,15 e 16,03/07/2020,0,0,0,0
157,01.334.250/0003-92,QIAGEN BIOTECNOLOGIA BRASIL LTDA,27/001.678/2020,13772,ENCERRADO,(FESA) Fundo Especial de Saúde de Mato Grosso do Sul,Aquisição de Material Laboratorial - Kits de Extração Manual,33903011 - MATERIAL QUIMICO,0103000000 - RECURSOS PROVENIENTE DA LEI N. 2.105/2000,DISPENSA DE LICITAÇÃO LEI 13979/2020,"Almox. SES - Rua Araçá 1495 - Morada Verde, CEP 79013-600 - Campo Grande/MS",07/07/2020,04/09/2020,59,"377920,00000000","377920,00000000",07/07/2020,14/07/2020,10223,13 e 14,14/07/2020,0,0,0,0
158,01.212.789/0001-07,R&D MEDIQ EQUIPAMENTOS E SERVIÇOS ESPECIALIZADOS LTDA -EPP,27/001.809/2020,13948,ENCERRADO,(FESA) Fundo Especial de Saúde de Mato Grosso do Sul,Aquisição de equipamentos para montar leitos de UTI,44905208 - APAR.EQUIP.UTENS.MEDICO ODONTOL.LAB.HOSPITAL,0240000000 - RECURSOS DIRETAMENTE ARRECADADOS,DISPENSA DE LICITAÇÃO LEI 13979/2020,Conforme Termo de Referencia,25/08/2020,22/12/2020,119,"123480,00000000","123480,00000000",25/08/2020,03/09/2020,10270,3 e 4,03/09/2020,0,0,0,0
159,01.212.789/0001-07,R&D MEDIQ EQUIPAMENTOS E SERVIÇOS ESPECIALIZADOS LTDA -EPP,27/001.314/2020,13723,ENCERRADO,(FESA) Fundo Especial de Saúde de Mato Grosso do Sul,Aquisição de Oxímetro de Pulso,44905208 - APAR.EQUIP.UTENS.MEDICO ODONTOL.LAB.HOSPITAL,0100000000 - RECURSOS ORDINARIOS DO TESOURO,DISPENSA DE LICITAÇÃO LEI 13979/2020,Conforme Termo de Referencia,19/06/2020,15/12/2020,179,"2002140,00000000","2002140,00000000",19/06/2020,02/07/2020,10210,24 e 25,02/07/2020,0,0,0,0
160,17.263.792/0001-90,REALMED DISTRIBUIDORA  LTDA.,27/005.192/2021,15538,ENCERRADO,(FESA) Fundo Especial de Saúde de Mato Grosso do Sul,Aquisição de correlatos hospitalares e soluções e saneantes para atender demanda da SES/MS.,33903022 - MATERIAL DE LIMPEZA E PROD. DE HIGIENIZACAO,0248000125 - PT. 3896/20 - COVID-19,DISPENSA DE LICITAÇÃO MP 1047/2021,Conforme Termo de Referência,09/09/2021,06/01/2022,119,"106746,00000000","106746,00000000",09/09/2021,29/09/2021,10645,40,29/09/2021,0,0,0,0
161,17.263.792/0001-90,REALMED DISTRIBUIDORA  LTDA.,27/005.192/2021,15538,ENCERRADO,(FESA) Fundo Especial de Saúde de Mato Grosso do Sul,Aquisição de correlatos hospitalares e soluções e saneantes para atender demanda da SES/MS.,33903028 - MATERIAL DE PROTECAO E SEGURANCA,0248000125 - PT. 3896/20 - COVID-19,DISPENSA DE LICITAÇÃO MP 1047/2021,Conforme Termo de Referência,09/09/2021,06/01/2022,119,"106746,00000000","106746,00000000",09/09/2021,29/09/2021,10645,40,29/09/2021,0,0,0,0
162,17.263.792/0001-90,REALMED DISTRIBUIDORA  LTDA.,27/001.189/2020,13679,ENCERRADO,(FESA) Fundo Especial de Saúde de Mato Grosso do Sul,Aquisição de Correlatos Hospitalares,33903036 - MATERIAL HOSPITALAR,0100000000 - RECURSOS ORDINARIOS DO TESOURO,DISPENSA DE LICITAÇÃO LEI 13979/2020,Conforme Termo de Referencia,09/06/2020,06/10/2020,119,"66469,20000000","66469,20000000",09/06/2020,30/06/2020,10208,28,30/06/2020,0,0,0,0
163,17.263.792/0001-90,REALMED DISTRIBUIDORA  LTDA.,27/001.649/2020,13829,ENCERRADO,(FESA) Fundo Especial de Saúde de Mato Grosso do Sul,Aquisição de medicamentos,33903009 - MATERIAL FARMACOLOGICO,0103000000 - RECURSOS PROVENIENTE DA LEI N. 2.105/2000,DISPENSA DE LICITAÇÃO LEI 13979/2020,Conforme Termo de Referencia,20/07/2020,16/11/2020,119,"3200,00000000","3200,00000000",20/07/2020,20/08/2020,10259,15 e 16,20/08/2020,0,0,0,0
164,17.263.792/0001-90,REALMED DISTRIBUIDORA  LTDA.,29/017.508/2020,13431,ENCERRADO,(SED) Secretaria de Estado de Educação,Aquisição de Material de limpeza e higienização,33903036 - MATERIAL HOSPITALAR,0100000000 - RECURSOS ORDINARIOS DO TESOURO,DISPENSA DE LICITAÇÃO LEI 13979/2020,Almoxarifado/SED,17/04/2020,15/07/2020,89,"45144,00000000","45144,00000000",17/04/2020,05/05/2020,10160,13,05/05/2020,0,0,0,0
165,01.244.920/0001-18,REDE MS INTEGRAÇÃO DE RÁDIO E TELEVISÃO LTDA,29/021.757/2020,13598,ENCERRADO,(SED) Secretaria de Estado de Educação,"Contratação de emissora de TV para prestação de serviços de transmissão televisiva simultânea em canal aberto digital de conteúdo escolar e educacional em 2 (dois) canais / multicanais próprios em operação no Estado de Mato Grosso do Sul, para transmissão de aulas aos alunos da Rede Estadual de Ensino","33903959 - SERVICOS DE AUDIO, VIDEO E FOTO",0100000000 - RECURSOS ORDINARIOS DO TESOURO,DISPENSA DE LICITAÇÃO LEI 13979/2020,Rede Estadual de Ensino de ensino no Estado de Mato Grosso do Sul,23/08/2020,06/10/2020,44,"663955,65000000","663955,65000000",21/08/2020,01/09/2020,10181,6,26/05/2020,0,0,0,0
166,01.244.920/0001-18,REDE MS INTEGRAÇÃO DE RÁDIO E TELEVISÃO LTDA,29/021.757/2020,13598,ENCERRADO,(SED) Secretaria de Estado de Educação,"Contratação de emissora de TV para prestação de serviços de transmissão televisiva simultânea em canal aberto digital de conteúdo escolar e educacional em 2 (dois) canais / multicanais próprios em operação no Estado de Mato Grosso do Sul, para transmissão de aulas aos alunos da Rede Estadual de Ensino","33903959 - SERVICOS DE AUDIO, VIDEO E FOTO",0100000000 - RECURSOS ORDINARIOS DO TESOURO,DISPENSA DE LICITAÇÃO LEI 13979/2020,Rede Estadual de Ensino de ensino no Estado de Mato Grosso do Sul,07/10/2020,20/11/2020,44,"663955,65000000","663955,65000000",14/09/2020,27/10/2020,10181,6,26/05/2020,0,0,0,0
167,01.244.920/0001-18,REDE MS INTEGRAÇÃO DE RÁDIO E TELEVISÃO LTDA,29/021.757/2020,13598,ENCERRADO,(SED) Secretaria de Estado de Educação,"Contratação de emissora de TV para prestação de serviços de transmissão televisiva simultânea em canal aberto digital de conteúdo escolar e educacional em 2 (dois) canais / multicanais próprios em operação no Estado de Mato Grosso do Sul, para transmissão de aulas aos alunos da Rede Estadual de Ensino","33903959 - SERVICOS DE AUDIO, VIDEO E FOTO",0100000000 - RECURSOS ORDINARIOS DO TESOURO,DISPENSA DE LICITAÇÃO LEI 13979/2020,Rede Estadual de Ensino de ensino no Estado de Mato Grosso do Sul,21/11/2020,18/12/2020,27,"663955,65000000","413127,96000000",20/11/2020,07/12/2020,10181,6,26/05/2020,0,0,0,0
168,01.244.920/0001-18,REDE MS INTEGRAÇÃO DE RÁDIO E TELEVISÃO LTDA,29/021.757/2020,13598,ENCERRADO,(SED) Secretaria de Estado de Educação,"Contratação de emissora de TV para prestação de serviços de transmissão televisiva simultânea em canal aberto digital de conteúdo escolar e educacional em 2 (dois) canais / multicanais próprios em operação no Estado de Mato Grosso do Sul, para transmissão de aulas aos alunos da Rede Estadual de Ensino","33903959 - SERVICOS DE AUDIO, VIDEO E FOTO",0108000000 - COTA-PARTE DO SALÁRIO-EDUCAÇÃO - CONTA ESTADUAL,DISPENSA DE LICITAÇÃO LEI 13979/2020,Rede Estadual de Ensino de ensino no Estado de Mato Grosso do Sul,25/05/2020,08/07/2020,44,"663955,65000000","663955,65000000",19/05/2020,26/05/2020,10181,6,26/05/2020,0,0,0,0
169,01.244.920/0001-18,REDE MS INTEGRAÇÃO DE RÁDIO E TELEVISÃO LTDA,29/021.757/2020,13598,ENCERRADO,(SED) Secretaria de Estado de Educação,"Contratação de emissora de TV para prestação de serviços de transmissão televisiva simultânea em canal aberto digital de conteúdo escolar e educacional em 2 (dois) canais / multicanais próprios em operação no Estado de Mato Grosso do Sul, para transmissão de aulas aos alunos da Rede Estadual de Ensino","33903959 - SERVICOS DE AUDIO, VIDEO E FOTO",0108000000 - COTA-PARTE DO SALÁRIO-EDUCAÇÃO - CONTA ESTADUAL,DISPENSA DE LICITAÇÃO LEI 13979/2020,Rede Estadual de Ensino de ensino no Estado de Mato Grosso do Sul,09/07/2020,22/08/2020,44,"663955,65000000","663955,65000000",08/07/2020,10/07/2020,10181,6,26/05/2020,0,0,0,0
170,03.836.671/0001-85,REFRIGEL - ASSISTÊNCIA TÉCNICA,27/000.479/2021,14787,ENCERRADO,(FESA) Fundo Especial de Saúde de Mato Grosso do Sul,Contratação de Empresa Especializada na prestação de serviços de Manutenção corretiva em Câmara fria,33903025 - MATERIAL P/ MANUTENCAO DE BENS MOVEIS,0248000104 - Fonte de Recursos - FESA,DISPENSA DE LICITAÇÃO MP 1026/2021,Conforme Termo de Referencia,11/03/2021,10/09/2021,183,"19775,00000000","19775,00000000",11/03/2021,23/03/2021,10450,14,23/03/2021,0,0,0,0
171,03.836.671/0001-85,REFRIGEL - ASSISTÊNCIA TÉCNICA,27/000.479/2021,14787,ENCERRADO,(FESA) Fundo Especial de Saúde de Mato Grosso do Sul,Contratação de Empresa Especializada na prestação de serviços de Manutenção corretiva em Câmara fria,33903917 - MANUT. E CONSERV. DE MAQUINAS E EQUIPAMENTOS,0248000104 - Fonte de Recursos - FESA,DISPENSA DE LICITAÇÃO MP 1026/2021,Conforme Termo de Referencia,11/03/2021,10/09/2021,183,"19775,00000000","19775,00000000",11/03/2021,23/03/2021,10450,14,23/03/2021,0,0,0,0
172,28.546.470/0001-74,SOUZA MED COMERCIO DE MATERIAIS MEDICO-HOSPITALAR  LTDA,27/001.188/2020,13650,ENCERRADO,(FESA) Fundo Especial de Saúde de Mato Grosso do Sul,"Aquisição de correlatos hospitalares: luva, seringa, sonda, touca, sistema de drenagem",33903036 - MATERIAL HOSPITALAR,0100000000 - RECURSOS ORDINARIOS DO TESOURO,DISPENSA DE LICITAÇÃO LEI 13979/2020,Conforme Termo de Referencia,10/06/2020,07/10/2020,119,"9480,00000000","9480,00000000",10/06/2020,01/07/2020,10209,19,01/07/2020,0,0,0,0
173,34.707.374/0001-63,SPV COMERCIAL LTDA,27/005.192/2021,15543,ENCERRADO,(FESA) Fundo Especial de Saúde de Mato Grosso do Sul,Aquisição de correlatos hospitalares e soluções e saneantes para atender demanda da SES/MS.,33903036 - MATERIAL HOSPITALAR,0248000125 - PT. 3896/20 - COVID-19,DISPENSA DE LICITAÇÃO MP 1047/2021,Conforme Termo de Referência,30/08/2021,27/12/2021,119,"2065,50000000","2065,50000000",30/08/2021,29/09/2021,10645,42,29/09/2021,0,0,0,0
174,36.923.443/0001-00,STAR MEDICAL COMERCIO DE PRODUTOS HOSPITALARES LTDA,27/002.257/2020,14236,ENCERRADO,(FESA) Fundo Especial de Saúde de Mato Grosso do Sul,Aquisição de Álcool Etílico,33903022 - MATERIAL DE LIMPEZA E PROD. DE HIGIENIZACAO,0248000104 - Fonte de Recursos - FESA,DISPENSA DE LICITAÇÃO LEI 13979/2020,"Almoxarifado da SES, Rua Araçá 1495, Morada Verde, Campo Grande, MS.",30/10/2020,27/01/2021,89,"85950,00000000","85950,00000000",30/10/2020,09/11/2020,10319,21 e 22,09/11/2020,0,0,0,0
175,36.923.443/0001-00,STAR MEDICAL COMERCIO DE PRODUTOS HOSPITALARES LTDA,27/002.369/2020,14431,ENCERRADO,(FESA) Fundo Especial de Saúde de Mato Grosso do Sul,Aquisição de Ponteira Laboratorial - Volume :1 - 20 ul com filtro.,33903035 - MATERIAL LABORATORIAL,0248000103 - LC. 172/20 - COVID-19,DISPENSA DE LICITAÇÃO LEI 13979/2020,Conforme o Termo de Referência.,08/12/2020,06/04/2021,119,"152460,00000000","152460,00000000",08/12/2020,15/12/2020,10350,47,15/12/2020,0,0,0,0
176,36.923.443/0001-00,STAR MEDICAL COMERCIO DE PRODUTOS HOSPITALARES LTDA,27/005.192/2021,15542,ENCERRADO,(FESA) Fundo Especial de Saúde de Mato Grosso do Sul,Aquisição de correlatos hospitalares e soluções e saneantes para atender demanda da SES/MS.,33903036 - MATERIAL HOSPITALAR,0248000125 - PT. 3896/20 - COVID-19,DISPENSA DE LICITAÇÃO MP 1047/2021,Conforme Termo de Referência,30/08/2021,24/02/2022,178,"1688013,00000000","1688013,00000000",30/08/2021,29/09/2021,10645,42,29/09/2021,0,0,0,0
177,00.678.593/0001-40,STERIFARMA PRODUTOS CIRÚRGICOS LTDA,27/001.916/2020,13957,ENCERRADO,(FESA) Fundo Especial de Saúde de Mato Grosso do Sul,Aquisição de Teste Rápido Coronavírus IgG e IgM,33903011 - MATERIAL QUIMICO,0248000103 - LC. 172/20 - COVID-19,DISPENSA DE LICITAÇÃO LEI 13979/2020,Conforme Termo de Referencia,24/08/2020,21/12/2020,119,"899500,00000000","899500,00000000",24/08/2020,15/09/2020,10279,15 e 16,15/09/2020,0,0,0,0
178,09.944.371/0001-04,SULMEDIC COMERCIO DE MEDICAMENTOS LTDA.,27/005.549/2021,15365,ENCERRADO,(FESA) Fundo Especial de Saúde de Mato Grosso do Sul,Aquisição de medicamento utilizado pra entubação dos pacientes com COVID-19.,33903219 - Medicamentos e Materiais Médico- Hospitalares,0248000093 - PT. 395/20 - CORONAVIRUS - COVID-19 BRASIL,PREGÃO ELETRÔNICO,"DMB - Rua Delegado Osmar de Camargo, S/N",06/08/2021,05/08/2022,364,"264562,50000000","264562,50000000",06/08/2021,24/08/2021,10614,36,24/08/2021,0,0,0,0
179,00.641.325/0001-53,TAVARES & SOARES LTDA,65/000.361/2020,13413,ENCERRADO,"(SEDHAST - Inativo 2022) Secretaria de Estado de Direitos Humanos, Assistência Social e Trabalho",Aquisição de Cesta básica,33903208 - CESTAS BASICAS,0100000000 - RECURSOS ORDINARIOS DO TESOURO,DISPENSA DE LICITAÇÃO LEI 13979/2020,"Rua 14 de julho, 32, Centro, Campo Grande/MS.",07/04/2020,05/07/2020,89,"5820000,00000000","5820000,00000000",07/04/2020,08/04/2020,10141,9,08/04/2020,0,0,0,0
180,27.274.178/0001-87,TJ COMERCIO DE PRODUTOS LTDA - EPP.,29/047.784/2022,19057,ENCERRADO,(SED) Secretaria de Estado de Educação,Aquisição de material de informática I (memória) para atender a demanda da Secretaria de Estado de Educação.,33903017 - MATERIAL DE PROCESSAMENTO DE DADOS,0100000000 - RECURSOS ORDINARIOS DO TESOURO,PREGÃO ELETRÔNICO,"Almoxarifado Central situado na Rua Delegado José Alfredo Hardman, n. 200, no Parque dos Poderes em Campo Grande/MS",26/07/2022,25/07/2023,364,"129495,00000000","129495,00000000",26/07/2022,01/08/2022,10904,22,01/08/2022,0,0,0,0
181,60.665.981/0009-75,UNIAO QUIMICA FARMACEUTICA NACIONAL S A,27/000.864/2021,14854,ENCERRADO,(FESA) Fundo Especial de Saúde de Mato Grosso do Sul,Aquisição de medicamentos para atender a CAF/SES.,33903219 - Medicamentos e Materiais Médico- Hospitalares,0248000103 - LC. 172/20 - COVID-19,"","DMB - Rua Delegado Osmar de Camargo, S/N",29/03/2021,28/09/2021,183,"109690,53000000","137097,94000000",29/03/2021,31/03/2021,10460,25,31/03/2021,0,0,0,0
182,60.665.981/0009-75,UNIAO QUIMICA FARMACEUTICA NACIONAL S A,27/001.649/2020,13834,ENCERRADO,(FESA) Fundo Especial de Saúde de Mato Grosso do Sul,Aquisição de medicamentos,33903009 - MATERIAL FARMACOLOGICO,0103000000 - RECURSOS PROVENIENTE DA LEI N. 2.105/2000,DISPENSA DE LICITAÇÃO LEI 13979/2020,Conforme Termo de Referencia,16/07/2020,12/11/2020,119,"625675,00000000","625675,00000000",16/07/2020,20/08/2020,10259,18,20/08/2020,0,0,0,0
183,60.665.981/0009-75,UNIAO QUIMICA FARMACEUTICA NACIONAL S A,27/101.639/2020,14049,ENCERRADO,(FUNSAU) Fundação Serviços de Saúde de MS,Aquisição de Medicamentos - COVID19,33903009 - MATERIAL FARMACOLOGICO,0240000000 - RECURSOS DIRETAMENTE ARRECADADOS,DISPENSA DE LICITAÇÃO LEI 13979/2020,"Almoxarifado Avenida Gunter Hans, 2300, Jardim Tijuca, Campo Grande/MS. Este estabelecimento funciona de segunda à sexta, das 07:30h às 10:30h e das 13:30h às 16h.",14/09/2020,11/01/2021,119,"424800,00000000","637200,00000000",14/09/2020,26/10/2020,10309,37,26/10/2020,0,0,0,0
184,10.918.870/0001-06,UNIVERSAL PRODUTOS HOSPITALARES LTDA - EPP.,27/001.129/2020,13555,ENCERRADO,(FESA) Fundo Especial de Saúde de Mato Grosso do Sul,"Aquisição insumos e materiais laboratoriais: swab, plastico para laboratório, ponteira",33903035 - MATERIAL LABORATORIAL,0100000000 - RECURSOS ORDINARIOS DO TESOURO,DISPENSA DE LICITAÇÃO LEI 13979/2020,"Almoxarifado Central das 08:00 às 15:00h, sito a Rua Araçá 1495, Bairro Coronel Antonino, Campo Grande, MS",14/05/2020,09/11/2020,179,"521880,00000000","521880,00000000",14/05/2020,19/06/2020,10199,16,19/06/2020,0,0,0,0
185,10.918.870/0001-06,UNIVERSAL PRODUTOS HOSPITALARES LTDA - EPP.,27/001.058/2020,13460,ENCERRADO,(FESA) Fundo Especial de Saúde de Mato Grosso do Sul,"Aquisição de Correlatos hospitalares: Mascara, avental e lençol descartável",33903036 - MATERIAL HOSPITALAR,0100000000 - RECURSOS ORDINARIOS DO TESOURO,DISPENSA DE LICITAÇÃO LEI 13979/2020,"Almoxarifado da Secretaria de Estado de Saúde, Endereço: Rua Araçá, 1495  Morada Verde  CEP: 79013-600 - Campo Grande/MS",24/04/2020,20/10/2020,179,"176000,00000000","176000,00000000",24/04/2020,30/04/2020,10158,27,30/04/2020,0,0,0,0
186,10.918.870/0001-06,UNIVERSAL PRODUTOS HOSPITALARES LTDA - EPP.,27/001.058/2020,13565,ENCERRADO,(FESA) Fundo Especial de Saúde de Mato Grosso do Sul,"Aquisição de Correlatos hospitalares: Mascara, avental e lençol descartável",33903036 - MATERIAL HOSPITALAR,0100000000 - RECURSOS ORDINARIOS DO TESOURO,DISPENSA DE LICITAÇÃO LEI 13979/2020,"Almoxarifado da Secretaria de Estado de Saúde, Endereço: Rua Araçá, 1495  Morada Verde  CEP: 79013-600 - Campo Grande/MS",14/05/2020,09/11/2020,179,"168000,00000000","168000,00000000",14/05/2020,26/05/2020,10181,8,26/05/2020,0,0,0,0
187,10.918.870/0001-06,UNIVERSAL PRODUTOS HOSPITALARES LTDA - EPP.,27/001.188/2020,13647,ENCERRADO,(FESA) Fundo Especial de Saúde de Mato Grosso do Sul,"Aquisição de correlatos hospitalares: luva, seringa, sonda, touca, sistema de drenagem",33903036 - MATERIAL HOSPITALAR,0100000000 - RECURSOS ORDINARIOS DO TESOURO,DISPENSA DE LICITAÇÃO LEI 13979/2020,Conforme Termo de Referencia,15/06/2020,12/10/2020,119,"742277,30000000","742277,30000000",15/06/2020,01/07/2020,10209,17 e 18,01/07/2020,0,0,0,0
188,10.918.870/0001-06,UNIVERSAL PRODUTOS HOSPITALARES LTDA - EPP.,27/001.189/2020,13672,ENCERRADO,(FESA) Fundo Especial de Saúde de Mato Grosso do Sul,Aquisição de Correlatos Hospitalares,33903036 - MATERIAL HOSPITALAR,0100000000 - RECURSOS ORDINARIOS DO TESOURO,DISPENSA DE LICITAÇÃO LEI 13979/2020,Conforme Termo de Referencia,15/06/2020,12/10/2020,119,"40049,25000000","40049,25000000",15/06/2020,30/06/2020,10208,24 e 25,30/06/2020,0,0,0,0
189,10.918.870/0001-06,UNIVERSAL PRODUTOS HOSPITALARES LTDA - EPP.,27/001.187/2020,13667,ENCERRADO,(FESA) Fundo Especial de Saúde de Mato Grosso do Sul,Aquisição de Correlatos Hospitalares,33903036 - MATERIAL HOSPITALAR,0100000000 - RECURSOS ORDINARIOS DO TESOURO,DISPENSA DE LICITAÇÃO LEI 13979/2020,Conforme Termo de Referencia,03/06/2020,29/11/2020,179,"4832130,40000000","4832130,40000000",03/06/2020,09/06/2020,10192,25,09/06/2020,0,0,0,0
190,10.918.870/0001-06,UNIVERSAL PRODUTOS HOSPITALARES LTDA - EPP.,27/001.588/2020,13844,ENCERRADO,(FESA) Fundo Especial de Saúde de Mato Grosso do Sul,"Aquisição de placas para PCR em tempo real, Filme para Laboratório, Caixas com tampa articulada para microtubos e Rack para tubos de centrifugação de 15 e 50 ml.",33903035 - MATERIAL LABORATORIAL,0103000000 - RECURSOS PROVENIENTE DA LEI N. 2.105/2000,DISPENSA DE LICITAÇÃO LEI 13979/2020,Conforme Termo de Referencia,22/07/2020,18/11/2020,119,"63000,00000000","63000,00000000",22/07/2020,03/08/2020,10242,9,03/08/2020,0,0,0,0
191,10.918.870/0001-06,UNIVERSAL PRODUTOS HOSPITALARES LTDA - EPP.,27/101.346/2020,14074,ENCERRADO,(FUNSAU) Fundação Serviços de Saúde de MS,Aquisição de correlatos hospitalares para o Hospital Regional de Mato Grosso do Sul em atendimento a doença COVID 19,33903036 - MATERIAL HOSPITALAR,0240000000 - RECURSOS DIRETAMENTE ARRECADADOS,DISPENSA DE LICITAÇÃO LEI 13979/2020,"Coordenação de Logítica e Suprimentos/FUNSAU - Almoxarifado Avenida Gunter Hans, 2300, Jardim Tijuca, Campo Grande/MS Este estabelecimento funciona de segunda à sexta, das 07:30h às 10:30h e das 13:30h às 16h.",25/09/2020,22/01/2021,119,"522000,00000000","522000,00000000",25/09/2020,28/10/2020,10311,50,28/10/2020,0,0,0,0
192,10.918.870/0001-06,UNIVERSAL PRODUTOS HOSPITALARES LTDA - EPP.,29/024.148/2020,13783,ENCERRADO,(SED) Secretaria de Estado de Educação,"Aquisição de materiais de limpeza, higienização e equipamentos de proteção individual conforme Anexo I e II, visando atender a os alunos da Rede Estadual de Ensino do Estado de Mato Grosso do Sul, em razão do retono das aulas presenciais na Rede Estadual de Ensino, tais materiais se tornarão indispensáveis para assegurar a proteção aos estudantes e servidores da unidades escolares.",33903022 - MATERIAL DE LIMPEZA E PROD. DE HIGIENIZACAO,0103000000 - RECURSOS PROVENIENTE DA LEI N. 2.105/2000,DISPENSA DE LICITAÇÃO LEI 13979/2020,"Rua Delegado José Alfredo Hadman, n. 200 - Parque dos Poderes - Campo Grande/MS",08/07/2020,05/09/2020,59,"39193,20000000","39193,20000000",08/07/2020,27/07/2020,10236,7,27/07/2020,0,0,0,0
193,30.949.099/0001-33,VIA FHARMA DO BRASIL,27/001.649/2020,13830,ENCERRADO,(FESA) Fundo Especial de Saúde de Mato Grosso do Sul,Aquisição de medicamentos,33903009 - MATERIAL FARMACOLOGICO,0103000000 - RECURSOS PROVENIENTE DA LEI N. 2.105/2000,DISPENSA DE LICITAÇÃO LEI 13979/2020,Conforme Termo de Referencia,22/07/2020,18/11/2020,119,"720,00000000","720,00000000",22/07/2020,20/08/2020,10259,16,20/08/2020,0,0,0,0
194,09.100.467/0001-88,W.N. DIAGNOSTICA LTDA.,27/002.523/2020,14445,ENCERRADO,(FESA) Fundo Especial de Saúde de Mato Grosso do Sul,Aquisição de Teste Rápido do Coronavírus IgG e IgM.,33903011 - MATERIAL QUIMICO,0103000000 - RECURSOS PROVENIENTE DA LEI N. 2.105/2000,DISPENSA DE LICITAÇÃO LEI 13979/2020,Conforme o Termo de Referência.,08/12/2020,06/04/2021,119,"740000,00000000","740000,00000000",08/12/2020,15/12/2020,10350,47 e 48,15/12/2020,0,0,0,0
195,05.993.698/0001-07,1000MEDIC DISTRIBUIDORA IMPORTADORA E EXPORTADORA DE MEDICAMENTOS LTDA,27/001.737/2020,13900,ENCERRADO,(FESA) Fundo Especial de Saúde de Mato Grosso do Sul,Aquisição de equipamentos para montar leitos de UTI,44905208 - APAR.EQUIP.UTENS.MEDICO ODONTOL.LAB.HOSPITAL,0103000000 - RECURSOS PROVENIENTE DA LEI N. 2.105/2000,DISPENSA DE LICITAÇÃO LEI 13979/2020,Conforme Termo de Referencia,10/08/2020,07/11/2020,89,"609000,00000000","609000,00000000",10/08/2020,25/08/2020,10262,30 e 31,25/08/2020,0,0,0,0
196,38.140.640/0001-70,A2 DISTRIBUIDORA BRASIL LTDA,27/003.998/2021,15657,ENCERRADO,(FUNSAU) Fundação Serviços de Saúde de MS,Aquisição Emergencial de Medicamento (Lidocaína),33903009 - MATERIAL FARMACOLOGICO,0240000000 - RECURSOS DIRETAMENTE ARRECADADOS,DISPENSA DE LICITAÇÃO MP 1047/2021,Almoxarifado do HRMS,01/09/2021,30/12/2021,120,"29962,50000000","37353,25000000",01/09/2021,24/09/2021,10642,193,24/09/2021,0,0,0,0
197,64.171.697/0001-46,ACCORD FARMACÊUTICA LTDA,27/000.858/2021,14866,ENCERRADO,(FESA) Fundo Especial de Saúde de Mato Grosso do Sul,Aquisição de medicamentos para atender a CAFB.,33903219 - Medicamentos e Materiais Médico- Hospitalares,0100000000 - RECURSOS ORDINARIOS DO TESOURO,"","DMB - Rua Delegado Osmar de Camargo, S/N",18/03/2021,17/09/2021,183,"35165,60000000","43957,00000000",18/03/2021,05/04/2021,10463,8,05/04/2021,0,0,0,0
198,64.171.697/0001-46,ACCORD FARMACÊUTICA LTDA,27/000.858/2021,14866,ENCERRADO,(FESA) Fundo Especial de Saúde de Mato Grosso do Sul,Aquisição de medicamentos para atender a CAFB.,33903219 - Medicamentos e Materiais Médico- Hospitalares,0248000103 - LC. 172/20 - COVID-19,"","DMB - Rua Delegado Osmar de Camargo, S/N",18/03/2021,17/09/2021,183,"35165,60000000","43957,00000000",18/03/2021,05/04/2021,10463,8,05/04/2021,0,0,0,0
199,11.405.384/0001-49,ALFA MED SISTEMAS MÉDICOS LTDA,27/001.085/2020,13527,ENCERRADO,(FESA) Fundo Especial de Saúde de Mato Grosso do Sul,Aquisição de Monitores Multiparamétricos,44905208 - APAR.EQUIP.UTENS.MEDICO ODONTOL.LAB.HOSPITAL,0100000000 - RECURSOS ORDINARIOS DO TESOURO,DISPENSA DE LICITAÇÃO LEI 13979/2020,almoxarifado central,08/05/2020,03/11/2020,179,"297000,00000000","297000,00000000",08/05/2020,25/05/2020,10180,15,25/05/2020,0,0,0,0
200,33.761.636/0001-05,ALFEMA DOIS MERCANTIL CIRÚRGICA LTDA,27/001.297/2020,13696,ENCERRADO,(FESA) Fundo Especial de Saúde de Mato Grosso do Sul,Aquisição de Soluções e Saneantes Hospitalares para atender e Demanda do Hospital Regional de Mato Grosso do Sul,33903022 - MATERIAL DE LIMPEZA E PROD. DE HIGIENIZACAO,0100000000 - RECURSOS ORDINARIOS DO TESOURO,DISPENSA DE LICITAÇÃO LEI 13979/2020,Conforme Termo de Referencia,05/06/2020,02/10/2020,119,"125624,00000000","125624,00000000",05/06/2020,02/07/2020,10210,23 e 24,02/07/2020,0,0,0,0
201,58.430.828/0001-60,BLAU FARMACÊUTICA S.A.,27/000.850/2021,14850,ENCERRADO,(FESA) Fundo Especial de Saúde de Mato Grosso do Sul,Aquisição de medicamentos para atender a CAFB.,33903219 - Medicamentos e Materiais Médico- Hospitalares,0248000103 - LC. 172/20 - COVID-19,"","DMB - Rua Delegado Osmar de Camargo, S/N",22/03/2021,21/09/2021,183,"75828,00000000","94776,00000000",22/03/2021,25/03/2021,10453,5,25/03/2021,0,0,0,0
202,58.430.828/0001-60,BLAU FARMACÊUTICA S.A.,27/002.308/2020,14373,ENCERRADO,(FESA) Fundo Especial de Saúde de Mato Grosso do Sul,AQ. DE MEDICAMENTOS - SUXAMETÔNIO,33903219 - Medicamentos e Materiais Médico- Hospitalares,0248000104 - Fonte de Recursos - FESA,"","DMB - AV. DELEGADO OSMAR DE CAMARGO, S/N",03/12/2020,02/03/2021,89,"37500,48000000","37500,48000000",03/12/2020,17/12/2020,10354,31,17/12/2020,0,0,0,0
203,25.076.424/0001-60,BLUETRIX TECNOLOGIA LTDA,65/300.104/2020,14394,CELEBRADO,(FUNTRAB - Inativo - 2022) Fundação do Trabalho de Mato Grosso do Sul (Inativo,"Contratação de empresa especializada para fornecimento de Sistema de Registro e Comunicação Multipropósito para Identificação de Vagas de Trabalho, Seleção de Trabalhadores e Promoção de Capacitação.",33903911 - LOCACAO DE SOFTWARES,0100000000 - RECURSOS ORDINARIOS DO TESOURO,DISPENSA DE LICITAÇÃO LEI 13979/2020,"Fundação do Trabalho de Mato Grosso do Sul - FUNTRAB,  Rua 13 de Maio, 2773, Centro - Campo Grande  MS.",30/11/2020,29/05/2021,180,"2091000,00000000","2091000,00000000",30/11/2020,08/12/2020,10343,86,08/12/2020,0,0,0,0
204,25.076.424/0001-60,BLUETRIX TECNOLOGIA LTDA,65/300.104/2020,14394,CELEBRADO,(FUNTRAB - Inativo - 2022) Fundação do Trabalho de Mato Grosso do Sul (Inativo,"Contratação de empresa especializada para fornecimento de Sistema de Registro e Comunicação Multipropósito para Identificação de Vagas de Trabalho, Seleção de Trabalhadores e Promoção de Capacitação.",33903911 - LOCACAO DE SOFTWARES,0100000000 - RECURSOS ORDINARIOS DO TESOURO,DISPENSA DE LICITAÇÃO LEI 13979/2020,"Fundação do Trabalho de Mato Grosso do Sul - FUNTRAB,  Rua 13 de Maio, 2773, Centro - Campo Grande  MS.",30/05/2021,30/08/2021,92,"2091000,00000000","3136500,00000000",31/05/2021,12/07/2021,10343,86,08/12/2020,0,0,0,0
205,24.260.867/0001-44,BMQUALITY PRODUTOS HOSPITALARES LTDA - EPP,27/001.114/2020,13623,ENCERRADO,(FESA) Fundo Especial de Saúde de Mato Grosso do Sul,Aquisição Emergencial de kits para realização dos marcadores sorológicos;,33903011 - MATERIAL QUIMICO,0248000001 - Apoio as ações de média e alta complexidade,DISPENSA DE LICITAÇÃO,"HEMOSUL COORDENADOR, sito Av. Fernando Correa da Costa, 1304, Bairro Centro, em Campo Grande MS.",21/05/2020,20/11/2020,183,"19341,00000000","19341,00000000",21/05/2020,09/06/2020,10192,24 e 25,09/06/2020,0,0,0,0
206,10.602.927/0001-55,C.C.B.P. GARCIA,27/001.058/2020,13566,ENCERRADO,(FESA) Fundo Especial de Saúde de Mato Grosso do Sul,"Aquisição de Correlatos hospitalares: Mascara, avental e lençol descartável",33903036 - MATERIAL HOSPITALAR,0100000000 - RECURSOS ORDINARIOS DO TESOURO,DISPENSA DE LICITAÇÃO LEI 13979/2020,"Almoxarifado da Secretaria de Estado de Saúde, Endereço: Rua Araçá, 1495  Morada Verde  CEP: 79013-600 - Campo Grande/MS",12/05/2020,07/11/2020,179,"196000,00000000","196000,00000000",12/05/2020,26/05/2020,10181,8,26/05/2020,0,0,0,0
207,18.493.600/0001-02,"C.L.R. COMERCIO DE PRODUTOS DE HIGIENE E LIMPEZA, SANEANTE, GENERO ALIMENTICIO E MEDICO HOSPITALAR",27/005.192/2021,15528,ENCERRADO,(FESA) Fundo Especial de Saúde de Mato Grosso do Sul,Aquisição de correlatos hospitalares e soluções e saneantes para atender demanda da SES/MS.,33903022 - MATERIAL DE LIMPEZA E PROD. DE HIGIENIZACAO,0248000125 - PT. 3896/20 - COVID-19,DISPENSA DE LICITAÇÃO MP 1047/2021,Conforme Termo de Referência,24/09/2021,21/01/2022,119,"129250,50000000","129250,50000000",24/09/2021,30/09/2021,10646,59 e 60,30/09/2021,0,0,0,0
208,18.493.600/0001-02,"C.L.R. COMERCIO DE PRODUTOS DE HIGIENE E LIMPEZA, SANEANTE, GENERO ALIMENTICIO E MEDICO HOSPITALAR",29/033.132/2020,14113,ENCERRADO,(SED) Secretaria de Estado de Educação,Aquisição de material de limpeza e higienização visando atender os alunos da Rede Estadual de Ensino do Estado de Mato Grosso do Sul,33903022 - MATERIAL DE LIMPEZA E PROD. DE HIGIENIZACAO,0100000000 - RECURSOS ORDINARIOS DO TESOURO,DISPENSA DE LICITAÇÃO LEI 13979/2020,conforme termo de referência,28/09/2020,25/01/2021,119,"18768,00000000","18768,00000000",28/09/2020,05/10/2020,10295,5,05/10/2020,0,0,0,0
209,18.493.600/0001-02,"C.L.R. COMERCIO DE PRODUTOS DE HIGIENE E LIMPEZA, SANEANTE, GENERO ALIMENTICIO E MEDICO HOSPITALAR",29/017.508/2020,13433,ENCERRADO,(SED) Secretaria de Estado de Educação,Aquisição de Material de limpeza e higienização,33903022 - MATERIAL DE LIMPEZA E PROD. DE HIGIENIZACAO,0100000000 - RECURSOS ORDINARIOS DO TESOURO,DISPENSA DE LICITAÇÃO LEI 13979/2020,Almoxarifado/SED,17/04/2020,15/07/2020,89,"2888,50000000","2888,50000000",17/04/2020,29/04/2020,10157,5,29/04/2020,0,0,0,0
210,18.493.600/0001-02,"C.L.R. COMERCIO DE PRODUTOS DE HIGIENE E LIMPEZA, SANEANTE, GENERO ALIMENTICIO E MEDICO HOSPITALAR",29/024.148/2020,13784,ENCERRADO,(SED) Secretaria de Estado de Educação,"Aquisição de materiais de limpeza, higienização e equipamentos de proteção individual conforme Anexo I e II, visando atender a os alunos da Rede Estadual de Ensino do Estado de Mato Grosso do Sul, em razão do retono das aulas presenciais na Rede Estadual de Ensino, tais materiais se tornarão indispensáveis para assegurar a proteção aos estudantes e servidores da unidades escolares.",33903022 - MATERIAL DE LIMPEZA E PROD. DE HIGIENIZACAO,0103000000 - RECURSOS PROVENIENTE DA LEI N. 2.105/2000,DISPENSA DE LICITAÇÃO LEI 13979/2020,"Rua Delegado José Alfredo Hadman, n. 200 - Parque dos Poderes - Campo Grande/MS",13/07/2020,10/09/2020,59,"1183027,01000000","1183027,01000000",13/07/2020,30/07/2020,10239,37,30/07/2020,0,0,0,0
211,15.714.275/0001-64,C.O.M. COMÉRCIO E ASSISTÊNCIA TÉCNICA HOSPITALAR LTDA-EPP,27/000.923/2020,13414,ENCERRADO,(FESA) Fundo Especial de Saúde de Mato Grosso do Sul,Locação de conjuntos de leitos de UTI,33903912 - LOCACAO DE MAQUINAS E EQUIPAMENTOS,0100000000 - RECURSOS ORDINARIOS DO TESOURO,DISPENSA DE LICITAÇÃO LEI 13979/2020,De acordo com a necessidade dos locais de atendimento.,15/04/2020,14/10/2020,182,"658800,00000000","658800,00000000",15/04/2020,25/05/2020,10180,14  e 15,25/05/2020,0,0,0,0
212,15.714.275/0001-64,C.O.M. COMÉRCIO E ASSISTÊNCIA TÉCNICA HOSPITALAR LTDA-EPP,27/001.121/2020,13514,ENCERRADO,(FESA) Fundo Especial de Saúde de Mato Grosso do Sul,Locação de 06 Conjuntos de Equipamento para Leito UTI,33903912 - LOCACAO DE MAQUINAS E EQUIPAMENTOS,0100000000 - RECURSOS ORDINARIOS DO TESOURO,DISPENSA DE LICITAÇÃO LEI 13979/2020,Conforme Termo de Referencia,07/05/2020,02/11/2020,179,"714000,00000000","714000,00000000",07/05/2020,15/05/2020,10171,33 e 34,15/05/2020,0,0,0,0
213,13.646.927/0001-45,CAPILE COMERCIO E TECNOLOGIA LTDA,27/001.851/2020,14036,ENCERRADO,(FESA) Fundo Especial de Saúde de Mato Grosso do Sul,Aquisição de Nobreak,44905230 - MAQUINAS E EQUIPAMENTOS ENERGETICOS,0100000000 - RECURSOS ORDINARIOS DO TESOURO,DISPENSA DE LICITAÇÃO LEI 13979/2020,Conforme Termo de Referencia,16/09/2020,14/03/2021,179,"12650,00000000","12650,00000000",16/09/2020,05/10/2020,10295,6 e 7,05/10/2020,0,0,0,0
214,13.646.927/0001-45,CAPILE COMERCIO E TECNOLOGIA LTDA,31/095.684/2022,21138,CELEBRADO,(SEJUSP) Secretaria de Estado de Justiça e Segurança Pública,Aquisição de MATERIAL DE INFORMÁTICA por meio da ARP 047/SAD/2022-1.1AD para atender as necessidades da Secretaria de Estado de Justiça e Segurança Pública/SEJUSP,33903017 - MATERIAL DE PROCESSAMENTO DE DADOS,0171380011 - FESP-Transferências Fundo a Fundo de Recursos do Fundo de Segurança Pública - FSP,PREGÃO ELETRÔNICO,"Parque dos Poderes, Bloco VI, CEP 79031-350, Campo Grande - MS",23/02/2023,22/02/2024,364,"103350,00000000","103350,00000000",23/02/2023,19/04/2023,11.134,15,19/04/2023,0,0,0,0
215,03.953.111/0001-00,CARDOSO & CARDOSO S/S LTDA,31/701.934/2020,14039,ENCERRADO,(DETRAN) Departamento Estadual de Trânsito,"Prestação de serviços para elaboração de Protocolo de Biossegurança em função da Pandemia da COVID 19, para atender a demanda do Departamento de Trânsito do Estado de Mato Grosso do Sul  DETRAN-MS, conforme condições, quantidades, especificações e exigências estabelecidas neste instrumento, destinados ao enfrentamento da emergência de saúde pública de importância internacional decorrente do coronavírus (Lei n. 13.979/20):",33903905 - SERVICOS TECNICOS PROFISSIONAIS,0240000000 - RECURSOS DIRETAMENTE ARRECADADOS,DISPENSA DE LICITAÇÃO LEI 13979/2020,Conforme exigências constantes nos seus anexos,14/09/2020,12/03/2021,179,"9500,00000000","9500,00000000",14/09/2020,21/09/2020,10283,11 e 12,21/09/2020,0,0,0,0
216,52.500.287/0001-12,CASA NASSER COMÉRCIO E REPRESENTAÇÕES LTDA,71/022.616/2021,15350,ENCERRADO,(AGRAER - Inativo - 2022) Agência de Desenvolvimento Agrário e Extensão Rural - Inativo - 2022,Aquisição de Máquinas e Equipamentos Agrícolas (Pulverizador - Plantadeira - Ensiladeira) - Convênio  891.139/2019,44905240 - MAQUINAS E EQUIPAMENTOS AGRIC. E RODOVIARIOS,0281020020 - Convênio-891139/2019-MAPA/AGRAER-Programa:Fomento ao Setor Agropecuário-Investimento-Coven 29535.,PREGÃO ELETRÔNICO,AGRAER,19/10/2021,20/07/2022,274,"162500,00000000","162500,00000000",19/10/2021,25/10/2021,10662,45,25/10/2021,0,0,0,0
217,02.248.312/0001-44,CEPALAB LABORATORIOS S.A,27/005.229/2021,15386,ENCERRADO,(FESA) Fundo Especial de Saúde de Mato Grosso do Sul,Aquisição de testes rápido de antígeno para Covid-19,33903011 - MATERIAL QUIMICO,0248000125 - PT. 3896/20 - COVID-19,DISPENSA DE LICITAÇÃO MP 1047/2021,Conforme Termo de Referencia,20/07/2021,16/11/2021,119,"1463700,00000000","1463700,00000000",20/07/2021,26/07/2021,10583,26,26/07/2021,0,0,0,0
218,02.248.312/0001-44,CEPALAB LABORATORIOS S.A,27/000.850/2023,21370,ENCERRADO,(FESA) Fundo Especial de Saúde de Mato Grosso do Sul,Aquisição de Teste Rápido por Antígeno COVID-19 - CGAF.,33903011 - MATERIAL QUIMICO,0260280041 - FESA - PT. 2624/20 - COVID-19,PREGÃO ELETRÔNICO,"Av. Min. João Arinos, 2690 - Tiradentes, Campo Grande - MS, 79041-005 (LIN)",31/03/2023,29/03/2024,364,"223813,80000000","223813,80000000",31/03/2023,11/04/2023,11127,22,11/04/2023,0,0,0,0
219,02.248.312/0001-44,CEPALAB LABORATORIOS S.A,27/000.850/2023,21370,ENCERRADO,(FESA) Fundo Especial de Saúde de Mato Grosso do Sul,Aquisição de Teste Rápido por Antígeno COVID-19 - CGAF.,33903011 - MATERIAL QUIMICO,0260280051 - FESA - PT. 2782/20 - COVID-19,PREGÃO ELETRÔNICO,"Av. Min. João Arinos, 2690 - Tiradentes, Campo Grande - MS, 79041-005 (LIN)",31/03/2023,29/03/2024,364,"223813,80000000","223813,80000000",31/03/2023,11/04/2023,11127,22,11/04/2023,0,0,0,0
220,02.248.312/0001-44,CEPALAB LABORATORIOS S.A,27/000.850/2023,21370,ENCERRADO,(FESA) Fundo Especial de Saúde de Mato Grosso do Sul,Aquisição de Teste Rápido por Antígeno COVID-19 - CGAF.,33903011 - MATERIAL QUIMICO,0260280061 - FESA - PT. 3896/20 - COVID-19,PREGÃO ELETRÔNICO,"Av. Min. João Arinos, 2690 - Tiradentes, Campo Grande - MS, 79041-005 (LIN)",31/03/2023,29/03/2024,364,"223813,80000000","223813,80000000",31/03/2023,11/04/2023,11127,22,11/04/2023,0,0,0,0
221,02.248.312/0001-44,CEPALAB LABORATORIOS S.A,27/000.850/2023,21370,ENCERRADO,(FESA) Fundo Especial de Saúde de Mato Grosso do Sul,Aquisição de Teste Rápido por Antígeno COVID-19 - CGAF.,33903011 - MATERIAL QUIMICO,0260280071 - FESA - PT. 827/20 - COVID-19,PREGÃO ELETRÔNICO,"Av. Min. João Arinos, 2690 - Tiradentes, Campo Grande - MS, 79041-005 (LIN)",31/03/2023,29/03/2024,364,"223813,80000000","223813,80000000",31/03/2023,11/04/2023,11127,22,11/04/2023,0,0,0,0
222,02.248.312/0001-44,CEPALAB LABORATORIOS S.A,27/000.850/2023,21370,ENCERRADO,(FESA) Fundo Especial de Saúde de Mato Grosso do Sul,Aquisição de Teste Rápido por Antígeno COVID-19 - CGAF.,33903011 - MATERIAL QUIMICO,0260280111 - PT.395/20 -COVID-19 BRASIL,PREGÃO ELETRÔNICO,"Av. Min. João Arinos, 2690 - Tiradentes, Campo Grande - MS, 79041-005 (LIN)",31/03/2023,29/03/2024,364,"223813,80000000","223813,80000000",31/03/2023,11/04/2023,11127,22,11/04/2023,0,0,0,0
223,02.248.312/0001-44,CEPALAB LABORATORIOS S.A,27/000.850/2023,21370,ENCERRADO,(FESA) Fundo Especial de Saúde de Mato Grosso do Sul,Aquisição de Teste Rápido por Antígeno COVID-19 - CGAF.,33903011 - MATERIAL QUIMICO,0260280121 - PT.1666/20 - COVID-19,PREGÃO ELETRÔNICO,"Av. Min. João Arinos, 2690 - Tiradentes, Campo Grande - MS, 79041-005 (LIN)",31/03/2023,29/03/2024,364,"223813,80000000","223813,80000000",31/03/2023,11/04/2023,11127,22,11/04/2023,0,0,0,0
224,07.847.837/0001-10,CIENTÍFICA MÉDICA HOSPITALAR LTDA.,27/002.309/2020,14374,ENCERRADO,(FESA) Fundo Especial de Saúde de Mato Grosso do Sul,AQ. DE MEDICAMENTOS - DEXMEDETOMIDINA,33903219 - Medicamentos e Materiais Médico- Hospitalares,0248000104 - Fonte de Recursos - FESA,"","DMB - AV. DELEGADO OSMAR DE CAMARGO, S/N",01/12/2020,28/02/2021,89,"40089,60000000","40089,60000000",01/12/2020,04/12/2020,10340,105,04/12/2020,0,0,0,0
225,05.075.964/0001-12,CINCO CONFIANÇA INDÚSTRIA E COMÉRCIO LTDA,27/001.926/2020,13956,ENCERRADO,(FESA) Fundo Especial de Saúde de Mato Grosso do Sul,Aquisição de Kit para coleta por aférese,33903011 - MATERIAL QUIMICO,0248000103 - LC. 172/20 - COVID-19,DISPENSA DE LICITAÇÃO LEI 13979/2020,"HEMOSUL - Av. Fernando Corrêa da Costa, 1304 - Centro - CEP: 790004-310 - Campo Grande/MS",27/08/2020,24/12/2020,119,"238800,00000000","238800,00000000",27/08/2020,08/09/2020,10273,6,08/09/2020,0,0,0,0
226,26.853.028/0001-65,CIRUMED COMERCIO LTDA.,27/001.188/2020,13651,ENCERRADO,(FESA) Fundo Especial de Saúde de Mato Grosso do Sul,"Aquisição de correlatos hospitalares: luva, seringa, sonda, touca, sistema de drenagem",33903036 - MATERIAL HOSPITALAR,0100000000 - RECURSOS ORDINARIOS DO TESOURO,DISPENSA DE LICITAÇÃO LEI 13979/2020,Conforme Termo de Referencia,15/06/2020,12/10/2020,119,"19550,00000000","19550,00000000",15/06/2020,01/07/2020,10209,16,01/07/2020,0,0,0,0
227,26.853.028/0001-65,CIRUMED COMERCIO LTDA.,27/001.533/2020,13774,ENCERRADO,(FESA) Fundo Especial de Saúde de Mato Grosso do Sul,"Aquisição de material laboratorial  Swab, Tubo Falcon e Tubo criogênico",33903035 - MATERIAL LABORATORIAL,0103000000 - RECURSOS PROVENIENTE DA LEI N. 2.105/2000,DISPENSA DE LICITAÇÃO LEI 13979/2020,Conforme Termo de Referencia,10/07/2020,07/10/2020,89,"79800,00000000","79800,00000000",10/07/2020,16/07/2020,10227,27 e 28,16/07/2020,0,0,0,0
228,10.656.587/0001-45,CIRÚRGICA MS LTDA.,27/005.192/2021,15539,ENCERRADO,(FESA) Fundo Especial de Saúde de Mato Grosso do Sul,Aquisição de correlatos hospitalares e soluções e saneantes para atender demanda da SES/MS.,33903022 - MATERIAL DE LIMPEZA E PROD. DE HIGIENIZACAO,0248000125 - PT. 3896/20 - COVID-19,DISPENSA DE LICITAÇÃO MP 1047/2021,Conforme Termo de Referência,24/09/2021,21/01/2022,119,"1926,00000000","1926,00000000",24/09/2021,29/09/2021,10645,40 e 41,29/09/2021,0,0,0,0
229,10.656.587/0001-45,CIRÚRGICA MS LTDA.,27/005.192/2021,15539,ENCERRADO,(FESA) Fundo Especial de Saúde de Mato Grosso do Sul,Aquisição de correlatos hospitalares e soluções e saneantes para atender demanda da SES/MS.,33903036 - MATERIAL HOSPITALAR,0248000125 - PT. 3896/20 - COVID-19,DISPENSA DE LICITAÇÃO MP 1047/2021,Conforme Termo de Referência,24/09/2021,21/01/2022,119,"1926,00000000","1926,00000000",24/09/2021,29/09/2021,10645,40 e 41,29/09/2021,0,0,0,0
230,10.656.587/0001-45,CIRÚRGICA MS LTDA.,27/001.992/2020,13994,ENCERRADO,(FESA) Fundo Especial de Saúde de Mato Grosso do Sul,Aquisição de medicamento Dexmedetomidina para atender a CGAF/DGAS/SES/MS.,33903219 - Medicamentos e Materiais Médico- Hospitalares,0248000104 - Fonte de Recursos - FESA,PREGÃO ELETRÔNICO,"DMB - Rua Delegado Osmar de Camargo, S/N",10/09/2020,09/12/2020,90,"103825,00000000","103825,00000000",10/09/2020,22/09/2020,10284,11,22/09/2020,0,0,0,0
231,10.656.587/0001-45,CIRÚRGICA MS LTDA.,27/001.297/2020,13697,ENCERRADO,(FESA) Fundo Especial de Saúde de Mato Grosso do Sul,Aquisição de Soluções e Saneantes Hospitalares para atender e Demanda do Hospital Regional de Mato Grosso do Sul,33903022 - MATERIAL DE LIMPEZA E PROD. DE HIGIENIZACAO,0100000000 - RECURSOS ORDINARIOS DO TESOURO,DISPENSA DE LICITAÇÃO LEI 13979/2020,Conforme Termo de Referencia,05/06/2020,02/10/2020,119,"1133986,40000000","1133986,40000000",05/06/2020,02/07/2020,10210,24,02/07/2020,0,0,0,0
232,10.656.587/0001-45,CIRÚRGICA MS LTDA.,27/001.189/2020,13671,ENCERRADO,(FESA) Fundo Especial de Saúde de Mato Grosso do Sul,Aquisição de Correlatos Hospitalares,33903036 - MATERIAL HOSPITALAR,0100000000 - RECURSOS ORDINARIOS DO TESOURO,DISPENSA DE LICITAÇÃO LEI 13979/2020,Conforme Termo de Referencia,09/06/2020,06/10/2020,119,"80940,00000000","80940,00000000",09/06/2020,30/06/2020,10208,24,30/06/2020,0,0,0,0
233,10.656.587/0001-45,CIRÚRGICA MS LTDA.,27/001.187/2020,13668,ENCERRADO,(FESA) Fundo Especial de Saúde de Mato Grosso do Sul,Aquisição de Correlatos Hospitalares,33903036 - MATERIAL HOSPITALAR,0100000000 - RECURSOS ORDINARIOS DO TESOURO,DISPENSA DE LICITAÇÃO LEI 13979/2020,Conforme Termo de Referencia,28/05/2020,23/11/2020,179,"77959,00000000","77959,00000000",28/05/2020,09/06/2020,10192,25,09/06/2020,0,0,0,0
234,07.626.776/0001-60,CIRURGICA SAO FELIPE PRODUTOS PARA SAUDE LTDA.,27/001.085/2020,13528,ENCERRADO,(FESA) Fundo Especial de Saúde de Mato Grosso do Sul,Aquisição de Monitores Multiparamétricos,44905208 - APAR.EQUIP.UTENS.MEDICO ODONTOL.LAB.HOSPITAL,0100000000 - RECURSOS ORDINARIOS DO TESOURO,DISPENSA DE LICITAÇÃO LEI 13979/2020,almoxarifado central,12/05/2020,07/11/2020,179,"559120,00000000","559120,00000000",12/05/2020,25/05/2020,10180,15,25/05/2020,0,0,0,0
235,02.600.770/0001-09,COMERCIAL VALFARMA EIRELI,27/002.311/2020,14389,ENCERRADO,(FESA) Fundo Especial de Saúde de Mato Grosso do Sul,AQ. DE MEDICAMENTOS - EPINEFRINA,33903219 - Medicamentos e Materiais Médico- Hospitalares,0248000104 - Fonte de Recursos - FESA,"","DMB - AV. DELEGADO OSMAR DE CAMARGO, S/N",30/12/2020,29/03/2021,89,"443491,20000000","443491,20000000",30/12/2020,20/01/2021,10383,22,20/01/2021,0,0,0,0
236,36.325.157/0001-34,COSTA CAMARGO COMERCIO DE PRODUTOS HOSPITALARES LTDA,27/001.649/2020,13833,ENCERRADO,(FESA) Fundo Especial de Saúde de Mato Grosso do Sul,Aquisição de medicamentos,33903009 - MATERIAL FARMACOLOGICO,0103000000 - RECURSOS PROVENIENTE DA LEI N. 2.105/2000,DISPENSA DE LICITAÇÃO LEI 13979/2020,Conforme Termo de Referencia,03/08/2020,30/11/2020,119,"575760,00000000","575760,00000000",03/08/2020,20/08/2020,10259,17 e 18,20/08/2020,0,0,0,0
237,44.734.671/0001-51,CRISTALIA PRODUTOS QUIMICOS FARMACEUTICOS LTDA.,27/004.721/2021,15525,ENCERRADO,(FESA) Fundo Especial de Saúde de Mato Grosso do Sul,Aquisição de medicamentos que compõem o ''Kit intubação'',33903219 - Medicamentos e Materiais Médico- Hospitalares,0248000125 - PT. 3896/20 - COVID-19,DISPENSA DE LICITAÇÃO MP 1047/2021,Conforme Termo de Referencia,10/08/2021,07/12/2021,119,"1028620,00000000","1028620,00000000",10/08/2021,24/08/2021,10614,35 e 36,24/08/2021,0,0,0,0
238,44.734.671/0001-51,CRISTALIA PRODUTOS QUIMICOS FARMACEUTICOS LTDA.,27/006.010/2021,15772,ENCERRADO,(FESA) Fundo Especial de Saúde de Mato Grosso do Sul,Aquisição de medicamento chamado ''Kit intubação'',33903219 - Medicamentos e Materiais Médico- Hospitalares,0100000000 - RECURSOS ORDINARIOS DO TESOURO,DISPENSA DE LICITAÇÃO MP 1047/2021,Conforme Termo de Referencia,22/09/2021,20/03/2022,179,"3145000,00000000","1572500,00000000",22/09/2021,07/10/2021,10651,34,07/10/2021,0,0,0,0
239,44.734.671/0001-51,CRISTALIA PRODUTOS QUIMICOS FARMACEUTICOS LTDA.,27/000.845/2021,14851,ENCERRADO,(FESA) Fundo Especial de Saúde de Mato Grosso do Sul,Aquisição de medicamentos para atender a CAFB.,33903219 - Medicamentos e Materiais Médico- Hospitalares,0248000103 - LC. 172/20 - COVID-19,"","DMB - Rua Delegado Osmar de Camargo, S/N",23/03/2021,22/09/2021,183,"411788,78000000","514710,50000000",23/03/2021,31/03/2021,10460,25,31/03/2021,0,0,0,0
240,44.734.671/0001-51,CRISTALIA PRODUTOS QUIMICOS FARMACEUTICOS LTDA.,27/001.990/2020,13993,ENCERRADO,(FESA) Fundo Especial de Saúde de Mato Grosso do Sul,Aquisição de medicamentos para atender a CGAF/DGAS/SES/MS.,33903219 - Medicamentos e Materiais Médico- Hospitalares,0248000104 - Fonte de Recursos - FESA,PREGÃO ELETRÔNICO,"DMB - Rua Delegado Osmar de Camargo, S/N",02/09/2020,01/12/2020,90,"111657,42000000","111657,42000000",02/09/2020,18/09/2020,10282,16 e 17,18/09/2020,0,0,0,0
241,44.734.671/0001-51,CRISTALIA PRODUTOS QUIMICOS FARMACEUTICOS LTDA.,27/001.993/2020,13996,ENCERRADO,(FESA) Fundo Especial de Saúde de Mato Grosso do Sul,Aquisição de medicamento Etomidato para atender a CGAF/DGAS/SES/MS.,33903219 - Medicamentos e Materiais Médico- Hospitalares,0248000104 - Fonte de Recursos - FESA,PREGÃO ELETRÔNICO,"DMB - AV. DELEGADO OSMAR DE CAMARGO, S/N",02/09/2020,01/12/2020,90,"89703,75000000","89703,75000000",02/09/2020,30/09/2020,10291,43,30/09/2020,0,0,0,0
242,44.734.671/0001-51,CRISTALIA PRODUTOS QUIMICOS FARMACEUTICOS LTDA.,27/002.312/2020,14372,ENCERRADO,(FESA) Fundo Especial de Saúde de Mato Grosso do Sul,"AQ. DE MEDICAMENTOS - ATRACURIO, ETOMIDATO...",33903219 - Medicamentos e Materiais Médico- Hospitalares,0248000104 - Fonte de Recursos - FESA,"","DMB - AV. DELEGADO OSMAR DE CAMARGO, S/N",09/12/2020,08/03/2021,89,"562505,53000000","562505,53000000",09/12/2020,16/12/2020,10352,31,16/12/2020,0,0,0,0
243,44.734.671/0001-51,CRISTALIA PRODUTOS QUIMICOS FARMACEUTICOS LTDA.,27/005.552/2021,15371,ENCERRADO,(FESA) Fundo Especial de Saúde de Mato Grosso do Sul,Aquisição de medicamento para atender a CAFB.,33903219 - Medicamentos e Materiais Médico- Hospitalares,0248000104 - Fonte de Recursos - FESA,PREGÃO ELETRÔNICO,"DMB - Rua Delegado Osmar de Camargo, S/N",14/07/2021,13/07/2022,364,"382415,00000000","382415,00000000",14/07/2021,22/07/2021,10579,13,22/07/2021,0,0,0,0
244,44.734.671/0001-51,CRISTALIA PRODUTOS QUIMICOS FARMACEUTICOS LTDA.,27/001.649/2020,13831,ENCERRADO,(FESA) Fundo Especial de Saúde de Mato Grosso do Sul,Aquisição de medicamentos,33903009 - MATERIAL FARMACOLOGICO,0103000000 - RECURSOS PROVENIENTE DA LEI N. 2.105/2000,DISPENSA DE LICITAÇÃO LEI 13979/2020,Conforme Termo de Referencia,20/07/2020,16/11/2020,119,"60375,00000000","60375,00000000",20/07/2020,20/08/2020,10259,16 e 17,20/08/2020,0,0,0,0
245,09.642.212/0001-47,D D LIMPE DEDETIZADORA LTDA ME,31/701.767/2020,13897,ENCERRADO,(DETRAN) Departamento Estadual de Trânsito,"Serviços de sanitização de ambientes interno e externo, para atender a demanda do Departamento de Trânsito do Estado de Mato Grosso do Sul  DETRAN-MS",33903978 - LIMPEZA E CONSERVACAO,0240000000 - RECURSOS DIRETAMENTE ARRECADADOS,DISPENSA DE LICITAÇÃO LEI 13979/2020,Conforme exigências constantes nos seus anexos,06/08/2020,01/02/2021,179,"35400,00000000","35400,00000000",06/08/2020,10/08/2020,10248,48,10/08/2020,0,0,0,0
246,09.642.212/0001-47,D D LIMPE DEDETIZADORA LTDA ME,31/701.767/2020,13897,ENCERRADO,(DETRAN) Departamento Estadual de Trânsito,"Serviços de sanitização de ambientes interno e externo, para atender a demanda do Departamento de Trânsito do Estado de Mato Grosso do Sul  DETRAN-MS",33909239 - OUTROS SERV DE TERC PESSOA JURÍDICA - AJUSTES DE EXERCICIOS ANTERIORES,0240000000 - RECURSOS DIRETAMENTE ARRECADADOS,DISPENSA DE LICITAÇÃO LEI 13979/2020,Conforme exigências constantes nos seus anexos,06/08/2020,01/02/2021,179,"35400,00000000","35400,00000000",06/08/2020,10/08/2020,10248,48,10/08/2020,0,0,0,0
247,10.396.394/0001-00,DIAGNOLAB LABORATORIOS LTDA.,27/001.216/2020,13591,ENCERRADO,(FESA) Fundo Especial de Saúde de Mato Grosso do Sul,Aquisição de Teste Rápido Coronavírus IgG e IgM para detecção do (COVID-19),33903011 - MATERIAL QUIMICO,0248000095 - Portaria 774/2020 - COVID-19,DISPENSA DE LICITAÇÃO LEI 13979/2020,Conforme Termo de Referencia,22/05/2020,17/11/2020,179,"2190000,00000000","2190000,00000000",22/05/2020,08/06/2020,10191,6 e 7,08/06/2020,0,0,0,0
248,10.396.394/0001-00,DIAGNOLAB LABORATORIOS LTDA.,27/001.588/2020,13843,ENCERRADO,(FESA) Fundo Especial de Saúde de Mato Grosso do Sul,"Aquisição de placas para PCR em tempo real, Filme para Laboratório, Caixas com tampa articulada para microtubos e Rack para tubos de centrifugação de 15 e 50 ml.",33903035 - MATERIAL LABORATORIAL,0103000000 - RECURSOS PROVENIENTE DA LEI N. 2.105/2000,DISPENSA DE LICITAÇÃO LEI 13979/2020,Conforme Termo de Referencia,21/07/2020,17/11/2020,119,"73228,20000000","73228,20000000",21/07/2020,03/08/2020,10242,9,03/08/2020,0,0,0,0
249,02.520.829/0001-40,DIMASTER - COMÉRCIO DE PRODUTOS HOSPITALARES LTDA,27/001.649/2020,13832,ENCERRADO,(FESA) Fundo Especial de Saúde de Mato Grosso do Sul,Aquisição de medicamentos,33903009 - MATERIAL FARMACOLOGICO,0103000000 - RECURSOS PROVENIENTE DA LEI N. 2.105/2000,DISPENSA DE LICITAÇÃO LEI 13979/2020,Conforme Termo de Referencia,20/07/2020,16/11/2020,119,"35235,20000000","35235,20000000",20/07/2020,20/08/2020,10259,17,20/08/2020,0,0,0,0
250,18.483.775/0001-20,DU BOM DISTRIBUICAO DE PRODUTOS MEDICO-HOSPITALAR LTDA.,27/001.187/2020,13669,ENCERRADO,(FESA) Fundo Especial de Saúde de Mato Grosso do Sul,Aquisição de Correlatos Hospitalares,33903036 - MATERIAL HOSPITALAR,0100000000 - RECURSOS ORDINARIOS DO TESOURO,DISPENSA DE LICITAÇÃO LEI 13979/2020,Conforme Termo de Referencia,28/05/2020,23/11/2020,179,"16000,00000000","16000,00000000",28/05/2020,09/06/2020,10192,26,09/06/2020,0,0,0,0
251,18.483.775/0001-20,DU BOM DISTRIBUICAO DE PRODUTOS MEDICO-HOSPITALAR LTDA.,29/024.148/2020,13785,ENCERRADO,(SED) Secretaria de Estado de Educação,"Aquisição de materiais de limpeza, higienização e equipamentos de proteção individual conforme Anexo I e II, visando atender a os alunos da Rede Estadual de Ensino do Estado de Mato Grosso do Sul, em razão do retono das aulas presenciais na Rede Estadual de Ensino, tais materiais se tornarão indispensáveis para assegurar a proteção aos estudantes e servidores da unidades escolares.",33903022 - MATERIAL DE LIMPEZA E PROD. DE HIGIENIZACAO,0103000000 - RECURSOS PROVENIENTE DA LEI N. 2.105/2000,DISPENSA DE LICITAÇÃO LEI 13979/2020,"Rua Delegado José Alfredo Hadman, n. 200 - Parque dos Poderes - Campo Grande/MS",08/07/2020,05/09/2020,59,"70254,88000000","70254,88000000",08/07/2020,27/07/2020,10236,7,27/07/2020,0,0,0,0
252,19.993.061/0001-25,EASY SOLUÇÕES DIAGNOSTICAS LTDA,27/101.841/2020,14378,ENCERRADO,(FUNSAU) Fundação Serviços de Saúde de MS,Aquisição de pack's gasometria,33903011 - MATERIAL QUIMICO,0240000000 - RECURSOS DIRETAMENTE ARRECADADOS,PREGÃO ELETRÔNICO,"Rua Engº Luthero Lopes, n° 36",18/11/2020,18/11/2021,365,"469800,00000000","587250,00000000",18/11/2020,30/12/2020,10364,58,30/12/2020,0,0,0,0
253,15.353.437/0001-86,EKOBOX LOCACOES LTDA,27/001.328/2020,13600,ENCERRADO,(FESA) Fundo Especial de Saúde de Mato Grosso do Sul,"Contratação de empresa para locação de containers módulos habitacionais,",33903914 - LOCACAO DE BENS MOV.OUT.NATUREZAS E INTANGIVE,0100000000 - RECURSOS ORDINARIOS DO TESOURO,DISPENSA DE LICITAÇÃO LEI 13979/2020,Conforme Termo de Referencia,17/08/2020,15/09/2020,29,"1243260,00000000","414420,00000000",14/08/2020,28/08/2020,10180,16,25/05/2020,0,0,0,0
254,15.353.437/0001-86,EKOBOX LOCACOES LTDA,27/001.328/2020,13600,ENCERRADO,(FESA) Fundo Especial de Saúde de Mato Grosso do Sul,"Contratação de empresa para locação de containers módulos habitacionais,",33903914 - LOCACAO DE BENS MOV.OUT.NATUREZAS E INTANGIVE,0100000000 - RECURSOS ORDINARIOS DO TESOURO,DISPENSA DE LICITAÇÃO LEI 13979/2020,Conforme Termo de Referencia,19/05/2020,16/08/2020,89,"1243260,00000000","1243260,00000000",19/05/2020,25/05/2020,10180,16,25/05/2020,0,0,0,0
255,09.137.236/0001-49,ENZO CAMINHÕES LTDA,27/006.369/2021,15464,ENCERRADO,(FESA) Fundo Especial de Saúde de Mato Grosso do Sul,Aquisição de 13 ambulâncias para atender municípios de MS.,44905252 - VEICULOS DE TRACAO MECANICA,0100000000 - RECURSOS ORDINARIOS DO TESOURO,PREGÃO ELETRÔNICO,"R. Araçá, 1495. C. Grande/MS",27/07/2021,27/07/2022,365,"5070000,00000000","5070000,00000000",27/07/2021,04/08/2021,10595,19,04/08/2021,0,0,0,0
256,09.137.236/0001-49,ENZO CAMINHÕES LTDA,27/006.369/2021,15464,ENCERRADO,(FESA) Fundo Especial de Saúde de Mato Grosso do Sul,Aquisição de 13 ambulâncias para atender municípios de MS.,44905252 - VEICULOS DE TRACAO MECANICA,0100000000 - RECURSOS ORDINARIOS DO TESOURO,PREGÃO ELETRÔNICO,"R. Araçá, 1495. C. Grande/MS",28/07/2022,26/01/2023,182,"5070000,00000000","6240000,00000000",21/07/2022,30/06/2022,10595,19,04/08/2021,0,0,0,0
257,04.619.893/0001-09,ESPECIALISTA - PRODUTOS PARA LABORATÓRIO S/A,27/001.114/2020,13624,ENCERRADO,(FESA) Fundo Especial de Saúde de Mato Grosso do Sul,Aquisição Emergencial de kits para realização dos marcadores sorológicos;,33903011 - MATERIAL QUIMICO,0248000001 - Apoio as ações de média e alta complexidade,DISPENSA DE LICITAÇÃO,"HEMOSUL COORDENADOR, sito Av. Fernando Correa da Costa, 1304, Bairro Centro, em Campo Grande MS.",21/05/2020,20/11/2020,183,"2283933,00000000","2283933,00000000",21/05/2020,09/06/2020,10192,24,09/06/2020,0,0,0,0
258,61.190.096/0008-69,EUROFARMA LABORATÓRIOS SA,27/002.310/2020,14384,ENCERRADO,(FESA) Fundo Especial de Saúde de Mato Grosso do Sul,AQ. DE MEDICAMENTO - DEXMEDETOMIDINA,33903219 - Medicamentos e Materiais Médico- Hospitalares,0248000104 - Fonte de Recursos - FESA,"","DMB - AV. DELEGADO OSMAR DE CAMARGO, S/N",02/02/2021,01/05/2021,88,"80179,20000000","80179,20000000",02/02/2021,25/03/2021,10453,4 e 5,25/03/2021,0,0,0,0
259,20.299.623/0001-14,FABIO EQUIPAMENTOS E SUPRIMENTOS DE INFORMATICA EIRELI,27/001.120/2020,13540,ENCERRADO,(FESA) Fundo Especial de Saúde de Mato Grosso do Sul,Aquisição de correlatos hospitalares para atender a demanda da Secretaria de Estado de Saúde: mascara hospitalar,33903036 - MATERIAL HOSPITALAR,0100000000 - RECURSOS ORDINARIOS DO TESOURO,DISPENSA DE LICITAÇÃO LEI 13979/2020,"Rua Araçá, 1495  Morada Verde  CEP: 79013-600 - Campo Grande/MS",13/05/2020,08/11/2020,179,"163000,00000000","163000,00000000",13/05/2020,21/05/2020,10177,11,21/05/2020,0,0,0,0
260,20.299.623/0001-14,FABIO EQUIPAMENTOS E SUPRIMENTOS DE INFORMATICA EIRELI,27/001.189/2020,13675,ENCERRADO,(FESA) Fundo Especial de Saúde de Mato Grosso do Sul,Aquisição de Correlatos Hospitalares,33903016 - MATERIAL DE EXPEDIENTE,0100000000 - RECURSOS ORDINARIOS DO TESOURO,DISPENSA DE LICITAÇÃO LEI 13979/2020,Conforme Termo de Referencia,19/06/2020,16/10/2020,119,"40080,00000000","40080,00000000",19/06/2020,30/06/2020,10208,25 e 26,30/06/2020,0,0,0,0
261,70.939.574/0001-05,FÁBRICA DE ARTEFATOS DE LATEX SÃO ROQUE LTDA.,27/001.188/2020,13648,ENCERRADO,(FESA) Fundo Especial de Saúde de Mato Grosso do Sul,"Aquisição de correlatos hospitalares: luva, seringa, sonda, touca, sistema de drenagem",33903036 - MATERIAL HOSPITALAR,0100000000 - RECURSOS ORDINARIOS DO TESOURO,DISPENSA DE LICITAÇÃO LEI 13979/2020,Conforme Termo de Referencia,17/06/2020,14/10/2020,119,"44634,00000000","44634,00000000",17/06/2020,01/07/2020,10209,17,01/07/2020,0,0,0,0
262,14.166.058/0001-14,FLEX OFFICE COMERCIO DE PRODUTOS PARA ESCRITORIO LTDA.,31/035.964/2022,18173,ENCERRADO,(SEJUSP) Secretaria de Estado de Justiça e Segurança Pública,Aquisição de mobiliários em geral para atender as necessidades da Coordenadoria Geral de Perícias/CGP/MS - ARP 069/SAD/2021.1 - Vig 29/09/2022,44905242 - MOBILIARIO EM GERAL,0100000000 - RECURSOS ORDINARIOS DO TESOURO,PREGÃO ELETRÔNICO,"Av. Senador Filinto Muller 1530 V. Ipiranga, 79074-460, C. Grande/MS e R. Cel. Ponciano de Mattos Pereira, nº835, Terra Roxa, 79.840-505 Dourados/MS",29/06/2022,28/06/2023,364,"772352,00000000","965002,00000000",29/06/2022,27/07/2022,10901,38,27/07/2022,0,0,0,0
263,14.166.058/0001-14,FLEX OFFICE COMERCIO DE PRODUTOS PARA ESCRITORIO LTDA.,31/035.964/2022,18173,ENCERRADO,(SEJUSP) Secretaria de Estado de Justiça e Segurança Pública,Aquisição de mobiliários em geral para atender as necessidades da Coordenadoria Geral de Perícias/CGP/MS - ARP 069/SAD/2021.1 - Vig 29/09/2022,44905242 - MOBILIARIO EM GERAL,0250000001 - Recursos não Vinculados de Impostos,PREGÃO ELETRÔNICO,"Av. Senador Filinto Muller 1530 V. Ipiranga, 79074-460, C. Grande/MS e R. Cel. Ponciano de Mattos Pereira, nº835, Terra Roxa, 79.840-505 Dourados/MS",29/06/2022,28/06/2023,364,"772352,00000000","965002,00000000",29/06/2022,27/07/2022,10901,38,27/07/2022,0,0,0,0
264,01.236.234/0001-03,G & L INDUSTRIA E COMERCIO LTDA,29/024.148/2020,13781,ENCERRADO,(SED) Secretaria de Estado de Educação,"Aquisição de materiais de limpeza, higienização e equipamentos de proteção individual conforme Anexo I e II, visando atender a os alunos da Rede Estadual de Ensino do Estado de Mato Grosso do Sul, em razão do retono das aulas presenciais na Rede Estadual de Ensino, tais materiais se tornarão indispensáveis para assegurar a proteção aos estudantes e servidores da unidades escolares.",33903028 - MATERIAL DE PROTECAO E SEGURANCA,0103000000 - RECURSOS PROVENIENTE DA LEI N. 2.105/2000,DISPENSA DE LICITAÇÃO LEI 13979/2020,"Rua Delegado José Alfredo Hadman, n. 200 - Parque dos Poderes - Campo Grande/MS",08/07/2020,05/09/2020,59,"1395465,76000000","1395465,76000000",08/07/2020,22/07/2020,10232,17,22/07/2020,0,0,0,0
265,00.029.372/0002-21,GE HEALTHCARE DO BRASIL COMERCIO E SERVICOS PARA EQUIPAMENTOS MEDICO-HOSPITALARES LTDA.,31/001.458/2020,14165,CELEBRADO,(SEJUSP) Secretaria de Estado de Justiça e Segurança Pública,Aquisição de arco cirúrgico para atender a demanda do Instituto de Medicina e Odontologia Legal (IMOL) da Coordenadoria-Geral de Perícias (CGP),44905208 - APAR.EQUIP.UTENS.MEDICO ODONTOL.LAB.HOSPITAL,0259000000 - Transferências do FNSP,DISPENSA DE LICITAÇÃO LEI 13979/2020,"Coordenadoria-Geral de Peícias, Av. Sen. Filinto Müler, 1530 - Vila Ipiranga, Campo Grande - MS, 79074-460. Este estabelecimento funciona de segunda à sexta, das 07:30h às 11:30h e das 13:30h às 17:30h.",02/12/2020,31/03/2021,119,"275000,00000000","275000,00000000",02/12/2020,07/12/2020,10342,16,07/12/2020,0,0,0,0
266,00.029.372/0002-21,GE HEALTHCARE DO BRASIL COMERCIO E SERVICOS PARA EQUIPAMENTOS MEDICO-HOSPITALARES LTDA.,31/001.458/2020,14165,CELEBRADO,(SEJUSP) Secretaria de Estado de Justiça e Segurança Pública,Aquisição de arco cirúrgico para atender a demanda do Instituto de Medicina e Odontologia Legal (IMOL) da Coordenadoria-Geral de Perícias (CGP),44909252 - EQUIPAMENTOS E MATERIAIS PERMANENTES,0259000000 - Transferências do FNSP,DISPENSA DE LICITAÇÃO LEI 13979/2020,"Coordenadoria-Geral de Peícias, Av. Sen. Filinto Müler, 1530 - Vila Ipiranga, Campo Grande - MS, 79074-460. Este estabelecimento funciona de segunda à sexta, das 07:30h às 11:30h e das 13:30h às 17:30h.",02/12/2020,31/03/2021,119,"275000,00000000","275000,00000000",02/12/2020,07/12/2020,10342,16,07/12/2020,0,0,0,0
267,00.596.529/0001-10,GENETICA COMERCIO IMPORTACAO E EXPORTACAO LTDA.,27/002.111/2020,14218,ENCERRADO,(FESA) Fundo Especial de Saúde de Mato Grosso do Sul,Aquisição de Testes sorológicos com equipamento em comodato para o diagnóstico do novo Coronavírus (Sars-cov-2),33903011 - MATERIAL QUIMICO,0248000103 - LC. 172/20 - COVID-19,DISPENSA DE LICITAÇÃO LEI 13979/2020,Conforme Termo de Referencia,28/10/2020,24/02/2021,119,"630000,00000000","630000,00000000",28/10/2020,11/11/2020,10321,16 e 17,11/11/2020,0,0,0,0
268,10.596.721/0001-60,GEORGINI PRODUTOS HOSPITALARES LTDA,27/000.627/2021,14671,ENCERRADO,(FESA) Fundo Especial de Saúde de Mato Grosso do Sul,Aquisição de Seringa e agulhas,33903036 - MATERIAL HOSPITALAR,0248000103 - LC. 172/20 - COVID-19,DISPENSA DE LICITAÇÃO MP 1026/2021,Conforme Termo de Referencia,17/02/2021,16/08/2021,180,"552193,30000000","552193,30000000",17/02/2021,04/03/2021,10427,17,04/03/2021,0,0,0,0
269,10.596.721/0001-60,GEORGINI PRODUTOS HOSPITALARES LTDA,27/000.627/2021,14671,ENCERRADO,(FESA) Fundo Especial de Saúde de Mato Grosso do Sul,Aquisição de Seringa e agulhas,33903036 - MATERIAL HOSPITALAR,0248000114 - PT. 2624/20 - COVID-19,DISPENSA DE LICITAÇÃO MP 1026/2021,Conforme Termo de Referencia,17/02/2021,16/08/2021,180,"552193,30000000","552193,30000000",17/02/2021,04/03/2021,10427,17,04/03/2021,0,0,0,0
270,10.596.721/0001-60,GEORGINI PRODUTOS HOSPITALARES LTDA,27/002.257/2020,14235,ENCERRADO,(FESA) Fundo Especial de Saúde de Mato Grosso do Sul,Aquisição de Álcool Etílico,33903022 - MATERIAL DE LIMPEZA E PROD. DE HIGIENIZACAO,0248000104 - Fonte de Recursos - FESA,DISPENSA DE LICITAÇÃO LEI 13979/2020,"Almoxarifado da SES, Rua Araçá 1495, Morada Verde, Campo Grande, MS.",30/10/2020,27/01/2021,89,"119350,00000000","119350,00000000",30/10/2020,09/11/2020,10319,21,09/11/2020,0,0,0,0
271,10.596.721/0001-60,GEORGINI PRODUTOS HOSPITALARES LTDA,27/005.521/2021,15286,ENCERRADO,(FESA) Fundo Especial de Saúde de Mato Grosso do Sul,Aquisição de seringas para atender a Gerência Técnica de Imunização.,33903036 - MATERIAL HOSPITALAR,0248000002 - Desenvolvimento de ações de vigilância em saúde,PREGÃO ELETRÔNICO,"R. Araçá, 1495. C. Grande/MS",14/07/2021,14/07/2022,365,"575000,00000000","575000,00000000",14/07/2021,04/08/2021,10595,18,04/08/2021,0,0,0,0
272,10.596.721/0001-60,GEORGINI PRODUTOS HOSPITALARES LTDA,27/001.189/2020,13677,ENCERRADO,(FESA) Fundo Especial de Saúde de Mato Grosso do Sul,Aquisição de Correlatos Hospitalares,33903036 - MATERIAL HOSPITALAR,0100000000 - RECURSOS ORDINARIOS DO TESOURO,DISPENSA DE LICITAÇÃO LEI 13979/2020,Conforme Termo de Referencia,09/06/2020,06/10/2020,119,"34905,60000000","34905,60000000",09/06/2020,30/06/2020,10208,26 e 27,30/06/2020,0,0,0,0
273,00.671.994/0001-78,GIROGAZ COMERCIAL DE OXIGÊNIO LTDA.,27/001.308/2020,13691,ENCERRADO,(FESA) Fundo Especial de Saúde de Mato Grosso do Sul,AQUISIÇÃO DE OXIGÊNIO LÍQUIDO COM TANQUE DE CRIOGÊNIO EM COMODATO,33903004 - GAS ENGARRAFADO,0100000000 - RECURSOS ORDINARIOS DO TESOURO,DISPENSA DE LICITAÇÃO LEI 13979/2020,HOSPITAL REGIONAL DE MS,04/06/2020,01/09/2020,89,"29900,00000000","29900,00000000",04/06/2020,19/06/2020,10199,17 e 18,19/06/2020,0,0,0,0
274,EX0000073,GLOCK AMÉRICA S.A. RUT 21/396232/0018,31/038.638/2022,18637,CELEBRADO,(SEJUSP) Secretaria de Estado de Justiça e Segurança Pública,"Processo de aquisição de pistolas semiautomáticas, calibre 9 mm para atender a Polícia Civil /MS.",44905214 - ARMAMENTOS,0100000000 - RECURSOS ORDINARIOS DO TESOURO,"","Av. Desembargador Leão do Carmo Neto, 1203, Jd. Veraneio, Campo Grande / MS - CEP 79031-902",23/09/2022,22/09/2023,364,"4138479,60000000","5133558,30000000",23/09/2022,18/10/2022,10966,62,18/10/2022,0,0,0,0
275,EX0000073,GLOCK AMÉRICA S.A. RUT 21/396232/0018,31/038.638/2022,18637,CELEBRADO,(SEJUSP) Secretaria de Estado de Justiça e Segurança Pública,"Processo de aquisição de pistolas semiautomáticas, calibre 9 mm para atender a Polícia Civil /MS.",44905214 - ARMAMENTOS,0271380011 - FESP-Transferências Fundo a Fundo de Recursos do Fundo de Segurança Pública - FSP,"","Av. Desembargador Leão do Carmo Neto, 1203, Jd. Veraneio, Campo Grande / MS - CEP 79031-902",23/09/2022,22/09/2023,364,"4138479,60000000","5133558,30000000",23/09/2022,18/10/2022,10966,62,18/10/2022,0,0,0,0
276,28.832.656/0001-90,GUARA COMERCIO DE VEICULOS LTDA.,51/000.468/2022,17243,ENCERRADO,(FUNDESPORTE - Inativo - 2022) Fundação de Desporto e Lazer de Mato Grosso do Sul(Inativo),"O objeto do presente Contrato é a aquisição de veículo 0km, modelo passeio tipo hatch, bicombustível, para atender o projeto ''Lazer nas Cidades, Jogos Escolares da Juventude e Melhor Idade'', Convênio n. 22/2021, conforme especificações e quantitativo estabelecido no Termo de Referência e na Proposta de Preços.",44905252 - VEICULOS DE TRACAO MECANICA,0100000000 - RECURSOS ORDINARIOS DO TESOURO,PREGÃO ELETRÔNICO,av. Mato Grosso nº 5778,21/02/2022,21/09/2022,212,"88759,50000000","88759,50000000",21/02/2022,09/03/2022,10773,42,09/03/2022,0,0,0,0
277,28.832.656/0001-90,GUARA COMERCIO DE VEICULOS LTDA.,51/000.468/2022,17243,ENCERRADO,(FUNDESPORTE - Inativo - 2022) Fundação de Desporto e Lazer de Mato Grosso do Sul(Inativo),"O objeto do presente Contrato é a aquisição de veículo 0km, modelo passeio tipo hatch, bicombustível, para atender o projeto ''Lazer nas Cidades, Jogos Escolares da Juventude e Melhor Idade'', Convênio n. 22/2021, conforme especificações e quantitativo estabelecido no Termo de Referência e na Proposta de Preços.",44905252 - VEICULOS DE TRACAO MECANICA,0103000000 - RECURSOS PROVENIENTE DA LEI N. 2.105/2000,PREGÃO ELETRÔNICO,av. Mato Grosso nº 5778,21/02/2022,21/09/2022,212,"88759,50000000","88759,50000000",21/02/2022,09/03/2022,10773,42,09/03/2022,0,0,0,0
278,32.181.809/0001-53,GUARIÃ COMERCIO E REPRESENTACAO DE PRODUTOS HOSPITALARES LTDA.,27/001.188/2020,13644,ENCERRADO,(FESA) Fundo Especial de Saúde de Mato Grosso do Sul,"Aquisição de correlatos hospitalares: luva, seringa, sonda, touca, sistema de drenagem",33903036 - MATERIAL HOSPITALAR,0100000000 - RECURSOS ORDINARIOS DO TESOURO,DISPENSA DE LICITAÇÃO LEI 13979/2020,Conforme Termo de Referencia,10/06/2020,07/10/2020,119,"241486,00000000","241486,00000000",10/06/2020,01/07/2020,10209,19,01/07/2020,0,0,0,0
279,12.063.265/0001-18,HACKLAB SERVIÇOS DE TECNOLOGIA EM INFORMATICA LTDA EPP,51/700.185/2020,14073,CELEBRADO,(FCMS (INATIVO)) Fundação de Cultura de Mato Grosso do Sul(Inativo),Contratação de empresa especializada em serviços Técnicos Profissionais na área de Tecnologia da Informação  e Comunicação TIC.,33904005 - Serviços Técnicos Profissionais em TI,0100000000 - RECURSOS ORDINARIOS DO TESOURO,DISPENSA DE LICITAÇÃO LEI 13979/2020,"SUPERINTENDÊNCIA DE GESTÃO DA INFORMAÇÃO  Rua Delegado Osmar de Camargo, s/n   Parque dos Poderes  CEP 79037-104  Campo Grande/MS",17/09/2020,17/03/2021,181,"127500,00000000","127500,00000000",17/09/2020,25/09/2020,10287,29,25/09/2020,0,0,0,0
280,12.063.265/0001-18,HACKLAB SERVIÇOS DE TECNOLOGIA EM INFORMATICA LTDA EPP,51/700.185/2020,14073,CELEBRADO,(FCMS (INATIVO)) Fundação de Cultura de Mato Grosso do Sul(Inativo),Contratação de empresa especializada em serviços Técnicos Profissionais na área de Tecnologia da Informação  e Comunicação TIC.,33909240 - Serviços de Tecnologia da Informação e Comunicação-Pessoa Jurídica,0100000000 - RECURSOS ORDINARIOS DO TESOURO,DISPENSA DE LICITAÇÃO LEI 13979/2020,"SUPERINTENDÊNCIA DE GESTÃO DA INFORMAÇÃO  Rua Delegado Osmar de Camargo, s/n   Parque dos Poderes  CEP 79037-104  Campo Grande/MS",17/09/2020,17/03/2021,181,"127500,00000000","127500,00000000",17/09/2020,25/09/2020,10287,29,25/09/2020,0,0,0,0
281,20.220.317/0001-40,HD - MIYAHARA COMERCIO E SERVICOS LTDA,27/001.189/2020,13674,ENCERRADO,(FESA) Fundo Especial de Saúde de Mato Grosso do Sul,Aquisição de Correlatos Hospitalares,33903036 - MATERIAL HOSPITALAR,0100000000 - RECURSOS ORDINARIOS DO TESOURO,DISPENSA DE LICITAÇÃO LEI 13979/2020,Conforme Termo de Referencia,09/06/2020,06/10/2020,119,"20160,00000000","20160,00000000",09/06/2020,30/06/2020,10208,25,30/06/2020,0,0,0,0
282,19.570.720/0007-06,HIPOLABOR FARMACEUTICA LTDA,27/000.855/2021,14862,ENCERRADO,(FESA) Fundo Especial de Saúde de Mato Grosso do Sul,Aquisição de medicamentos para atender a CAFB.,33903219 - Medicamentos e Materiais Médico- Hospitalares,0100000000 - RECURSOS ORDINARIOS DO TESOURO,"","DMB - Rua Delegado Osmar de Camargo, S/N",24/03/2021,23/09/2021,183,"481637,09000000","601860,79000000",24/03/2021,15/04/2021,10474,42 e 43,15/04/2021,0,0,0,0
283,19.570.720/0007-06,HIPOLABOR FARMACEUTICA LTDA,27/000.855/2021,14862,ENCERRADO,(FESA) Fundo Especial de Saúde de Mato Grosso do Sul,Aquisição de medicamentos para atender a CAFB.,33903219 - Medicamentos e Materiais Médico- Hospitalares,0248000103 - LC. 172/20 - COVID-19,"","DMB - Rua Delegado Osmar de Camargo, S/N",24/03/2021,23/09/2021,183,"481637,09000000","601860,79000000",24/03/2021,15/04/2021,10474,42 e 43,15/04/2021,0,0,0,0
284,11.192.559/0001-87,HOSP BIO INDUSTRIA E COMERCIO DE MÓVEIS HOSPITALARES EIRELI EPP,27/001.361/2020,13663,ENCERRADO,(FESA) Fundo Especial de Saúde de Mato Grosso do Sul,Aquisição de Cama Hospitalar com colchão,44905208 - APAR.EQUIP.UTENS.MEDICO ODONTOL.LAB.HOSPITAL,0100000000 - RECURSOS ORDINARIOS DO TESOURO,DISPENSA DE LICITAÇÃO LEI 13979/2020,Conforme Termo de Referencia,28/05/2020,23/11/2020,179,"1280000,00000000","1280000,00000000",28/05/2020,08/06/2020,10191,8,08/06/2020,0,0,0,0
285,05.743.288/0001-08,HOSPCOM EQUIPAMENTOS HOSPITALARES LTDA,27/000.904/2020,13372,ENCERRADO,(FESA) Fundo Especial de Saúde de Mato Grosso do Sul,Aquisição de ventilador pulmonar,44905208 - APAR.EQUIP.UTENS.MEDICO ODONTOL.LAB.HOSPITAL,0100000000 - RECURSOS ORDINARIOS DO TESOURO,DISPENSA DE LICITAÇÃO LEI 13979/2020,Almoxarifado central,31/03/2020,30/09/2020,183,"1485000,00000000","1485000,00000000",31/03/2020,17/04/2020,10151,11 e 12,17/04/2020,0,0,0,0
286,26.921.908/0002-02,HOSPFAR INDUSTRIA E COMÉRCIO DE PRODUTOS HOSPITALARES S.A,27/004.721/2021,15536,ENCERRADO,(FESA) Fundo Especial de Saúde de Mato Grosso do Sul,Aquisição de medicamentos que compõem o ''Kit intubação'',33903219 - Medicamentos e Materiais Médico- Hospitalares,0248000125 - PT. 3896/20 - COVID-19,DISPENSA DE LICITAÇÃO MP 1047/2021,Conforme Termo de Referencia,11/08/2021,08/12/2021,119,"36000,00000000","36000,00000000",11/08/2021,27/08/2021,10618,25,27/08/2021,0,0,0,0
287,17.174.657/0001-78,HYPOFARMA INSTITUTO DE HYPODERMIA E FARMÁCIA LTDA.,27/000.863/2021,14863,ENCERRADO,(FESA) Fundo Especial de Saúde de Mato Grosso do Sul,Aquisição de medicamentos para atender a CAFB.,33903219 - Medicamentos e Materiais Médico- Hospitalares,0100000000 - RECURSOS ORDINARIOS DO TESOURO,"","DMB - Rua Delegado Osmar de Camargo, S/N",10/05/2021,09/11/2021,183,"299388,70000000","374233,10000000",10/05/2021,24/05/2021,10516,19,24/05/2021,0,0,0,0
288,17.174.657/0001-78,HYPOFARMA INSTITUTO DE HYPODERMIA E FARMÁCIA LTDA.,27/000.863/2021,14863,ENCERRADO,(FESA) Fundo Especial de Saúde de Mato Grosso do Sul,Aquisição de medicamentos para atender a CAFB.,33903219 - Medicamentos e Materiais Médico- Hospitalares,0248000103 - LC. 172/20 - COVID-19,"","DMB - Rua Delegado Osmar de Camargo, S/N",10/05/2021,09/11/2021,183,"299388,70000000","374233,10000000",10/05/2021,24/05/2021,10516,19,24/05/2021,0,0,0,0
289,78.589.504/0001-86,INDREL INDÚSTRIA DE REFRIGERAÇÃO LONDRINENSE LTDA,27/001.207/2020,13601,ENCERRADO,(FESA) Fundo Especial de Saúde de Mato Grosso do Sul,"Aquisição de ultrafreezers para armazenamento de amostras e insumos para realização de exames pela metodologia de Biologia Molecular, entre eles o diagnóstico de Coronavírus por dispensa de licitação, a fim de atender o Boletim Epidemiológico n. 01 do Centro de Operações de Emergências em Saúde Pública do Ministério da Saúde - Infecção Humana pelo Novo Coronavírus (2019-nCoV).",44905208 - APAR.EQUIP.UTENS.MEDICO ODONTOL.LAB.HOSPITAL,0248000082 - PT. 1622/19  - Investimento LACEN,DISPENSA DE LICITAÇÃO LEI 13979/2020,"Laboratório Central de Saúde Pública de Mato Grosso do Sul (Lacen/MS) na Av. Senador Filinto Muller 1666, Vila Ipiranga, Campo Grande - MS, fone: (67) 3345-1309.",25/05/2020,20/11/2020,179,"164000,00000000","164000,00000000",25/05/2020,26/06/2020,10205,19,26/06/2020,0,0,0,0
290,78.589.504/0001-86,INDREL INDÚSTRIA DE REFRIGERAÇÃO LONDRINENSE LTDA,27/001.388/2020,13747,ENCERRADO,(FESA) Fundo Especial de Saúde de Mato Grosso do Sul,AQUISIÇÃO DE FREEZERS,44905208 - APAR.EQUIP.UTENS.MEDICO ODONTOL.LAB.HOSPITAL,0100000000 - RECURSOS ORDINARIOS DO TESOURO,DISPENSA DE LICITAÇÃO LEI 13979/2020,"ALMOXARIFADO DA SES: RUA ARAÇÁ, 1495 - MORADA VERDE - CAMPO GRANDE/MS",30/06/2020,27/09/2020,89,"51000,00000000","51000,00000000",30/06/2020,23/07/2020,10233,15 e 16,23/07/2020,0,0,0,0
291,59.309.302/0001-99,INJEX INDÚSTRIAS CIRÚRGICAS LTDA.,27/001.188/2020,13649,ENCERRADO,(FESA) Fundo Especial de Saúde de Mato Grosso do Sul,"Aquisição de correlatos hospitalares: luva, seringa, sonda, touca, sistema de drenagem",33903036 - MATERIAL HOSPITALAR,0100000000 - RECURSOS ORDINARIOS DO TESOURO,DISPENSA DE LICITAÇÃO LEI 13979/2020,Conforme Termo de Referencia,17/06/2020,14/10/2020,119,"142397,00000000","142397,00000000",17/06/2020,01/07/2020,10209,16 e 17,01/07/2020,0,0,0,0
292,23.239.321/0001-49,JKLAB PRODUTOS E SOLUCOES PARA LABORATORIOS LTDA.,27/001.129/2020,13726,ENCERRADO,(FESA) Fundo Especial de Saúde de Mato Grosso do Sul,"Aquisição insumos e materiais laboratoriais: swab, plastico para laboratório, ponteira",33903035 - MATERIAL LABORATORIAL,0100000000 - RECURSOS ORDINARIOS DO TESOURO,DISPENSA DE LICITAÇÃO LEI 13979/2020,"Almoxarifado Central das 08:00 às 15:00h, sito a Rua Araçá 1495, Bairro Coronel Antonino, Campo Grande, MS",24/06/2020,21/09/2020,89,"256430,00000000","256430,00000000",24/06/2020,22/07/2020,10232,20 e 21,22/07/2020,0,0,0,0
293,23.239.321/0001-49,JKLAB PRODUTOS E SOLUCOES PARA LABORATORIOS LTDA.,27/001.129/2020,13557,ENCERRADO,(FESA) Fundo Especial de Saúde de Mato Grosso do Sul,"Aquisição insumos e materiais laboratoriais: swab, plastico para laboratório, ponteira",33903035 - MATERIAL LABORATORIAL,0100000000 - RECURSOS ORDINARIOS DO TESOURO,DISPENSA DE LICITAÇÃO LEI 13979/2020,"Almoxarifado Central das 08:00 às 15:00h, sito a Rua Araçá 1495, Bairro Coronel Antonino, Campo Grande, MS",27/05/2020,22/11/2020,179,"205927,20000000","205927,20000000",27/05/2020,19/06/2020,10199,17,19/06/2020,0,0,0,0
294,59.231.530/0001-93,KOLPLAST C I LTDA,27/001.393/2020,13717,ENCERRADO,(FESA) Fundo Especial de Saúde de Mato Grosso do Sul,AQUISICAÇÃO DE SWAB TIPO FLOCK,33903035 - MATERIAL LABORATORIAL,0100000000 - RECURSOS ORDINARIOS DO TESOURO,DISPENSA DE LICITAÇÃO LEI 13979/2020,"LACEN - AV. SENADOR FILINTO MULLER, 1666 - VILA IPIRANGA - CAMPO GRANDE/MS",16/06/2020,13/09/2020,89,"127600,00000000","127600,00000000",16/06/2020,19/06/2020,10199,18,19/06/2020,0,0,0,0
295,17.159.229/0001-76,LABORATÓRIO TEUTO BRASILEIRO S/A,27/000.853/2021,14844,ENCERRADO,(FESA) Fundo Especial de Saúde de Mato Grosso do Sul,Aquisição de medicamentos para atender a CAFB.,33903219 - Medicamentos e Materiais Médico- Hospitalares,0100000000 - RECURSOS ORDINARIOS DO TESOURO,"","DMB - Rua Delegado Osmar de Camargo, S/N",31/03/2021,28/11/2021,242,"481559,68000000","556731,02000000",31/03/2021,12/04/2021,10471,9,12/04/2021,0,0,0,0
296,17.159.229/0001-76,LABORATÓRIO TEUTO BRASILEIRO S/A,27/000.853/2021,14844,ENCERRADO,(FESA) Fundo Especial de Saúde de Mato Grosso do Sul,Aquisição de medicamentos para atender a CAFB.,33903219 - Medicamentos e Materiais Médico- Hospitalares,0248000103 - LC. 172/20 - COVID-19,"","DMB - Rua Delegado Osmar de Camargo, S/N",31/03/2021,28/11/2021,242,"481559,68000000","556731,02000000",31/03/2021,12/04/2021,10471,9,12/04/2021,0,0,0,0
297,63.067.904/0002-35,LIFE TECHNOLOGIES BRASIL COM. E IND. DE PROD. PARA BIOTECNOLOGIA LTDA.,27/001.950/2020,14024,ENCERRADO,(FESA) Fundo Especial de Saúde de Mato Grosso do Sul,"Manutenção Corretiva com troca de peças de Termociclador marca ABI 7500-Applied Biosystems, a fim de atender demanda do LACEN/MS",33903025 - MATERIAL P/ MANUTENCAO DE BENS MOVEIS,0248000103 - LC. 172/20 - COVID-19,INEXIGIBILIDADE LEI 13979/2020,Conforme Termo de Referencia,09/09/2020,07/03/2021,179,"22995,44000000","22995,44000000",09/09/2020,05/10/2020,10295,6,05/10/2020,0,0,0,0
298,63.067.904/0002-35,LIFE TECHNOLOGIES BRASIL COM. E IND. DE PROD. PARA BIOTECNOLOGIA LTDA.,27/001.950/2020,14024,ENCERRADO,(FESA) Fundo Especial de Saúde de Mato Grosso do Sul,"Manutenção Corretiva com troca de peças de Termociclador marca ABI 7500-Applied Biosystems, a fim de atender demanda do LACEN/MS",33903917 - MANUT. E CONSERV. DE MAQUINAS E EQUIPAMENTOS,0248000103 - LC. 172/20 - COVID-19,INEXIGIBILIDADE LEI 13979/2020,Conforme Termo de Referencia,09/09/2020,07/03/2021,179,"22995,44000000","22995,44000000",09/09/2020,05/10/2020,10295,6,05/10/2020,0,0,0,0
299,63.067.904/0002-35,LIFE TECHNOLOGIES BRASIL COM. E IND. DE PROD. PARA BIOTECNOLOGIA LTDA.,27/001.208/2020,13590,ENCERRADO,(FESA) Fundo Especial de Saúde de Mato Grosso do Sul,"Aquisição de termociclador para amplificação de DNA e RNA, a fim de realizar o diagnóstico de Coronavírus, Influenza e outros agravos em amostras recebidas no Lacen/MS  Laboratório de Saúde Pública de Mato Grosso do Sul oriundas dos 79 municípios de Mato Grosso do Sul, a fim de atender o Boletim Epidemiológico n. 01 do Centro de Operações de Emergências em Saúde Pública do Ministério da Saúde - Infecção Humana pelo Novo Coronavírus (2019-nCoV).",44905208 - APAR.EQUIP.UTENS.MEDICO ODONTOL.LAB.HOSPITAL,0248000082 - PT. 1622/19  - Investimento LACEN,DISPENSA DE LICITAÇÃO LEI 13979/2020,"Lacen/MS - sito a Rua Av. Senador Filinto Muller, 1666, Vila Ipiranga, Campo Grande, MS, fone: (67) 3345-1309",29/05/2020,24/11/2020,179,"220000,00000000","220000,00000000",29/05/2020,26/06/2020,10205,18 e 19,26/06/2020,0,0,0,0
300,63.067.904/0006-69,LIFE TECHNOLOGIES BRASIL COMERCIO E INDUSTRIA DE PRODUTOS PARA BIOTECNOLOGIA LTDA,27/001.437/2020,13737,ENCERRADO,(FESA) Fundo Especial de Saúde de Mato Grosso do Sul,"Aquisição de equipamentos para detectar material genético para análise de vírus, visando atender a demanda do LACEN/MS nos exames de coronavírus e outros vírus respiratórios tendo em vista a pandemia de SARS-CoV-2.",44905208 - APAR.EQUIP.UTENS.MEDICO ODONTOL.LAB.HOSPITAL,0100000000 - RECURSOS ORDINARIOS DO TESOURO,DISPENSA DE LICITAÇÃO LEI 13979/2020,Conforme Termo de Referencia,24/06/2020,21/09/2020,89,"457704,80000000","457704,80000000",24/06/2020,16/07/2020,10227,27,16/07/2020,0,0,0,0
301,13.967.200/0001-60,"M.X.A REPRESENTACAO COMERCIAL, COMERCIO E SERVIÇOS LTDA EPP",27/001.441/2020,13724,ENCERRADO,(FESA) Fundo Especial de Saúde de Mato Grosso do Sul,AQUISIÇÃO DE MÁSCARAS DE TECIDO,33903209 - Vestuários e Afins,0103000000 - RECURSOS PROVENIENTE DA LEI N. 2.105/2000,DISPENSA DE LICITAÇÃO LEI 13979/2020,"ALMOXARIFADO DA SES - RUA ARAÇÁ, 1495 - MORADA VERDE - CAMPO GRANDE/MS",17/06/2020,14/10/2020,119,"3150000,00000000","3150000,00000000",17/06/2020,02/07/2020,10210,25,02/07/2020,0,0,0,0
302,24.259.043/0001-54,"MAIORCA SOLUCOES EM SAUDE, SEGURANCA E PADRONIZACAO LTDA.",27/001.809/2020,13946,ENCERRADO,(FESA) Fundo Especial de Saúde de Mato Grosso do Sul,Aquisição de equipamentos para montar leitos de UTI,44905208 - APAR.EQUIP.UTENS.MEDICO ODONTOL.LAB.HOSPITAL,0240000000 - RECURSOS DIRETAMENTE ARRECADADOS,DISPENSA DE LICITAÇÃO LEI 13979/2020,Conforme Termo de Referencia,21/08/2020,18/12/2020,119,"97951,32000000","97951,32000000",21/08/2020,03/09/2020,10270,4 e 5,03/09/2020,0,0,0,0
303,24.259.043/0001-54,"MAIORCA SOLUCOES EM SAUDE, SEGURANCA E PADRONIZACAO LTDA.",27/005.912/2021,15559,ENCERRADO,(FESA) Fundo Especial de Saúde de Mato Grosso do Sul,Aquisição de Câmaras Refrigeradores para atender a DGVS.,33903209 - Vestuários e Afins,0248000110 - PT 3157/19 - Investimentos Rede Frio,PREGÃO ELETRÔNICO,"R. Araçá, 1495. C. Grande/MS",01/09/2021,31/08/2022,364,"333576,00000000","333576,00000000",01/09/2021,27/09/2021,10643,88,27/09/2021,0,0,0,0
304,24.259.043/0001-54,"MAIORCA SOLUCOES EM SAUDE, SEGURANCA E PADRONIZACAO LTDA.",27/001.211/2020,13602,ENCERRADO,(FESA) Fundo Especial de Saúde de Mato Grosso do Sul,Aquisição de Gorro Cirúrgico e Óculos de Proteção,33903028 - MATERIAL DE PROTECAO E SEGURANCA,0100000000 - RECURSOS ORDINARIOS DO TESOURO,DISPENSA DE LICITAÇÃO LEI 13979/2020,"Almoxarifado da Secretaria de Estado de Saúde, Endereço: Rua Araçá, 1495  Morada Verde  CEP: 79013-600 - Campo Grande/MS",25/05/2020,22/08/2020,89,"77500,00000000","77500,00000000",25/05/2020,08/06/2020,10191,7,08/06/2020,0,0,0,0
305,24.259.043/0001-54,"MAIORCA SOLUCOES EM SAUDE, SEGURANCA E PADRONIZACAO LTDA.",27/001.188/2020,13646,ENCERRADO,(FESA) Fundo Especial de Saúde de Mato Grosso do Sul,"Aquisição de correlatos hospitalares: luva, seringa, sonda, touca, sistema de drenagem",33903036 - MATERIAL HOSPITALAR,0100000000 - RECURSOS ORDINARIOS DO TESOURO,DISPENSA DE LICITAÇÃO LEI 13979/2020,Conforme Termo de Referencia,09/06/2020,06/10/2020,119,"81238,40000000","81238,40000000",09/06/2020,01/07/2020,10209,18,01/07/2020,0,0,0,0
306,24.259.043/0001-54,"MAIORCA SOLUCOES EM SAUDE, SEGURANCA E PADRONIZACAO LTDA.",27/001.300/2020,13660,ENCERRADO,(FESA) Fundo Especial de Saúde de Mato Grosso do Sul,"Aquisição de Caixa térmica, escada hospitalar e suporte de soro",44905208 - APAR.EQUIP.UTENS.MEDICO ODONTOL.LAB.HOSPITAL,0100000000 - RECURSOS ORDINARIOS DO TESOURO,DISPENSA DE LICITAÇÃO LEI 13979/2020,conforme termo de referência,28/05/2020,23/11/2020,179,"17850,00000000","17850,00000000",28/05/2020,05/06/2020,10190,22 e 23,05/06/2020,0,0,0,0
307,24.259.043/0001-54,"MAIORCA SOLUCOES EM SAUDE, SEGURANCA E PADRONIZACAO LTDA.",27/001.189/2020,13676,ENCERRADO,(FESA) Fundo Especial de Saúde de Mato Grosso do Sul,Aquisição de Correlatos Hospitalares,33903036 - MATERIAL HOSPITALAR,0100000000 - RECURSOS ORDINARIOS DO TESOURO,DISPENSA DE LICITAÇÃO LEI 13979/2020,Conforme Termo de Referencia,09/06/2020,06/10/2020,119,"4860,00000000","4860,00000000",09/06/2020,30/06/2020,10208,26,30/06/2020,0,0,0,0
308,24.259.043/0001-54,"MAIORCA SOLUCOES EM SAUDE, SEGURANCA E PADRONIZACAO LTDA.",27/001.187/2020,13670,ENCERRADO,(FESA) Fundo Especial de Saúde de Mato Grosso do Sul,Aquisição de Correlatos Hospitalares,33903036 - MATERIAL HOSPITALAR,0100000000 - RECURSOS ORDINARIOS DO TESOURO,DISPENSA DE LICITAÇÃO LEI 13979/2020,Conforme Termo de Referencia,28/05/2020,23/11/2020,179,"2600,00000000","2600,00000000",28/05/2020,09/06/2020,10192,26,09/06/2020,0,0,0,0
309,24.259.043/0001-54,"MAIORCA SOLUCOES EM SAUDE, SEGURANCA E PADRONIZACAO LTDA.",27/001.533/2020,13775,ENCERRADO,(FESA) Fundo Especial de Saúde de Mato Grosso do Sul,"Aquisição de material laboratorial  Swab, Tubo Falcon e Tubo criogênico",33903035 - MATERIAL LABORATORIAL,0103000000 - RECURSOS PROVENIENTE DA LEI N. 2.105/2000,DISPENSA DE LICITAÇÃO LEI 13979/2020,Conforme Termo de Referencia,10/07/2020,07/10/2020,89,"6966,00000000","6966,00000000",10/07/2020,16/07/2020,10227,28,16/07/2020,0,0,0,0
310,03.201.601/0001-50,MEDLAB PRODUTOS PARA LABORATORIO LTDA - EPP,27/001.892/2020,14056,ENCERRADO,(FESA) Fundo Especial de Saúde de Mato Grosso do Sul,"Aquisição de Materiais Hospitalares para atender as Demandas da SES, HRMS e Hemosul.",33903036 - MATERIAL HOSPITALAR,0248000103 - LC. 172/20 - COVID-19,DISPENSA DE LICITAÇÃO LEI 13979/2020,Conforme Termo de Referencia,16/09/2020,13/01/2021,119,"165375,00000000","165375,00000000",16/09/2020,30/09/2020,10291,45,30/09/2020,0,0,0,0
311,03.201.601/0001-50,MEDLAB PRODUTOS PARA LABORATORIO LTDA - EPP,27/001.211/2020,13603,ENCERRADO,(FESA) Fundo Especial de Saúde de Mato Grosso do Sul,Aquisição de Gorro Cirúrgico e Óculos de Proteção,33903028 - MATERIAL DE PROTECAO E SEGURANCA,0100000000 - RECURSOS ORDINARIOS DO TESOURO,DISPENSA DE LICITAÇÃO LEI 13979/2020,"Almoxarifado da Secretaria de Estado de Saúde, Endereço: Rua Araçá, 1495  Morada Verde  CEP: 79013-600 - Campo Grande/MS",25/05/2020,22/08/2020,89,"19500,00000000","19500,00000000",25/05/2020,08/06/2020,10191,7,08/06/2020,0,0,0,0
312,03.201.601/0001-50,MEDLAB PRODUTOS PARA LABORATORIO LTDA - EPP,27/001.533/2020,13776,ENCERRADO,(FESA) Fundo Especial de Saúde de Mato Grosso do Sul,"Aquisição de material laboratorial  Swab, Tubo Falcon e Tubo criogênico",33903035 - MATERIAL LABORATORIAL,0103000000 - RECURSOS PROVENIENTE DA LEI N. 2.105/2000,DISPENSA DE LICITAÇÃO LEI 13979/2020,Conforme Termo de Referencia,10/07/2020,06/11/2020,119,"23400,00000000","23400,00000000",10/07/2020,16/07/2020,10227,28 e 29,16/07/2020,0,0,0,0
313,07.729.499/0001-11,MEGA COMÉRCIO DE PRODUTOS HOSPITALARES LTDA,27/000.989/2020,13429,ENCERRADO,(FESA) Fundo Especial de Saúde de Mato Grosso do Sul,"Aquisição de correlatos hospitalares para atender a demanda da Secretaria de Estado de Saúde, em razão de se cuidarem de equipamentos de proteção individual (EPIs)",33903036 - MATERIAL HOSPITALAR,0248000002 - Desenvolvimento de ações de vigilância em saúde,DISPENSA DE LICITAÇÃO LEI 13979/2020,"Endereço: Rua Araçá, 1495  Morada Verde  CEP: 79013-600 - Campo Grande/MS",13/04/2020,09/10/2020,179,"599800,00000000","599800,00000000",13/04/2020,17/04/2020,10151,12,17/04/2020,0,0,0,0
314,07.729.499/0001-11,MEGA COMÉRCIO DE PRODUTOS HOSPITALARES LTDA,27/001.120/2020,13539,ENCERRADO,(FESA) Fundo Especial de Saúde de Mato Grosso do Sul,Aquisição de correlatos hospitalares para atender a demanda da Secretaria de Estado de Saúde: mascara hospitalar,33903036 - MATERIAL HOSPITALAR,0100000000 - RECURSOS ORDINARIOS DO TESOURO,DISPENSA DE LICITAÇÃO LEI 13979/2020,"Rua Araçá, 1495  Morada Verde  CEP: 79013-600 - Campo Grande/MS",15/05/2020,10/11/2020,179,"560000,00000000","560000,00000000",15/05/2020,21/05/2020,10177,10 e 11,21/05/2020,0,0,0,0
315,07.729.499/0001-11,MEGA COMÉRCIO DE PRODUTOS HOSPITALARES LTDA,29/019.961/2020,13495,ENCERRADO,(SED) Secretaria de Estado de Educação,Aquisição de máscara hospitalar descartável,33903036 - MATERIAL HOSPITALAR,0100000000 - RECURSOS ORDINARIOS DO TESOURO,DISPENSA DE LICITAÇÃO LEI 13979/2020,"Rua Delegado José Alfredo Hadman, nº 200 - Parque dos Poderes",28/04/2020,26/07/2020,89,"218880,00000000","218880,00000000",28/04/2020,05/05/2020,10160,13,05/05/2020,0,0,0,0
316,33.069.212/0008-50,MERCK S/A.,27/001.942/2020,14175,ENCERRADO,(FESA) Fundo Especial de Saúde de Mato Grosso do Sul,Manutenção Corretiva com troca de peças e consumíveis do sistema de Ultrapurificação de água,33903025 - MATERIAL P/ MANUTENCAO DE BENS MOVEIS,0248000103 - LC. 172/20 - COVID-19,DISPENSA DE LICITAÇÃO LEI 13979/2020,Conforme Termo de Referencia,29/10/2020,26/04/2021,179,"36294,55000000","36294,55000000",29/10/2020,13/11/2020,10323,13,13/11/2020,0,0,0,0
317,33.069.212/0008-50,MERCK S/A.,27/001.942/2020,14175,ENCERRADO,(FESA) Fundo Especial de Saúde de Mato Grosso do Sul,Manutenção Corretiva com troca de peças e consumíveis do sistema de Ultrapurificação de água,33903917 - MANUT. E CONSERV. DE MAQUINAS E EQUIPAMENTOS,0248000103 - LC. 172/20 - COVID-19,DISPENSA DE LICITAÇÃO LEI 13979/2020,Conforme Termo de Referencia,29/10/2020,26/04/2021,179,"36294,55000000","36294,55000000",29/10/2020,13/11/2020,10323,13,13/11/2020,0,0,0,0
318,24.595.488/0001-05,MS SAUDE DISTRIBUIDORA DE MATERIAL HOSPITALAR LTDA,27/001.809/2020,13947,ENCERRADO,(FESA) Fundo Especial de Saúde de Mato Grosso do Sul,Aquisição de equipamentos para montar leitos de UTI,44905208 - APAR.EQUIP.UTENS.MEDICO ODONTOL.LAB.HOSPITAL,0100000000 - RECURSOS ORDINARIOS DO TESOURO,DISPENSA DE LICITAÇÃO LEI 13979/2020,Conforme Termo de Referencia,31/08/2020,28/12/2020,119,"165704,00000000","165704,00000000",31/08/2020,03/09/2020,10270,5,03/09/2020,0,0,0,0
319,24.595.488/0001-05,MS SAUDE DISTRIBUIDORA DE MATERIAL HOSPITALAR LTDA,27/001.129/2020,13556,ENCERRADO,(FESA) Fundo Especial de Saúde de Mato Grosso do Sul,"Aquisição insumos e materiais laboratoriais: swab, plastico para laboratório, ponteira",33903035 - MATERIAL LABORATORIAL,0100000000 - RECURSOS ORDINARIOS DO TESOURO,DISPENSA DE LICITAÇÃO LEI 13979/2020,"Almoxarifado Central das 08:00 às 15:00h, sito a Rua Araçá 1495, Bairro Coronel Antonino, Campo Grande, MS",12/05/2020,07/11/2020,179,"359630,00000000","359630,00000000",12/05/2020,19/06/2020,10199,16 e 17,19/06/2020,0,0,0,0
320,24.595.488/0001-05,MS SAUDE DISTRIBUIDORA DE MATERIAL HOSPITALAR LTDA,27/001.188/2020,13645,ENCERRADO,(FESA) Fundo Especial de Saúde de Mato Grosso do Sul,"Aquisição de correlatos hospitalares: luva, seringa, sonda, touca, sistema de drenagem",33903036 - MATERIAL HOSPITALAR,0100000000 - RECURSOS ORDINARIOS DO TESOURO,DISPENSA DE LICITAÇÃO LEI 13979/2020,Conforme Termo de Referencia,19/06/2020,16/10/2020,119,"70906,00000000","70906,00000000",19/06/2020,01/07/2020,10209,18,01/07/2020,0,0,0,0
321,24.595.488/0001-05,MS SAUDE DISTRIBUIDORA DE MATERIAL HOSPITALAR LTDA,27/001.189/2020,13680,ENCERRADO,(FESA) Fundo Especial de Saúde de Mato Grosso do Sul,Aquisição de Correlatos Hospitalares,33903036 - MATERIAL HOSPITALAR,0100000000 - RECURSOS ORDINARIOS DO TESOURO,DISPENSA DE LICITAÇÃO LEI 13979/2020,Conforme Termo de Referencia,19/06/2020,16/10/2020,119,"23808,00000000","23808,00000000",19/06/2020,30/06/2020,10208,27,30/06/2020,0,0,0,0
322,23.119.516/0001-55,MULTICONTAINER,27/001.145/2020,13494,ENCERRADO,(FESA) Fundo Especial de Saúde de Mato Grosso do Sul,Contratação de empresa para locação de container refrigerado,33903912 - LOCACAO DE MAQUINAS E EQUIPAMENTOS,0100000000 - RECURSOS ORDINARIOS DO TESOURO,DISPENSA DE LICITAÇÃO LEI 13979/2020,HOSPITAL REGIONAL DE CAMPO GRANDE/MS,03/08/2020,31/10/2020,89,"26610,00000000","26610,00000000",31/07/2020,28/08/2020,10171,33,15/05/2020,0,0,0,0
323,23.119.516/0001-55,MULTICONTAINER,27/001.145/2020,13494,ENCERRADO,(FESA) Fundo Especial de Saúde de Mato Grosso do Sul,Contratação de empresa para locação de container refrigerado,33903912 - LOCACAO DE MAQUINAS E EQUIPAMENTOS,0100000000 - RECURSOS ORDINARIOS DO TESOURO,DISPENSA DE LICITAÇÃO LEI 13979/2020,HOSPITAL REGIONAL DE CAMPO GRANDE/MS,01/11/2020,31/01/2021,91,"26610,00000000","26610,00000000",26/10/2020,13/11/2020,10171,33,15/05/2020,0,0,0,0
324,23.119.516/0001-55,MULTICONTAINER,27/001.145/2020,13494,ENCERRADO,(FESA) Fundo Especial de Saúde de Mato Grosso do Sul,Contratação de empresa para locação de container refrigerado,33903912 - LOCACAO DE MAQUINAS E EQUIPAMENTOS,0100000000 - RECURSOS ORDINARIOS DO TESOURO,DISPENSA DE LICITAÇÃO LEI 13979/2020,HOSPITAL REGIONAL DE CAMPO GRANDE/MS,05/05/2020,02/08/2020,89,"26610,00000000","26610,00000000",05/05/2020,15/05/2020,10171,33,15/05/2020,0,0,0,0
325,21.681.325/0001-57,MULTIFARMA COMERCIO E REPRESENTAÇÕES LTDA,27/000.862/2021,14861,ENCERRADO,(FESA) Fundo Especial de Saúde de Mato Grosso do Sul,Aquisição de medicamentos para atender a CAFB.,33903219 - Medicamentos e Materiais Médico- Hospitalares,0248000103 - LC. 172/20 - COVID-19,"","DMB - Rua Delegado Osmar de Camargo, S/N",08/04/2021,07/10/2021,182,"7737,85000000","9671,55000000",08/04/2021,15/04/2021,10474,43,15/04/2021,0,0,0,0
326,33.839.828/0001-97,NEVE INDUSTRIA E COMERCIO DE PRODUTOS CIRURGICOS LTDA.,27/005.192/2021,15541,ENCERRADO,(FESA) Fundo Especial de Saúde de Mato Grosso do Sul,Aquisição de correlatos hospitalares e soluções e saneantes para atender demanda da SES/MS.,33903036 - MATERIAL HOSPITALAR,0248000125 - PT. 3896/20 - COVID-19,DISPENSA DE LICITAÇÃO MP 1047/2021,Conforme Termo de Referência,27/08/2021,21/02/2022,178,"595030,32000000","595030,32000000",27/08/2021,29/09/2021,10645,41 e 42,29/09/2021,0,0,0,0
327,24.198.128/0001-70,NOVA OPCAO PRODUTOS PARA SAUDE LTDA,27/001.994/2020,14042,ENCERRADO,(FESA) Fundo Especial de Saúde de Mato Grosso do Sul,Aquisição de material laboratorial - Placas de PCR,33903035 - MATERIAL LABORATORIAL,0248000103 - LC. 172/20 - COVID-19,DISPENSA DE LICITAÇÃO LEI 13979/2020,"Almox. SES - Rua Araçá, 1495 - Morada Verde - Campo Grande/MS",17/09/2020,14/01/2021,119,"280000,00000000","280000,00000000",17/09/2020,21/09/2020,10283,5,21/09/2020,0,0,0,0
328,24.198.128/0001-70,NOVA OPCAO PRODUTOS PARA SAUDE LTDA,27/001.189/2020,13678,ENCERRADO,(FESA) Fundo Especial de Saúde de Mato Grosso do Sul,Aquisição de Correlatos Hospitalares,33903036 - MATERIAL HOSPITALAR,0100000000 - RECURSOS ORDINARIOS DO TESOURO,DISPENSA DE LICITAÇÃO LEI 13979/2020,Conforme Termo de Referencia,09/06/2020,06/10/2020,119,"11172,00000000","11172,00000000",09/06/2020,30/06/2020,10208,27,30/06/2020,0,0,0,0
329,24.198.128/0001-70,NOVA OPCAO PRODUTOS PARA SAUDE LTDA,27/101.346/2020,14075,ENCERRADO,(FUNSAU) Fundação Serviços de Saúde de MS,Aquisição de correlatos hospitalares para o Hospital Regional de Mato Grosso do Sul em atendimento a doença COVID 19,33903036 - MATERIAL HOSPITALAR,0240000000 - RECURSOS DIRETAMENTE ARRECADADOS,DISPENSA DE LICITAÇÃO LEI 13979/2020,"Coordenação de Logítica e Suprimentos/FUNSAU - Almoxarifado Avenida Gunter Hans, 2300, Jardim Tijuca, Campo Grande/MS Este estabelecimento funciona de segunda à sexta, das 07:30h às 10:30h e das 13:30h às 16h.",25/09/2020,22/01/2021,119,"63600,00000000","63600,00000000",25/09/2020,28/10/2020,10311,50,28/10/2020,0,0,0,0
330,15.570.386/0001-44,NOVA SAÚDE PRODUTOS MÉDICOS EIRELI,27/001.892/2020,14057,ENCERRADO,(FESA) Fundo Especial de Saúde de Mato Grosso do Sul,"Aquisição de Materiais Hospitalares para atender as Demandas da SES, HRMS e Hemosul.",33903036 - MATERIAL HOSPITALAR,0248000103 - LC. 172/20 - COVID-19,DISPENSA DE LICITAÇÃO LEI 13979/2020,Conforme Termo de Referencia,16/09/2020,13/01/2021,119,"968760,00000000","968760,00000000",16/09/2020,30/09/2020,10291,45 e 46,30/09/2020,0,0,0,0
331,15.570.386/0001-44,NOVA SAÚDE PRODUTOS MÉDICOS EIRELI,27/001.300/2020,13659,ENCERRADO,(FESA) Fundo Especial de Saúde de Mato Grosso do Sul,"Aquisição de Caixa térmica, escada hospitalar e suporte de soro",44905208 - APAR.EQUIP.UTENS.MEDICO ODONTOL.LAB.HOSPITAL,0100000000 - RECURSOS ORDINARIOS DO TESOURO,DISPENSA DE LICITAÇÃO LEI 13979/2020,conforme termo de referência,28/05/2020,23/11/2020,179,"18000,00000000","18000,00000000",28/05/2020,05/06/2020,10190,22,05/06/2020,0,0,0,0
332,09.366.073/0001-76,NOVOS CICLOS PRODUTOS E EQUIPAMENTOS PARA SAÚDE LTDA.,27/000.888/2020,13345,ENCERRADO,(FESA) Fundo Especial de Saúde de Mato Grosso do Sul,Aquisição de ventilador pulmonar portátil.,44905208 - APAR.EQUIP.UTENS.MEDICO ODONTOL.LAB.HOSPITAL,0100000000 - RECURSOS ORDINARIOS DO TESOURO,DISPENSA DE LICITAÇÃO LEI 13979/2020,"Almoxarifado da Secretaria de Estado de Saúde, Endereço: Rua Araçá, 1495  Morada Verde  CEP: 79013-600 - Cidade: Campo Grande  Estado: MS",26/03/2020,25/09/2020,183,"1368375,00000000","1368375,00000000",26/03/2020,31/03/2020,10133,10 e 11,31/03/2020,0,0,0,0
333,09.366.073/0001-76,NOVOS CICLOS PRODUTOS E EQUIPAMENTOS PARA SAÚDE LTDA.,27/001.111/2020,13473,ENCERRADO,(FESA) Fundo Especial de Saúde de Mato Grosso do Sul,Locação de 05 Conjuntos de Equipamento para Leito UTI,33903912 - LOCACAO DE MAQUINAS E EQUIPAMENTOS,0100000000 - RECURSOS ORDINARIOS DO TESOURO,DISPENSA DE LICITAÇÃO LEI 13979/2020,"Almoxarifado da Secretaria de Estado de Saúde, Endereço: Rua Araçá, 1495  Morada Verde  CEP: 79013-600 - Campo Grande/MS",27/04/2020,23/10/2020,179,"720000,00000000","720000,00000000",27/04/2020,07/05/2020,10163,11,07/05/2020,0,0,0,0
334,04.307.650/0015-30,ONCO PROD DIST.DE PROD. HOSP. E ONCO. LTDA (SP),27/000.857/2021,14864,ENCERRADO,(FESA) Fundo Especial de Saúde de Mato Grosso do Sul,Aquisição de medicamentos para atender a CAFB.,33903219 - Medicamentos e Materiais Médico- Hospitalares,0248000103 - LC. 172/20 - COVID-19,"","DMB - Rua Delegado Osmar de Camargo, S/N",29/03/2021,28/09/2021,183,"2962,16000000","2962,16000000",29/03/2021,05/04/2021,10463,8,05/04/2021,0,0,0,0
335,26.145.871/0001-97,OPEN MEDICAL COMERCIO IMPORTAÇÃO EXPORTAÇÃO LTDA,27/005.192/2021,15540,ENCERRADO,(FESA) Fundo Especial de Saúde de Mato Grosso do Sul,Aquisição de correlatos hospitalares e soluções e saneantes para atender demanda da SES/MS.,33903036 - MATERIAL HOSPITALAR,0248000125 - PT. 3896/20 - COVID-19,DISPENSA DE LICITAÇÃO MP 1047/2021,Conforme Termo de Referência,02/09/2021,27/04/2022,237,"88021,80000000","88021,80000000",02/09/2021,29/09/2021,10645,41,29/09/2021,0,0,0,0
336,00.740.696/0001-92,P.M.H. PRODUTOS MÉDICOS HOSPITALARES LTDA.,27/001.506/2020,13728,ENCERRADO,(FESA) Fundo Especial de Saúde de Mato Grosso do Sul,Aquisição de Kits de extração automatizada para diagnóstico do vírus SARS-COV-2.,33903011 - MATERIAL QUIMICO,0103000000 - RECURSOS PROVENIENTE DA LEI N. 2.105/2000,DISPENSA DE LICITAÇÃO LEI 13979/2020,Conforme Termo de Referencia,19/06/2020,16/10/2020,119,"299520,00000000","299520,00000000",19/06/2020,01/07/2020,10209,19 e 20,01/07/2020,0,0,0,0
337,00.384.799/0001-67,PEIXOTO COMÉRCIO IMPORTAÇÃO EXPORTAÇÃO LTDA,71/750.092/2020,14537,ENCERRADO,(FUNDTUR - inativo) Fundação de Turismo de Mato Grosso do Sul ( Inativo),"1.1. O presente Contrato tem por objeto a contratação de empresa para confecção de 507 (quinhentos e sete) barreiras físicas de proteção em acrílico transparente (100% virgem) na espessura de 4 mm no tamanho 120x60 cm para serem fixadas nas laterais de apoio das poltronas já existentes no Auditório Manoel de Barros do Centro de Convenções Arquiteto Rubens Gil de Camillo, conforme descrição contida no Termo de Referência de f. 10-28 que integra para todos os efeitos o presente instrumento.",33903035 - MATERIAL LABORATORIAL,0100000000 - RECURSOS ORDINARIOS DO TESOURO,DISPENSA DE LICITAÇÃO LEI 13979/2020,"Centro de Convenções Arquiteto Rubens Gil de Camillo, Av. Waldir dos Santos Pereira, s/n, Parque dos Poderes, Campo Grande-MS.",05/04/2021,03/07/2021,89,"100000,68000000","100000,68000000",05/04/2021,23/04/2021,10481,53,23/04/2021,0,0,0,0
338,02.213.325/0001-88,PLUGNET COMERCIO E REPRESENTACOES LTDA.,31/056.261/2022,19382,ENCERRADO,(SEJUSP) Secretaria de Estado de Justiça e Segurança Pública,Aquisição de 12 Computadores Forenses para atender ao Instituto de Criminalística Hercílio Macellaro/ICHM/CGP/MS - ADESÃO ARP 032/2021 PE 0108/2021 SEAD/SE - ARP 022/2022-SEJUSP,44905235 - EQUIPAMENTOS DE PROCESSAMENTO DE DADOS,0100000000 - RECURSOS ORDINARIOS DO TESOURO,"","av. Senador Filinto Muller, 1530, Vila Ipiranga, Campo Grande/MS - CEP 79074-460",25/08/2022,24/08/2023,364,"480000,00000000","600000,00000000",25/08/2022,08/09/2022,10934,24,08/09/2022,0,0,0,0
339,02.213.325/0001-88,PLUGNET COMERCIO E REPRESENTACOES LTDA.,31/056.261/2022,19382,ENCERRADO,(SEJUSP) Secretaria de Estado de Justiça e Segurança Pública,Aquisição de 12 Computadores Forenses para atender ao Instituto de Criminalística Hercílio Macellaro/ICHM/CGP/MS - ADESÃO ARP 032/2021 PE 0108/2021 SEAD/SE - ARP 022/2022-SEJUSP,44905235 - EQUIPAMENTOS DE PROCESSAMENTO DE DADOS,0250000001 - Recursos não Vinculados de Impostos,"","av. Senador Filinto Muller, 1530, Vila Ipiranga, Campo Grande/MS - CEP 79074-460",25/08/2022,24/08/2023,364,"480000,00000000","600000,00000000",25/08/2022,08/09/2022,10934,24,08/09/2022,0,0,0,0
340,27.325.768/0001-91,PREMIUM HOSPITALAR EIRELI-ME,27/005.289/2021,15552,ENCERRADO,(FUNSAU) Fundação Serviços de Saúde de MS,Aquisição de Avental descartável.,33903036 - MATERIAL HOSPITALAR,0240000000 - RECURSOS DIRETAMENTE ARRECADADOS,DISPENSA DE LICITAÇÃO MP 1047/2021,"Almoxarifado, Avenida Gunter Hans, 3702, Jardim Tijuca 2, Campo Grande/MS.",06/08/2021,02/02/2022,180,"267188,04000000","267188,04000000",06/08/2021,31/08/2021,10621,60 e 61,31/08/2021,0,0,0,0
341,12.109.814/0001-48,"PRIME CLEAN COMERCIO, LOCACAO E SERVICOS TERCEIRIZADOS LTDA",27/001.215/2020,13714,ENCERRADO,(FESA) Fundo Especial de Saúde de Mato Grosso do Sul,"Contratação de empresa especializada na prestação de serviços de limpeza, desinfecção e conservação",33903702 - LIMPEZA E CONSERVACAO,0100000000 - RECURSOS ORDINARIOS DO TESOURO,DISPENSA DE LICITAÇÃO LEI 13979/2020,conforme termo de referência,17/06/2020,14/09/2020,89,"773960,82000000","773960,82000000",17/06/2020,27/07/2020,10236,10 e 11,27/07/2020,0,0,0,0
342,32.739.719/0001-35,PRIME COMERCIO DE MOVEIS E SERVIÇOS LTDA,29/024.148/2020,13782,ENCERRADO,(SED) Secretaria de Estado de Educação,"Aquisição de materiais de limpeza, higienização e equipamentos de proteção individual conforme Anexo I e II, visando atender a os alunos da Rede Estadual de Ensino do Estado de Mato Grosso do Sul, em razão do retono das aulas presenciais na Rede Estadual de Ensino, tais materiais se tornarão indispensáveis para assegurar a proteção aos estudantes e servidores da unidades escolares.",33903035 - MATERIAL LABORATORIAL,0103000000 - RECURSOS PROVENIENTE DA LEI N. 2.105/2000,DISPENSA DE LICITAÇÃO LEI 13979/2020,"Rua Delegado José Alfredo Hadman, n. 200 - Parque dos Poderes - Campo Grande/MS",08/07/2020,05/09/2020,59,"313960,00000000","313960,00000000",08/07/2020,22/07/2020,10232,17,22/07/2020,0,0,0,0
343,66.783.630/0002-79,PRO LIFE EQUIPAMENTOS MÉDICOS EIRELI,27/001.809/2020,13945,ENCERRADO,(FESA) Fundo Especial de Saúde de Mato Grosso do Sul,Aquisição de equipamentos para montar leitos de UTI,44905208 - APAR.EQUIP.UTENS.MEDICO ODONTOL.LAB.HOSPITAL,0240000000 - RECURSOS DIRETAMENTE ARRECADADOS,DISPENSA DE LICITAÇÃO LEI 13979/2020,Conforme Termo de Referencia,25/08/2020,22/12/2020,119,"195000,00000000","195000,00000000",25/08/2020,03/09/2020,10270,4,03/09/2020,0,0,0,0
344,81.706.251/0001-98,PROMEFARMA MEDICAMENTOS E PRODUTOS HOSPITALARES LTDA,27/101.659/2020,14347,ENCERRADO,(FUNSAU) Fundação Serviços de Saúde de MS,Aquisição de medicamentos para o Hospital Regional de Mato Grosso do Sul em atendimento a doença COVID 19,33903009 - MATERIAL FARMACOLOGICO,0240000000 - RECURSOS DIRETAMENTE ARRECADADOS,DISPENSA DE LICITAÇÃO LEI 13979/2020,"Coordenação de Logística e Suprimentos/FUNSAU - Almoxarifado Avenida Gunter Hans, 2300, Jardim Tijuca, Campo Grande/MS Este estabelecimento funciona de segunda à sexta, das 07:30h às 10:30h e das 13:30h às 16h.",12/11/2020,11/05/2021,180,"10600,00000000","10600,00000000",12/11/2020,12/01/2021,10375,22,12/01/2021,0,0,0,0
345,11.909.227/0001-70,PROMEGA BIOTECNOLOGIA DO BRASIL LTDA,27/001.222/2020,13637,ENCERRADO,(FESA) Fundo Especial de Saúde de Mato Grosso do Sul,Aquisição de material laboratorial  Kits de amplificação de material genético para diagnóstico molecular do novo Coronavírus,33903011 - MATERIAL QUIMICO,0100000000 - RECURSOS ORDINARIOS DO TESOURO,DISPENSA DE LICITAÇÃO LEI 13979/2020,conforme termo de referência,28/05/2020,23/11/2020,179,"132400,00000000","132400,00000000",28/05/2020,16/06/2020,10195,18,16/06/2020,0,0,0,0
346,01.334.250/0003-92,QIAGEN BIOTECNOLOGIA BRASIL LTDA,27/001.833/2020,13901,ENCERRADO,(FESA) Fundo Especial de Saúde de Mato Grosso do Sul,Aquisição de equipamento laboratorial: extrator de material genético,44905208 - APAR.EQUIP.UTENS.MEDICO ODONTOL.LAB.HOSPITAL,0100000000 - RECURSOS ORDINARIOS DO TESOURO,DISPENSA DE LICITAÇÃO LEI 13979/2020,"LACEN/MS: Av. Senador Filinto Muller, 1666 - Vila Ipiranga - CEP: 79074-460 - Campo Grande/MS",07/08/2020,04/12/2020,119,"293000,00000000","293000,00000000",07/08/2020,20/08/2020,10259,18 e 19,20/08/2020,0,0,0,0
347,01.334.250/0003-92,QIAGEN BIOTECNOLOGIA BRASIL LTDA,27/001.876/2020,13968,ENCERRADO,(FESA) Fundo Especial de Saúde de Mato Grosso do Sul,Aquisição de Kits de Extração Manual e Fita para autoclave,33903011 - MATERIAL QUIMICO,0248000103 - LC. 172/20 - COVID-19,DISPENSA DE LICITAÇÃO LEI 13979/2020,"Almoxarifado SES - Rua Araçá, 1495 - Morada Verde - CEP: 79013-600 - Campo Grande/MS",24/08/2020,21/12/2020,119,"270000,00000000","270000,00000000",24/08/2020,03/09/2020,10269,20,03/09/2020,0,0,0,0
348,01.334.250/0003-92,QIAGEN BIOTECNOLOGIA BRASIL LTDA,27/002.115/2020,14019,ENCERRADO,(FESA) Fundo Especial de Saúde de Mato Grosso do Sul,"Aquisição de Kits de extração automatizada, por exclusividade.",33903011 - MATERIAL QUIMICO,0248000104 - Fonte de Recursos - FESA,INEXIGIBILIDADE LEI 13979/2020,Conforme Termo de Referência.,08/09/2020,07/03/2021,180,"833490,45000000","833490,45000000",08/09/2020,17/09/2020,10281,46,17/09/2020,0,0,0,0
349,01.334.250/0003-92,QIAGEN BIOTECNOLOGIA BRASIL LTDA,27/002.115/2020,14019,ENCERRADO,(FESA) Fundo Especial de Saúde de Mato Grosso do Sul,"Aquisição de Kits de extração automatizada, por exclusividade.",33903035 - MATERIAL LABORATORIAL,0248000104 - Fonte de Recursos - FESA,INEXIGIBILIDADE LEI 13979/2020,Conforme Termo de Referência.,08/09/2020,07/03/2021,180,"833490,45000000","833490,45000000",08/09/2020,17/09/2020,10281,46,17/09/2020,0,0,0,0
350,01.334.250/0003-92,QIAGEN BIOTECNOLOGIA BRASIL LTDA,27/001.316/2020,13725,ENCERRADO,(FESA) Fundo Especial de Saúde de Mato Grosso do Sul,Aquisição de material laboratorial,33903011 - MATERIAL QUIMICO,0100000000 - RECURSOS ORDINARIOS DO TESOURO,DISPENSA DE LICITAÇÃO LEI 13979/2020,"Laboratório Central de Saúde Pública do MS-LACEN                                                                                                                                                                                                             Av. Senador Filinto Muller, 1666, Vila Ipiranga, Campo Grande, MS",17/06/2020,13/12/2020,179,"377920,00000000","377920,00000000",17/06/2020,03/07/2020,10212,15 e 16,03/07/2020,0,0,0,0
351,01.334.250/0003-92,QIAGEN BIOTECNOLOGIA BRASIL LTDA,27/001.678/2020,13772,ENCERRADO,(FESA) Fundo Especial de Saúde de Mato Grosso do Sul,Aquisição de Material Laboratorial - Kits de Extração Manual,33903011 - MATERIAL QUIMICO,0103000000 - RECURSOS PROVENIENTE DA LEI N. 2.105/2000,DISPENSA DE LICITAÇÃO LEI 13979/2020,"Almox. SES - Rua Araçá 1495 - Morada Verde, CEP 79013-600 - Campo Grande/MS",07/07/2020,04/09/2020,59,"377920,00000000","377920,00000000",07/07/2020,14/07/2020,10223,13 e 14,14/07/2020,0,0,0,0
352,01.212.789/0001-07,R&D MEDIQ EQUIPAMENTOS E SERVIÇOS ESPECIALIZADOS LTDA -EPP,27/001.809/2020,13948,ENCERRADO,(FESA) Fundo Especial de Saúde de Mato Grosso do Sul,Aquisição de equipamentos para montar leitos de UTI,44905208 - APAR.EQUIP.UTENS.MEDICO ODONTOL.LAB.HOSPITAL,0240000000 - RECURSOS DIRETAMENTE ARRECADADOS,DISPENSA DE LICITAÇÃO LEI 13979/2020,Conforme Termo de Referencia,25/08/2020,22/12/2020,119,"123480,00000000","123480,00000000",25/08/2020,03/09/2020,10270,3 e 4,03/09/2020,0,0,0,0
353,01.212.789/0001-07,R&D MEDIQ EQUIPAMENTOS E SERVIÇOS ESPECIALIZADOS LTDA -EPP,27/001.314/2020,13723,ENCERRADO,(FESA) Fundo Especial de Saúde de Mato Grosso do Sul,Aquisição de Oxímetro de Pulso,44905208 - APAR.EQUIP.UTENS.MEDICO ODONTOL.LAB.HOSPITAL,0100000000 - RECURSOS ORDINARIOS DO TESOURO,DISPENSA DE LICITAÇÃO LEI 13979/2020,Conforme Termo de Referencia,19/06/2020,15/12/2020,179,"2002140,00000000","2002140,00000000",19/06/2020,02/07/2020,10210,24 e 25,02/07/2020,0,0,0,0
354,17.263.792/0001-90,REALMED DISTRIBUIDORA  LTDA.,27/005.192/2021,15538,ENCERRADO,(FESA) Fundo Especial de Saúde de Mato Grosso do Sul,Aquisição de correlatos hospitalares e soluções e saneantes para atender demanda da SES/MS.,33903022 - MATERIAL DE LIMPEZA E PROD. DE HIGIENIZACAO,0248000125 - PT. 3896/20 - COVID-19,DISPENSA DE LICITAÇÃO MP 1047/2021,Conforme Termo de Referência,09/09/2021,06/01/2022,119,"106746,00000000","106746,00000000",09/09/2021,29/09/2021,10645,40,29/09/2021,0,0,0,0
355,17.263.792/0001-90,REALMED DISTRIBUIDORA  LTDA.,27/005.192/2021,15538,ENCERRADO,(FESA) Fundo Especial de Saúde de Mato Grosso do Sul,Aquisição de correlatos hospitalares e soluções e saneantes para atender demanda da SES/MS.,33903028 - MATERIAL DE PROTECAO E SEGURANCA,0248000125 - PT. 3896/20 - COVID-19,DISPENSA DE LICITAÇÃO MP 1047/2021,Conforme Termo de Referência,09/09/2021,06/01/2022,119,"106746,00000000","106746,00000000",09/09/2021,29/09/2021,10645,40,29/09/2021,0,0,0,0
356,17.263.792/0001-90,REALMED DISTRIBUIDORA  LTDA.,27/001.189/2020,13679,ENCERRADO,(FESA) Fundo Especial de Saúde de Mato Grosso do Sul,Aquisição de Correlatos Hospitalares,33903036 - MATERIAL HOSPITALAR,0100000000 - RECURSOS ORDINARIOS DO TESOURO,DISPENSA DE LICITAÇÃO LEI 13979/2020,Conforme Termo de Referencia,09/06/2020,06/10/2020,119,"66469,20000000","66469,20000000",09/06/2020,30/06/2020,10208,28,30/06/2020,0,0,0,0
357,17.263.792/0001-90,REALMED DISTRIBUIDORA  LTDA.,27/001.649/2020,13829,ENCERRADO,(FESA) Fundo Especial de Saúde de Mato Grosso do Sul,Aquisição de medicamentos,33903009 - MATERIAL FARMACOLOGICO,0103000000 - RECURSOS PROVENIENTE DA LEI N. 2.105/2000,DISPENSA DE LICITAÇÃO LEI 13979/2020,Conforme Termo de Referencia,20/07/2020,16/11/2020,119,"3200,00000000","3200,00000000",20/07/2020,20/08/2020,10259,15 e 16,20/08/2020,0,0,0,0
358,17.263.792/0001-90,REALMED DISTRIBUIDORA  LTDA.,29/017.508/2020,13431,ENCERRADO,(SED) Secretaria de Estado de Educação,Aquisição de Material de limpeza e higienização,33903036 - MATERIAL HOSPITALAR,0100000000 - RECURSOS ORDINARIOS DO TESOURO,DISPENSA DE LICITAÇÃO LEI 13979/2020,Almoxarifado/SED,17/04/2020,15/07/2020,89,"45144,00000000","45144,00000000",17/04/2020,05/05/2020,10160,13,05/05/2020,0,0,0,0
359,01.244.920/0001-18,REDE MS INTEGRAÇÃO DE RÁDIO E TELEVISÃO LTDA,29/021.757/2020,13598,ENCERRADO,(SED) Secretaria de Estado de Educação,"Contratação de emissora de TV para prestação de serviços de transmissão televisiva simultânea em canal aberto digital de conteúdo escolar e educacional em 2 (dois) canais / multicanais próprios em operação no Estado de Mato Grosso do Sul, para transmissão de aulas aos alunos da Rede Estadual de Ensino","33903959 - SERVICOS DE AUDIO, VIDEO E FOTO",0100000000 - RECURSOS ORDINARIOS DO TESOURO,DISPENSA DE LICITAÇÃO LEI 13979/2020,Rede Estadual de Ensino de ensino no Estado de Mato Grosso do Sul,23/08/2020,06/10/2020,44,"663955,65000000","663955,65000000",21/08/2020,01/09/2020,10181,6,26/05/2020,0,0,0,0
360,01.244.920/0001-18,REDE MS INTEGRAÇÃO DE RÁDIO E TELEVISÃO LTDA,29/021.757/2020,13598,ENCERRADO,(SED) Secretaria de Estado de Educação,"Contratação de emissora de TV para prestação de serviços de transmissão televisiva simultânea em canal aberto digital de conteúdo escolar e educacional em 2 (dois) canais / multicanais próprios em operação no Estado de Mato Grosso do Sul, para transmissão de aulas aos alunos da Rede Estadual de Ensino","33903959 - SERVICOS DE AUDIO, VIDEO E FOTO",0100000000 - RECURSOS ORDINARIOS DO TESOURO,DISPENSA DE LICITAÇÃO LEI 13979/2020,Rede Estadual de Ensino de ensino no Estado de Mato Grosso do Sul,07/10/2020,20/11/2020,44,"663955,65000000","663955,65000000",14/09/2020,27/10/2020,10181,6,26/05/2020,0,0,0,0
361,01.244.920/0001-18,REDE MS INTEGRAÇÃO DE RÁDIO E TELEVISÃO LTDA,29/021.757/2020,13598,ENCERRADO,(SED) Secretaria de Estado de Educação,"Contratação de emissora de TV para prestação de serviços de transmissão televisiva simultânea em canal aberto digital de conteúdo escolar e educacional em 2 (dois) canais / multicanais próprios em operação no Estado de Mato Grosso do Sul, para transmissão de aulas aos alunos da Rede Estadual de Ensino","33903959 - SERVICOS DE AUDIO, VIDEO E FOTO",0100000000 - RECURSOS ORDINARIOS DO TESOURO,DISPENSA DE LICITAÇÃO LEI 13979/2020,Rede Estadual de Ensino de ensino no Estado de Mato Grosso do Sul,21/11/2020,18/12/2020,27,"663955,65000000","413127,96000000",20/11/2020,07/12/2020,10181,6,26/05/2020,0,0,0,0
362,01.244.920/0001-18,REDE MS INTEGRAÇÃO DE RÁDIO E TELEVISÃO LTDA,29/021.757/2020,13598,ENCERRADO,(SED) Secretaria de Estado de Educação,"Contratação de emissora de TV para prestação de serviços de transmissão televisiva simultânea em canal aberto digital de conteúdo escolar e educacional em 2 (dois) canais / multicanais próprios em operação no Estado de Mato Grosso do Sul, para transmissão de aulas aos alunos da Rede Estadual de Ensino","33903959 - SERVICOS DE AUDIO, VIDEO E FOTO",0108000000 - COTA-PARTE DO SALÁRIO-EDUCAÇÃO - CONTA ESTADUAL,DISPENSA DE LICITAÇÃO LEI 13979/2020,Rede Estadual de Ensino de ensino no Estado de Mato Grosso do Sul,25/05/2020,08/07/2020,44,"663955,65000000","663955,65000000",19/05/2020,26/05/2020,10181,6,26/05/2020,0,0,0,0
363,01.244.920/0001-18,REDE MS INTEGRAÇÃO DE RÁDIO E TELEVISÃO LTDA,29/021.757/2020,13598,ENCERRADO,(SED) Secretaria de Estado de Educação,"Contratação de emissora de TV para prestação de serviços de transmissão televisiva simultânea em canal aberto digital de conteúdo escolar e educacional em 2 (dois) canais / multicanais próprios em operação no Estado de Mato Grosso do Sul, para transmissão de aulas aos alunos da Rede Estadual de Ensino","33903959 - SERVICOS DE AUDIO, VIDEO E FOTO",0108000000 - COTA-PARTE DO SALÁRIO-EDUCAÇÃO - CONTA ESTADUAL,DISPENSA DE LICITAÇÃO LEI 13979/2020,Rede Estadual de Ensino de ensino no Estado de Mato Grosso do Sul,09/07/2020,22/08/2020,44,"663955,65000000","663955,65000000",08/07/2020,10/07/2020,10181,6,26/05/2020,0,0,0,0
364,03.836.671/0001-85,REFRIGEL - ASSISTÊNCIA TÉCNICA,27/000.479/2021,14787,ENCERRADO,(FESA) Fundo Especial de Saúde de Mato Grosso do Sul,Contratação de Empresa Especializada na prestação de serviços de Manutenção corretiva em Câmara fria,33903025 - MATERIAL P/ MANUTENCAO DE BENS MOVEIS,0248000104 - Fonte de Recursos - FESA,DISPENSA DE LICITAÇÃO MP 1026/2021,Conforme Termo de Referencia,11/03/2021,10/09/2021,183,"19775,00000000","19775,00000000",11/03/2021,23/03/2021,10450,14,23/03/2021,0,0,0,0
365,03.836.671/0001-85,REFRIGEL - ASSISTÊNCIA TÉCNICA,27/000.479/2021,14787,ENCERRADO,(FESA) Fundo Especial de Saúde de Mato Grosso do Sul,Contratação de Empresa Especializada na prestação de serviços de Manutenção corretiva em Câmara fria,33903917 - MANUT. E CONSERV. DE MAQUINAS E EQUIPAMENTOS,0248000104 - Fonte de Recursos - FESA,DISPENSA DE LICITAÇÃO MP 1026/2021,Conforme Termo de Referencia,11/03/2021,10/09/2021,183,"19775,00000000","19775,00000000",11/03/2021,23/03/2021,10450,14,23/03/2021,0,0,0,0
366,28.546.470/0001-74,SOUZA MED COMERCIO DE MATERIAIS MEDICO-HOSPITALAR  LTDA,27/001.188/2020,13650,ENCERRADO,(FESA) Fundo Especial de Saúde de Mato Grosso do Sul,"Aquisição de correlatos hospitalares: luva, seringa, sonda, touca, sistema de drenagem",33903036 - MATERIAL HOSPITALAR,0100000000 - RECURSOS ORDINARIOS DO TESOURO,DISPENSA DE LICITAÇÃO LEI 13979/2020,Conforme Termo de Referencia,10/06/2020,07/10/2020,119,"9480,00000000","9480,00000000",10/06/2020,01/07/2020,10209,19,01/07/2020,0,0,0,0
367,34.707.374/0001-63,SPV COMERCIAL LTDA,27/005.192/2021,15543,ENCERRADO,(FESA) Fundo Especial de Saúde de Mato Grosso do Sul,Aquisição de correlatos hospitalares e soluções e saneantes para atender demanda da SES/MS.,33903036 - MATERIAL HOSPITALAR,0248000125 - PT. 3896/20 - COVID-19,DISPENSA DE LICITAÇÃO MP 1047/2021,Conforme Termo de Referência,30/08/2021,27/12/2021,119,"2065,50000000","2065,50000000",30/08/2021,29/09/2021,10645,42,29/09/2021,0,0,0,0
368,36.923.443/0001-00,STAR MEDICAL COMERCIO DE PRODUTOS HOSPITALARES LTDA,27/002.257/2020,14236,ENCERRADO,(FESA) Fundo Especial de Saúde de Mato Grosso do Sul,Aquisição de Álcool Etílico,33903022 - MATERIAL DE LIMPEZA E PROD. DE HIGIENIZACAO,0248000104 - Fonte de Recursos - FESA,DISPENSA DE LICITAÇÃO LEI 13979/2020,"Almoxarifado da SES, Rua Araçá 1495, Morada Verde, Campo Grande, MS.",30/10/2020,27/01/2021,89,"85950,00000000","85950,00000000",30/10/2020,09/11/2020,10319,21 e 22,09/11/2020,0,0,0,0
369,36.923.443/0001-00,STAR MEDICAL COMERCIO DE PRODUTOS HOSPITALARES LTDA,27/002.369/2020,14431,ENCERRADO,(FESA) Fundo Especial de Saúde de Mato Grosso do Sul,Aquisição de Ponteira Laboratorial - Volume :1 - 20 ul com filtro.,33903035 - MATERIAL LABORATORIAL,0248000103 - LC. 172/20 - COVID-19,DISPENSA DE LICITAÇÃO LEI 13979/2020,Conforme o Termo de Referência.,08/12/2020,06/04/2021,119,"152460,00000000","152460,00000000",08/12/2020,15/12/2020,10350,47,15/12/2020,0,0,0,0
370,36.923.443/0001-00,STAR MEDICAL COMERCIO DE PRODUTOS HOSPITALARES LTDA,27/005.192/2021,15542,ENCERRADO,(FESA) Fundo Especial de Saúde de Mato Grosso do Sul,Aquisição de correlatos hospitalares e soluções e saneantes para atender demanda da SES/MS.,33903036 - MATERIAL HOSPITALAR,0248000125 - PT. 3896/20 - COVID-19,DISPENSA DE LICITAÇÃO MP 1047/2021,Conforme Termo de Referência,30/08/2021,24/02/2022,178,"1688013,00000000","1688013,00000000",30/08/2021,29/09/2021,10645,42,29/09/2021,0,0,0,0
371,00.678.593/0001-40,STERIFARMA PRODUTOS CIRÚRGICOS LTDA,27/001.916/2020,13957,ENCERRADO,(FESA) Fundo Especial de Saúde de Mato Grosso do Sul,Aquisição de Teste Rápido Coronavírus IgG e IgM,33903011 - MATERIAL QUIMICO,0248000103 - LC. 172/20 - COVID-19,DISPENSA DE LICITAÇÃO LEI 13979/2020,Conforme Termo de Referencia,24/08/2020,21/12/2020,119,"899500,00000000","899500,00000000",24/08/2020,15/09/2020,10279,15 e 16,15/09/2020,0,0,0,0
372,09.944.371/0001-04,SULMEDIC COMERCIO DE MEDICAMENTOS LTDA.,27/005.549/2021,15365,ENCERRADO,(FESA) Fundo Especial de Saúde de Mato Grosso do Sul,Aquisição de medicamento utilizado pra entubação dos pacientes com COVID-19.,33903219 - Medicamentos e Materiais Médico- Hospitalares,0248000093 - PT. 395/20 - CORONAVIRUS - COVID-19 BRASIL,PREGÃO ELETRÔNICO,"DMB - Rua Delegado Osmar de Camargo, S/N",06/08/2021,05/08/2022,364,"264562,50000000","264562,50000000",06/08/2021,24/08/2021,10614,36,24/08/2021,0,0,0,0
373,00.641.325/0001-53,TAVARES & SOARES LTDA,65/000.361/2020,13413,ENCERRADO,"(SEDHAST - Inativo 2022) Secretaria de Estado de Direitos Humanos, Assistência Social e Trabalho",Aquisição de Cesta básica,33903208 - CESTAS BASICAS,0100000000 - RECURSOS ORDINARIOS DO TESOURO,DISPENSA DE LICITAÇÃO LEI 13979/2020,"Rua 14 de julho, 32, Centro, Campo Grande/MS.",07/04/2020,05/07/2020,89,"5820000,00000000","5820000,00000000",07/04/2020,08/04/2020,10141,9,08/04/2020,0,0,0,0
374,27.274.178/0001-87,TJ COMERCIO DE PRODUTOS LTDA - EPP.,29/047.784/2022,19057,ENCERRADO,(SED) Secretaria de Estado de Educação,Aquisição de material de informática I (memória) para atender a demanda da Secretaria de Estado de Educação.,33903017 - MATERIAL DE PROCESSAMENTO DE DADOS,0100000000 - RECURSOS ORDINARIOS DO TESOURO,PREGÃO ELETRÔNICO,"Almoxarifado Central situado na Rua Delegado José Alfredo Hardman, n. 200, no Parque dos Poderes em Campo Grande/MS",26/07/2022,25/07/2023,364,"129495,00000000","129495,00000000",26/07/2022,01/08/2022,10904,22,01/08/2022,0,0,0,0
